{"text_format":"1","workbook":"xlsx","n_sheets":12,"sheets":["January","February","March","April","May","June","July","August","September","October","November","December"],"not_rendered":{"charts":0,"images":0,"macros":1,"external_links":0,"defined_names":0,"comments":0,"pivot_tables":0},"unopened":[],"bounds":{"document_bytes":16777216,"sheet_cells":100000,"rows_first":2000,"rows_last":500,"rows_between":2000,"halvings":0,"cell_chars":16384,"cell_head_chars":4096},"cells_cut":0,"cells_raw":0,"read":"whole","date_system":"1900"}

{"sheet":"January","index":0,"n_rows":310,"n_cols":5,"rows_kept":310,"cut":false,"hidden":false,"merged":[]}
["Gas Day:  ",null,null,null,"2021-01-31"]
["Receipt Point","Delivery Point","Operating Capacity (DTHS)","Schedule Volume (DTHS)","Estimated Available Capacity"]
["Kelso/Beaver","Port Westward",64000,0,{"$f":"C3-D3","v":64000}]
["Kelso/Beaver","Port Westward II",44000,0,44000]
["Kelso/Beaver","N. Mist Storage",61000,50108,10892]
["Kelso/Beaver","Beaver Unit 8",7326,0,7326]
["Kelso/Beaver","Beaver 1 - 6",152400,0,152400]
["Mist Port Westward","Port Westward",70000,0,70000]
["Mist Port Westward II","Port Westward II",70000,0,70000]
["Mist Beaver","Beaver",70000,0,{"$f":"C10-D10","v":70000}]
["Gas Day:  ",null,null,null,"2021-01-30"]
["Receipt Point","Delivery Point","Operating Capacity (DTHS)","Schedule Volume (DTHS)","Estimated Available Capacity"]
["Kelso/Beaver","Port Westward",64000,0,{"$f":"C13-D13","v":64000}]
["Kelso/Beaver","Port Westward II",44000,0,44000]
["Kelso/Beaver","N. Mist Storage",61000,50108,10892]
["Kelso/Beaver","Beaver Unit 8",7326,0,7326]
["Kelso/Beaver","Beaver 1 - 6",152400,0,152400]
["Mist Port Westward","Port Westward",70000,0,70000]
["Mist Port Westward II","Port Westward II",70000,0,70000]
["Mist Beaver","Beaver",70000,0,{"$f":"C20-D20","v":70000}]
["Gas Day:  ",null,null,null,"2021-01-29"]
["Receipt Point","Delivery Point","Operating Capacity (DTHS)","Schedule Volume (DTHS)","Estimated Available Capacity"]
["Kelso/Beaver","Port Westward",64000,0,{"$f":"C23-D23","v":64000}]
["Kelso/Beaver","Port Westward II",44000,0,44000]
["Kelso/Beaver","N. Mist Storage",61000,40108,20892]
["Kelso/Beaver","Beaver Unit 8",7326,0,7326]
["Kelso/Beaver","Beaver 1 - 6",152400,10000,142400]
["Mist Port Westward","Port Westward",70000,0,70000]
["Mist Port Westward II","Port Westward II",70000,0,70000]
["Mist Beaver","Beaver",70000,0,{"$f":"C30-D30","v":70000}]
["Gas Day:  ",null,null,null,"2021-01-28"]
["Receipt Point","Delivery Point","Operating Capacity (DTHS)","Schedule Volume (DTHS)","Estimated Available Capacity"]
["Kelso/Beaver","Port Westward",64000,0,{"$f":"C33-D33","v":64000}]
["Kelso/Beaver","Port Westward II",44000,0,44000]
["Kelso/Beaver","N. Mist Storage",61000,30108,30892]
["Kelso/Beaver","Beaver Unit 8",7326,0,7326]
["Kelso/Beaver","Beaver 1 - 6",152400,20000,132400]
["Mist Port Westward","Port Westward",70000,0,70000]
["Mist Port Westward II","Port Westward II",70000,0,70000]
["Mist Beaver","Beaver",70000,0,{"$f":"C40-D40","v":70000}]
["Gas Day:  ",null,null,null,"2021-01-27"]
["Receipt Point","Delivery Point","Operating Capacity (DTHS)","Schedule Volume (DTHS)","Estimated Available Capacity"]
["Kelso/Beaver","Port Westward",64000,0,{"$f":"C43-D43","v":64000}]
["Kelso/Beaver","Port Westward II",44000,0,44000]
["Kelso/Beaver","N. Mist Storage",61000,10108,50892]
["Kelso/Beaver","Beaver Unit 8",7326,0,7326]
["Kelso/Beaver","Beaver 1 - 6",152400,40000,112400]
["Mist Port Westward","Port Westward",70000,0,70000]
["Mist Port Westward II","Port Westward II",70000,0,70000]
["Mist Beaver","Beaver",70000,0,{"$f":"C50-D50","v":70000}]
["Gas Day:  ",null,null,null,"2021-01-26"]
["Receipt Point","Delivery Point","Operating Capacity (DTHS)","Schedule Volume (DTHS)","Estimated Available Capacity"]
["Kelso/Beaver","Port Westward",64000,0,{"$f":"C53-D53","v":64000}]
["Kelso/Beaver","Port Westward II",44000,0,44000]
["Kelso/Beaver","N. Mist Storage",61000,5108,55892]
["Kelso/Beaver","Beaver Unit 8",7326,0,7326]
["Kelso/Beaver","Beaver 1 - 6",152400,45000,107400]
["Mist Port Westward","Port Westward",70000,0,70000]
["Mist Port Westward II","Port Westward II",70000,0,70000]
["Mist Beaver","Beaver",70000,0,{"$f":"C60-D60","v":70000}]
["Gas Day:  ",null,null,null,"2021-01-25"]
["Receipt Point","Delivery Point","Operating Capacity (DTHS)","Schedule Volume (DTHS)","Estimated Available Capacity"]
["Kelso/Beaver","Port Westward",64000,0,{"$f":"C63-D63","v":64000}]
["Kelso/Beaver","Port Westward II",44000,0,44000]
["Kelso/Beaver","N. Mist Storage",61000,40000,21000]
["Kelso/Beaver","Beaver Unit 8",7326,0,7326]
["Kelso/Beaver","Beaver 1 - 6",152400,10108,142292]
["Mist Port Westward","Port Westward",70000,0,70000]
["Mist Port Westward II","Port Westward II",70000,0,70000]
["Mist Beaver","Beaver",70000,0,{"$f":"C70-D70","v":70000}]
["Gas Day:  ",null,null,null,"2021-01-24"]
["Receipt Point","Delivery Point","Operating Capacity (DTHS)","Schedule Volume (DTHS)","Estimated Available Capacity"]
["Kelso/Beaver","Port Westward",64000,0,{"$f":"C73-D73","v":64000}]
["Kelso/Beaver","Port Westward II",44000,0,44000]
["Kelso/Beaver","N. Mist Storage",61000,40000,21000]
["Kelso/Beaver","Beaver Unit 8",7326,0,7326]
["Kelso/Beaver","Beaver 1 - 6",152400,10108,142292]
["Mist Port Westward","Port Westward",70000,0,70000]
["Mist Port Westward II","Port Westward II",70000,0,70000]
["Mist Beaver","Beaver",70000,0,{"$f":"C80-D80","v":70000}]
["Gas Day:  ",null,null,null,"2021-01-23"]
["Receipt Point","Delivery Point","Operating Capacity (DTHS)","Schedule Volume (DTHS)","Estimated Available Capacity"]
["Kelso/Beaver","Port Westward",64000,0,{"$f":"C83-D83","v":64000}]
["Kelso/Beaver","Port Westward II",44000,0,44000]
["Kelso/Beaver","N. Mist Storage",61000,40000,21000]
["Kelso/Beaver","Beaver Unit 8",7326,0,7326]
["Kelso/Beaver","Beaver 1 - 6",152400,10108,142292]
["Mist Port Westward","Port Westward",70000,0,70000]
["Mist Port Westward II","Port Westward II",70000,0,70000]
["Mist Beaver","Beaver",70000,0,{"$f":"C90-D90","v":70000}]
["Gas Day:  ",null,null,null,"2021-01-22"]
["Receipt Point","Delivery Point","Operating Capacity (DTHS)","Schedule Volume (DTHS)","Estimated Available Capacity"]
["Kelso/Beaver","Port Westward",64000,0,{"$f":"C93-D93","v":64000}]
["Kelso/Beaver","Port Westward II",44000,0,44000]
["Kelso/Beaver","N. Mist Storage",61000,40000,21000]
["Kelso/Beaver","Beaver Unit 8",7326,0,7326]
["Kelso/Beaver","Beaver 1 - 6",152400,10108,142292]
["Mist Port Westward","Port Westward",70000,0,70000]
["Mist Port Westward II","Port Westward II",70000,0,70000]
["Mist Beaver","Beaver",70000,0,{"$f":"C100-D100","v":70000}]
["Gas Day:  ",null,null,null,"2021-01-21"]
["Receipt Point","Delivery Point","Operating Capacity (DTHS)","Schedule Volume (DTHS)","Estimated Available Capacity"]
["Kelso/Beaver","Port Westward",64000,0,{"$f":"C103-D103","v":64000}]
["Kelso/Beaver","Port Westward II",44000,2108,41892]
["Kelso/Beaver","N. Mist Storage",61000,48000,13000]
["Kelso/Beaver","Beaver Unit 8",7326,0,7326]
["Kelso/Beaver","Beaver 1 - 6",152400,0,152400]
["Mist Port Westward","Port Westward",70000,0,70000]
["Mist Port Westward II","Port Westward II",70000,0,70000]
["Mist Beaver","Beaver",70000,0,{"$f":"C110-D110","v":70000}]
["Gas Day:  ",null,null,null,"2021-01-20"]
["Receipt Point","Delivery Point","Operating Capacity (DTHS)","Schedule Volume (DTHS)","Estimated Available Capacity"]
["Kelso/Beaver","Port Westward",64000,0,{"$f":"C113-D113","v":64000}]
["Kelso/Beaver","Port Westward II",44000,2108,41892]
["Kelso/Beaver","N. Mist Storage",61000,48000,13000]
["Kelso/Beaver","Beaver Unit 8",7326,0,7326]
["Kelso/Beaver","Beaver 1 - 6",152400,0,152400]
["Mist Port Westward","Port Westward",70000,0,70000]
["Mist Port Westward II","Port Westward II",70000,0,70000]
["Mist Beaver","Beaver",70000,0,{"$f":"C120-D120","v":70000}]
["Gas Day:  ",null,null,null,"2021-01-19"]
["Receipt Point","Delivery Point","Operating Capacity (DTHS)","Schedule Volume (DTHS)","Estimated Available Capacity"]
["Kelso/Beaver","Port Westward",64000,0,{"$f":"C123-D123","v":64000}]
["Kelso/Beaver","Port Westward II",44000,2108,41892]
["Kelso/Beaver","N. Mist Storage",61000,48000,13000]
["Kelso/Beaver","Beaver Unit 8",7326,0,7326]
["Kelso/Beaver","Beaver 1 - 6",152400,0,152400]
["Mist Port Westward","Port Westward",70000,0,70000]
["Mist Port Westward II","Port Westward II",70000,0,70000]
["Mist Beaver","Beaver",70000,0,{"$f":"C130-D130","v":70000}]
["Gas Day:  ",null,null,null,"2021-01-18"]
["Receipt Point","Delivery Point","Operating Capacity (DTHS)","Schedule Volume (DTHS)","Estimated Available Capacity"]
["Kelso/Beaver","Port Westward",64000,0,{"$f":"C133-D133","v":64000}]
["Kelso/Beaver","Port Westward II",44000,2108,41892]
["Kelso/Beaver","N. Mist Storage",61000,48000,13000]
["Kelso/Beaver","Beaver Unit 8",7326,0,7326]
["Kelso/Beaver","Beaver 1 - 6",152400,0,152400]
["Mist Port Westward","Port Westward",70000,0,70000]
["Mist Port Westward II","Port Westward II",70000,0,70000]
["Mist Beaver","Beaver",70000,0,{"$f":"C140-D140","v":70000}]
["Gas Day:  ",null,null,null,"2021-01-17"]
["Receipt Point","Delivery Point","Operating Capacity (DTHS)","Schedule Volume (DTHS)","Estimated Available Capacity"]
["Kelso/Beaver","Port Westward",64000,0,{"$f":"C143-D143","v":64000}]
["Kelso/Beaver","Port Westward II",44000,2108,41892]
["Kelso/Beaver","N. Mist Storage",61000,48000,13000]
["Kelso/Beaver","Beaver Unit 8",7326,0,7326]
["Kelso/Beaver","Beaver 1 - 6",152400,0,152400]
["Mist Port Westward","Port Westward",70000,0,70000]
["Mist Port Westward II","Port Westward II",70000,0,70000]
["Mist Beaver","Beaver",70000,0,{"$f":"C150-D150","v":70000}]
["Gas Day:  ",null,null,null,"2021-01-16"]
["Receipt Point","Delivery Point","Operating Capacity (DTHS)","Schedule Volume (DTHS)","Estimated Available Capacity"]
["Kelso/Beaver","Port Westward",64000,0,{"$f":"C153-D153","v":64000}]
["Kelso/Beaver","Port Westward II",44000,2108,41892]
["Kelso/Beaver","N. Mist Storage",61000,48000,13000]
["Kelso/Beaver","Beaver Unit 8",7326,0,7326]
["Kelso/Beaver","Beaver 1 - 6",152400,0,152400]
["Mist Port Westward","Port Westward",70000,0,70000]
["Mist Port Westward II","Port Westward II",70000,0,70000]
["Mist Beaver","Beaver",70000,0,{"$f":"C160-D160","v":70000}]
["Gas Day:  ",null,null,null,"2021-01-15"]
["Receipt Point","Delivery Point","Operating Capacity (DTHS)","Schedule Volume (DTHS)","Estimated Available Capacity"]
["Kelso/Beaver","Port Westward",64000,0,{"$f":"C163-D163","v":64000}]
["Kelso/Beaver","Port Westward II",44000,2108,41892]
["Kelso/Beaver","N. Mist Storage",61000,48000,13000]
["Kelso/Beaver","Beaver Unit 8",7326,0,7326]
["Kelso/Beaver","Beaver 1 - 6",152400,0,152400]
["Mist Port Westward","Port Westward",70000,0,70000]
["Mist Port Westward II","Port Westward II",70000,0,70000]
["Mist Beaver","Beaver",70000,0,{"$f":"C170-D170","v":70000}]
["Gas Day:  ",null,null,null,"2021-01-14"]
["Receipt Point","Delivery Point","Operating Capacity (DTHS)","Schedule Volume (DTHS)","Estimated Available Capacity"]
["Kelso/Beaver","Port Westward",64000,0,{"$f":"C173-D173","v":64000}]
["Kelso/Beaver","Port Westward II",44000,2108,41892]
["Kelso/Beaver","N. Mist Storage",61000,48000,13000]
["Kelso/Beaver","Beaver Unit 8",7326,0,7326]
["Kelso/Beaver","Beaver 1 - 6",152400,0,152400]
["Mist Port Westward","Port Westward",70000,0,70000]
["Mist Port Westward II","Port Westward II",70000,0,70000]
["Mist Beaver","Beaver",70000,0,{"$f":"C180-D180","v":70000}]
["Gas Day:  ",null,null,null,"2021-01-13"]
["Receipt Point","Delivery Point","Operating Capacity (DTHS)","Schedule Volume (DTHS)","Estimated Available Capacity"]
["Kelso/Beaver","Port Westward",64000,0,{"$f":"C183-D183","v":64000}]
["Kelso/Beaver","Port Westward II",44000,2108,41892]
["Kelso/Beaver","N. Mist Storage",61000,48000,13000]
["Kelso/Beaver","Beaver Unit 8",7326,0,7326]
["Kelso/Beaver","Beaver 1 - 6",152400,0,152400]
["Mist Port Westward","Port Westward",70000,0,70000]
["Mist Port Westward II","Port Westward II",70000,0,70000]
["Mist Beaver","Beaver",70000,0,{"$f":"C190-D190","v":70000}]
["Gas Day:  ",null,null,null,"2021-01-12"]
["Receipt Point","Delivery Point","Operating Capacity (DTHS)","Schedule Volume (DTHS)","Estimated Available Capacity"]
["Kelso/Beaver","Port Westward",64000,0,{"$f":"C193-D193","v":64000}]
["Kelso/Beaver","Port Westward II",44000,2108,41892]
["Kelso/Beaver","N. Mist Storage",61000,48000,13000]
["Kelso/Beaver","Beaver Unit 8",7326,0,7326]
["Kelso/Beaver","Beaver 1 - 6",152400,0,152400]
["Mist Port Westward","Port Westward",70000,0,70000]
["Mist Port Westward II","Port Westward II",70000,0,70000]
["Mist Beaver","Beaver",70000,0,{"$f":"C200-D200","v":70000}]
["Gas Day:  ",null,null,null,"2021-01-11"]
["Receipt Point","Delivery Point","Operating Capacity (DTHS)","Schedule Volume (DTHS)","Estimated Available Capacity"]
["Kelso/Beaver","Port Westward",64000,0,{"$f":"C203-D203","v":64000}]
["Kelso/Beaver","Port Westward II",44000,2108,41892]
["Kelso/Beaver","N. Mist Storage",61000,48000,13000]
["Kelso/Beaver","Beaver Unit 8",7326,0,7326]
["Kelso/Beaver","Beaver 1 - 6",152400,0,152400]
["Mist Port Westward","Port Westward",70000,0,70000]
["Mist Port Westward II","Port Westward II",70000,0,70000]
["Mist Beaver","Beaver",70000,0,{"$f":"C210-D210","v":70000}]
["Gas Day:  ",null,null,null,"2021-01-10"]
["Receipt Point","Delivery Point","Operating Capacity (DTHS)","Schedule Volume (DTHS)","Estimated Available Capacity"]
["Kelso/Beaver","Port Westward",64000,0,{"$f":"C213-D213","v":64000}]
["Kelso/Beaver","Port Westward II",44000,2108,41892]
["Kelso/Beaver","N. Mist Storage",61000,48000,13000]
["Kelso/Beaver","Beaver Unit 8",7326,0,7326]
["Kelso/Beaver","Beaver 1 - 6",152400,0,152400]
["Mist Port Westward","Port Westward",70000,0,70000]
["Mist Port Westward II","Port Westward II",70000,0,70000]
["Mist Beaver","Beaver",70000,0,{"$f":"C220-D220","v":70000}]
["Gas Day:  ",null,null,null,"2021-01-09"]
["Receipt Point","Delivery Point","Operating Capacity (DTHS)","Schedule Volume (DTHS)","Estimated Available Capacity"]
["Kelso/Beaver","Port Westward",64000,0,{"$f":"C223-D223","v":64000}]
["Kelso/Beaver","Port Westward II",44000,2108,41892]
["Kelso/Beaver","N. Mist Storage",61000,48000,13000]
["Kelso/Beaver","Beaver Unit 8",7326,0,7326]
["Kelso/Beaver","Beaver 1 - 6",152400,0,152400]
["Mist Port Westward","Port Westward",70000,0,70000]
["Mist Port Westward II","Port Westward II",70000,0,70000]
["Mist Beaver","Beaver",70000,0,{"$f":"C230-D230","v":70000}]
["Gas Day:  ",null,null,null,"2021-01-08"]
["Receipt Point","Delivery Point","Operating Capacity (DTHS)","Schedule Volume (DTHS)","Estimated Available Capacity"]
["Kelso/Beaver","Port Westward",64000,0,{"$f":"C233-D233","v":64000}]
["Kelso/Beaver","Port Westward II",44000,0,44000]
["Kelso/Beaver","N. Mist Storage",61000,47653,13347]
["Kelso/Beaver","Beaver Unit 8",7326,0,7326]
["Kelso/Beaver","Beaver 1 - 6",152400,0,152400]
["Mist Port Westward","Port Westward",70000,0,70000]
["Mist Port Westward II","Port Westward II",70000,0,70000]
["Mist Beaver","Beaver",70000,0,{"$f":"C240-D240","v":70000}]
["Gas Day:  ",null,null,null,"2021-01-07"]
["Receipt Point","Delivery Point","Operating Capacity (DTHS)","Schedule Volume (DTHS)","Estimated Available Capacity"]
["Kelso/Beaver","Port Westward",64000,0,{"$f":"C243-D243","v":64000}]
["Kelso/Beaver","Port Westward II",44000,2108,41892]
["Kelso/Beaver","N. Mist Storage",61000,48000,13000]
["Kelso/Beaver","Beaver Unit 8",7326,0,7326]
["Kelso/Beaver","Beaver 1 - 6",152400,0,152400]
["Mist Port Westward","Port Westward",70000,0,70000]
["Mist Port Westward II","Port Westward II",70000,0,70000]
["Mist Beaver","Beaver",70000,0,{"$f":"C250-D250","v":70000}]
["Gas Day:  ",null,null,null,"2021-01-06"]
["Receipt Point","Delivery Point","Operating Capacity (DTHS)","Schedule Volume (DTHS)","Estimated Available Capacity"]
["Kelso/Beaver","Port Westward",64000,0,{"$f":"C253-D253","v":64000}]
["Kelso/Beaver","Port Westward II",44000,2108,41892]
["Kelso/Beaver","N. Mist Storage",61000,48000,13000]
["Kelso/Beaver","Beaver Unit 8",7326,0,7326]
["Kelso/Beaver","Beaver 1 - 6",152400,0,152400]
["Mist Port Westward","Port Westward",70000,0,70000]
["Mist Port Westward II","Port Westward II",70000,0,70000]
["Mist Beaver","Beaver",70000,0,{"$f":"C260-D260","v":70000}]
["Gas Day:  ",null,null,null,"2021-01-05"]
["Receipt Point","Delivery Point","Operating Capacity (DTHS)","Schedule Volume (DTHS)","Estimated Available Capacity"]
["Kelso/Beaver","Port Westward",64000,0,{"$f":"C263-D263","v":64000}]
["Kelso/Beaver","Port Westward II",44000,2108,41892]
["Kelso/Beaver","N. Mist Storage",61000,48000,13000]
["Kelso/Beaver","Beaver Unit 8",7326,0,7326]
["Kelso/Beaver","Beaver 1 - 6",152400,0,152400]
["Mist Port Westward","Port Westward",70000,0,70000]
["Mist Port Westward II","Port Westward II",70000,0,70000]
["Mist Beaver","Beaver",70000,0,{"$f":"C270-D270","v":70000}]
["Gas Day:  ",null,null,null,"2021-01-04"]
["Receipt Point","Delivery Point","Operating Capacity (DTHS)","Schedule Volume (DTHS)","Estimated Available Capacity"]
["Kelso/Beaver","Port Westward",64000,0,{"$f":"C273-D273","v":64000}]
["Kelso/Beaver","Port Westward II",44000,2108,41892]
["Kelso/Beaver","N. Mist Storage",61000,48000,13000]
["Kelso/Beaver","Beaver Unit 8",7326,0,7326]
["Kelso/Beaver","Beaver 1 - 6",152400,0,152400]
["Mist Port Westward","Port Westward",70000,0,70000]
["Mist Port Westward II","Port Westward II",70000,0,70000]
["Mist Beaver","Beaver",70000,0,{"$f":"C280-D280","v":70000}]
["Gas Day:  ",null,null,null,"2021-01-03"]
["Receipt Point","Delivery Point","Operating Capacity (DTHS)","Schedule Volume (DTHS)","Estimated Available Capacity"]
["Kelso/Beaver","Port Westward",64000,0,{"$f":"C283-D283","v":64000}]
["Kelso/Beaver","Port Westward II",44000,2108,41892]
["Kelso/Beaver","N. Mist Storage",61000,48000,13000]
["Kelso/Beaver","Beaver Unit 8",7326,0,7326]
["Kelso/Beaver","Beaver 1 - 6",152400,0,152400]
["Mist Port Westward","Port Westward",70000,0,70000]
["Mist Port Westward II","Port Westward II",70000,0,70000]
["Mist Beaver","Beaver",70000,0,{"$f":"C290-D290","v":70000}]
["Gas Day:  ",null,null,null,"2021-01-02"]
["Receipt Point","Delivery Point","Operating Capacity (DTHS)","Schedule Volume (DTHS)","Estimated Available Capacity"]
["Kelso/Beaver","Port Westward",64000,0,{"$f":"C293-D293","v":64000}]
["Kelso/Beaver","Port Westward II",44000,2108,41892]
["Kelso/Beaver","N. Mist Storage",61000,48000,13000]
["Kelso/Beaver","Beaver Unit 8",7326,0,7326]
["Kelso/Beaver","Beaver 1 - 6",152400,0,152400]
["Mist Port Westward","Port Westward",70000,0,70000]
["Mist Port Westward II","Port Westward II",70000,0,70000]
["Mist Beaver","Beaver",70000,0,{"$f":"C300-D300","v":70000}]
["Gas Day:  ",null,null,null,"2021-01-01"]
["Receipt Point","Delivery Point","Operating Capacity (DTHS)","Schedule Volume (DTHS)","Estimated Available Capacity"]
["Kelso/Beaver","Port Westward",64000,0,{"$f":"C303-D303","v":64000}]
["Kelso/Beaver","Port Westward II",44000,2108,41892]
["Kelso/Beaver","N. Mist Storage",61000,48000,13000]
["Kelso/Beaver","Beaver Unit 8",7326,0,7326]
["Kelso/Beaver","Beaver 1 - 6",152400,0,152400]
["Mist Port Westward","Port Westward",70000,0,70000]
["Mist Port Westward II","Port Westward II",70000,0,70000]
["Mist Beaver","Beaver",70000,0,{"$f":"C310-D310","v":70000}]

{"sheet":"February","index":1,"n_rows":280,"n_cols":5,"rows_kept":280,"cut":false,"hidden":false,"merged":[]}
["Gas Day:  ",null,null,null,"2021-02-28"]
["Receipt Point","Delivery Point","Operating Capacity (DTHS)","Schedule Volume (DTHS)","Estimated Available Capacity"]
["Kelso/Beaver","Port Westward",64000,60000,{"$f":"C3-D3","v":4000}]
["Kelso/Beaver","Port Westward II",44000,3984,40016]
["Kelso/Beaver","N. Mist Storage",61000,0,61000]
["Kelso/Beaver","Beaver Unit 8",7326,0,7326]
["Kelso/Beaver","Beaver 1 - 6",152400,0,152400]
["Mist Port Westward","Port Westward",70000,0,70000]
["Mist Port Westward II","Port Westward II",70000,0,70000]
["Mist Beaver","Beaver",70000,0,{"$f":"C10-D10","v":70000}]
["Gas Day:  ",null,null,null,"2021-02-27"]
["Receipt Point","Delivery Point","Operating Capacity (DTHS)","Schedule Volume (DTHS)","Estimated Available Capacity"]
["Kelso/Beaver","Port Westward",64000,60000,{"$f":"C13-D13","v":4000}]
["Kelso/Beaver","Port Westward II",44000,3984,40016]
["Kelso/Beaver","N. Mist Storage",61000,0,61000]
["Kelso/Beaver","Beaver Unit 8",7326,0,7326]
["Kelso/Beaver","Beaver 1 - 6",152400,0,152400]
["Mist Port Westward","Port Westward",70000,0,70000]
["Mist Port Westward II","Port Westward II",70000,0,70000]
["Mist Beaver","Beaver",70000,0,{"$f":"C20-D20","v":70000}]
["Gas Day:  ",null,null,null,"2021-02-26"]
["Receipt Point","Delivery Point","Operating Capacity (DTHS)","Schedule Volume (DTHS)","Estimated Available Capacity"]
["Kelso/Beaver","Port Westward",64000,60000,{"$f":"C23-D23","v":4000}]
["Kelso/Beaver","Port Westward II",44000,3984,40016]
["Kelso/Beaver","N. Mist Storage",61000,0,61000]
["Kelso/Beaver","Beaver Unit 8",7326,0,7326]
["Kelso/Beaver","Beaver 1 - 6",152400,0,152400]
["Mist Port Westward","Port Westward",70000,0,70000]
["Mist Port Westward II","Port Westward II",70000,0,70000]
["Mist Beaver","Beaver",70000,0,{"$f":"C30-D30","v":70000}]
["Gas Day:  ",null,null,null,"2021-02-25"]
["Receipt Point","Delivery Point","Operating Capacity (DTHS)","Schedule Volume (DTHS)","Estimated Available Capacity"]
["Kelso/Beaver","Port Westward",64000,59028,{"$f":"C33-D33","v":4972}]
["Kelso/Beaver","Port Westward II",44000,0,44000]
["Kelso/Beaver","N. Mist Storage",61000,0,61000]
["Kelso/Beaver","Beaver Unit 8",7326,0,7326]
["Kelso/Beaver","Beaver 1 - 6",152400,0,152400]
["Mist Port Westward","Port Westward",70000,0,70000]
["Mist Port Westward II","Port Westward II",70000,0,70000]
["Mist Beaver","Beaver",70000,0,{"$f":"C40-D40","v":70000}]
["Gas Day:  ",null,null,null,"2021-02-24"]
["Receipt Point","Delivery Point","Operating Capacity (DTHS)","Schedule Volume (DTHS)","Estimated Available Capacity"]
["Kelso/Beaver","Port Westward",64000,58000,{"$f":"C43-D43","v":6000}]
["Kelso/Beaver","Port Westward II",44000,5985,38015]
["Kelso/Beaver","N. Mist Storage",61000,0,61000]
["Kelso/Beaver","Beaver Unit 8",7326,0,7326]
["Kelso/Beaver","Beaver 1 - 6",152400,0,152400]
["Mist Port Westward","Port Westward",70000,0,70000]
["Mist Port Westward II","Port Westward II",70000,0,70000]
["Mist Beaver","Beaver",70000,0,{"$f":"C50-D50","v":70000}]
["Gas Day:  ",null,null,null,"2021-02-23"]
["Receipt Point","Delivery Point","Operating Capacity (DTHS)","Schedule Volume (DTHS)","Estimated Available Capacity"]
["Kelso/Beaver","Port Westward",64000,57045,{"$f":"C53-D53","v":6955}]
["Kelso/Beaver","Port Westward II",44000,0,44000]
["Kelso/Beaver","N. Mist Storage",61000,0,61000]
["Kelso/Beaver","Beaver Unit 8",7326,0,7326]
["Kelso/Beaver","Beaver 1 - 6",152400,0,152400]
["Mist Port Westward","Port Westward",70000,0,70000]
["Mist Port Westward II","Port Westward II",70000,0,70000]
["Mist Beaver","Beaver",70000,0,{"$f":"C60-D60","v":70000}]
["Gas Day:  ",null,null,null,"2021-02-22"]
["Receipt Point","Delivery Point","Operating Capacity (DTHS)","Schedule Volume (DTHS)","Estimated Available Capacity"]
["Kelso/Beaver","Port Westward",64000,60020,{"$f":"C63-D63","v":3980}]
["Kelso/Beaver","Port Westward II",44000,0,44000]
["Kelso/Beaver","N. Mist Storage",61000,0,61000]
["Kelso/Beaver","Beaver Unit 8",7326,0,7326]
["Kelso/Beaver","Beaver 1 - 6",152400,0,152400]
["Mist Port Westward","Port Westward",70000,0,70000]
["Mist Port Westward II","Port Westward II",70000,0,70000]
["Mist Beaver","Beaver",70000,0,{"$f":"C70-D70","v":70000}]
["Gas Day:  ",null,null,null,"2021-02-21"]
["Receipt Point","Delivery Point","Operating Capacity (DTHS)","Schedule Volume (DTHS)","Estimated Available Capacity"]
["Kelso/Beaver","Port Westward",64000,60020,{"$f":"C73-D73","v":3980}]
["Kelso/Beaver","Port Westward II",44000,0,44000]
["Kelso/Beaver","N. Mist Storage",61000,0,61000]
["Kelso/Beaver","Beaver Unit 8",7326,0,7326]
["Kelso/Beaver","Beaver 1 - 6",152400,0,152400]
["Mist Port Westward","Port Westward",70000,0,70000]
["Mist Port Westward II","Port Westward II",70000,0,70000]
["Mist Beaver","Beaver",70000,0,{"$f":"C80-D80","v":70000}]
["Gas Day:  ",null,null,null,"2021-02-20"]
["Receipt Point","Delivery Point","Operating Capacity (DTHS)","Schedule Volume (DTHS)","Estimated Available Capacity"]
["Kelso/Beaver","Port Westward",64000,60020,{"$f":"C83-D83","v":3980}]
["Kelso/Beaver","Port Westward II",44000,0,44000]
["Kelso/Beaver","N. Mist Storage",61000,0,61000]
["Kelso/Beaver","Beaver Unit 8",7326,0,7326]
["Kelso/Beaver","Beaver 1 - 6",152400,0,152400]
["Mist Port Westward","Port Westward",70000,0,70000]
["Mist Port Westward II","Port Westward II",70000,0,70000]
["Mist Beaver","Beaver",70000,0,{"$f":"C90-D90","v":70000}]
["Gas Day:  ",null,null,null,"2021-02-19"]
["Receipt Point","Delivery Point","Operating Capacity (DTHS)","Schedule Volume (DTHS)","Estimated Available Capacity"]
["Kelso/Beaver","Port Westward",64000,0,{"$f":"C93-D93","v":64000}]
["Kelso/Beaver","Port Westward II",44000,20000,24000]
["Kelso/Beaver","N. Mist Storage",61000,15885,45115]
["Kelso/Beaver","Beaver Unit 8",7326,0,7326]
["Kelso/Beaver","Beaver 1 - 6",152400,28000,124400]
["Mist Port Westward","Port Westward",70000,0,70000]
["Mist Port Westward II","Port Westward II",70000,0,70000]
["Mist Beaver","Beaver",70000,0,{"$f":"C100-D100","v":70000}]
["Gas Day:  ",null,null,null,"2021-02-18"]
["Receipt Point","Delivery Point","Operating Capacity (DTHS)","Schedule Volume (DTHS)","Estimated Available Capacity"]
["Kelso/Beaver","Port Westward",64000,0,{"$f":"C103-D103","v":64000}]
["Kelso/Beaver","Port Westward II",44000,20000,24000]
["Kelso/Beaver","N. Mist Storage",61000,15371,45629]
["Kelso/Beaver","Beaver Unit 8",7326,0,7326]
["Kelso/Beaver","Beaver 1 - 6",152400,30000,122400]
["Mist Port Westward","Port Westward",70000,0,70000]
["Mist Port Westward II","Port Westward II",70000,0,70000]
["Mist Beaver","Beaver",70000,0,{"$f":"C110-D110","v":70000}]
["Gas Day:  ",null,null,null,"2021-02-17"]
["Receipt Point","Delivery Point","Operating Capacity (DTHS)","Schedule Volume (DTHS)","Estimated Available Capacity"]
["Kelso/Beaver","Port Westward",64000,0,{"$f":"C113-D113","v":64000}]
["Kelso/Beaver","Port Westward II",44000,22166,21834]
["Kelso/Beaver","N. Mist Storage",61000,15000,46000]
["Kelso/Beaver","Beaver Unit 8",7326,0,7326]
["Kelso/Beaver","Beaver 1 - 6",152400,40000,112400]
["Mist Port Westward","Port Westward",70000,0,70000]
["Mist Port Westward II","Port Westward II",70000,0,70000]
["Mist Beaver","Beaver",70000,0,{"$f":"C120-D120","v":70000}]
["Gas Day:  ",null,null,null,"2021-02-16"]
["Receipt Point","Delivery Point","Operating Capacity (DTHS)","Schedule Volume (DTHS)","Estimated Available Capacity"]
["Kelso/Beaver","Port Westward",64000,0,{"$f":"C123-D123","v":64000}]
["Kelso/Beaver","Port Westward II",44000,14098,29902]
["Kelso/Beaver","N. Mist Storage",61000,0,61000]
["Kelso/Beaver","Beaver Unit 8",7326,0,7326]
["Kelso/Beaver","Beaver 1 - 6",152400,35000,117400]
["Mist Port Westward","Port Westward",70000,0,70000]
["Mist Port Westward II","Port Westward II",70000,0,70000]
["Mist Beaver","Beaver",70000,0,{"$f":"C130-D130","v":70000}]
["Gas Day:  ",null,null,null,"2021-02-15"]
["Receipt Point","Delivery Point","Operating Capacity (DTHS)","Schedule Volume (DTHS)","Estimated Available Capacity"]
["Kelso/Beaver","Port Westward",64000,0,{"$f":"C133-D133","v":64000}]
["Kelso/Beaver","Port Westward II",44000,14098,29902]
["Kelso/Beaver","N. Mist Storage",61000,0,61000]
["Kelso/Beaver","Beaver Unit 8",7326,0,7326]
["Kelso/Beaver","Beaver 1 - 6",152400,35000,117400]
["Mist Port Westward","Port Westward",70000,0,70000]
["Mist Port Westward II","Port Westward II",70000,0,70000]
["Mist Beaver","Beaver",70000,0,{"$f":"C140-D140","v":70000}]
["Gas Day:  ",null,null,null,"2021-02-14"]
["Receipt Point","Delivery Point","Operating Capacity (DTHS)","Schedule Volume (DTHS)","Estimated Available Capacity"]
["Kelso/Beaver","Port Westward",64000,0,{"$f":"C143-D143","v":64000}]
["Kelso/Beaver","Port Westward II",44000,14098,29902]
["Kelso/Beaver","N. Mist Storage",61000,0,61000]
["Kelso/Beaver","Beaver Unit 8",7326,0,7326]
["Kelso/Beaver","Beaver 1 - 6",152400,35000,117400]
["Mist Port Westward","Port Westward",70000,0,70000]
["Mist Port Westward II","Port Westward II",70000,0,70000]
["Mist Beaver","Beaver",70000,0,{"$f":"C150-D150","v":70000}]
["Gas Day:  ",null,null,null,"2021-02-13"]
["Receipt Point","Delivery Point","Operating Capacity (DTHS)","Schedule Volume (DTHS)","Estimated Available Capacity"]
["Kelso/Beaver","Port Westward",64000,0,{"$f":"C153-D153","v":64000}]
["Kelso/Beaver","Port Westward II",44000,14098,29902]
["Kelso/Beaver","N. Mist Storage",61000,0,61000]
["Kelso/Beaver","Beaver Unit 8",7326,0,7326]
["Kelso/Beaver","Beaver 1 - 6",152400,35000,117400]
["Mist Port Westward","Port Westward",70000,0,70000]
["Mist Port Westward II","Port Westward II",70000,0,70000]
["Mist Beaver","Beaver",70000,0,{"$f":"C160-D160","v":70000}]
["Gas Day:  ",null,null,null,"2021-02-12"]
["Receipt Point","Delivery Point","Operating Capacity (DTHS)","Schedule Volume (DTHS)","Estimated Available Capacity"]
["Kelso/Beaver","Port Westward",64000,0,{"$f":"C163-D163","v":64000}]
["Kelso/Beaver","Port Westward II",44000,20089,23911]
["Kelso/Beaver","N. Mist Storage",61000,0,61000]
["Kelso/Beaver","Beaver Unit 8",7326,0,7326]
["Kelso/Beaver","Beaver 1 - 6",152400,30000,122400]
["Mist Port Westward","Port Westward",70000,0,70000]
["Mist Port Westward II","Port Westward II",70000,0,70000]
["Mist Beaver","Beaver",70000,0,{"$f":"C170-D170","v":70000}]
["Gas Day:  ",null,null,null,"2021-02-11"]
["Receipt Point","Delivery Point","Operating Capacity (DTHS)","Schedule Volume (DTHS)","Estimated Available Capacity"]
["Kelso/Beaver","Port Westward",64000,0,{"$f":"C173-D173","v":64000}]
["Kelso/Beaver","Port Westward II",44000,0,44000]
["Kelso/Beaver","N. Mist Storage",61000,10000,51000]
["Kelso/Beaver","Beaver Unit 8",7326,0,7326]
["Kelso/Beaver","Beaver 1 - 6",152400,50000,102400]
["Mist Port Westward","Port Westward",70000,0,70000]
["Mist Port Westward II","Port Westward II",70000,0,70000]
["Mist Beaver","Beaver",70000,0,{"$f":"C180-D180","v":70000}]
["Gas Day:  ",null,null,null,"2021-02-10"]
["Receipt Point","Delivery Point","Operating Capacity (DTHS)","Schedule Volume (DTHS)","Estimated Available Capacity"]
["Kelso/Beaver","Port Westward",64000,0,{"$f":"C183-D183","v":64000}]
["Kelso/Beaver","Port Westward II",44000,0,44000]
["Kelso/Beaver","N. Mist Storage",61000,10001,50999]
["Kelso/Beaver","Beaver Unit 8",7326,0,7326]
["Kelso/Beaver","Beaver 1 - 6",152400,50000,102400]
["Mist Port Westward","Port Westward",70000,0,70000]
["Mist Port Westward II","Port Westward II",70000,0,70000]
["Mist Beaver","Beaver",70000,0,{"$f":"C190-D190","v":70000}]
["Gas Day:  ",null,null,null,"2021-02-09"]
["Receipt Point","Delivery Point","Operating Capacity (DTHS)","Schedule Volume (DTHS)","Estimated Available Capacity"]
["Kelso/Beaver","Port Westward",64000,0,{"$f":"C193-D193","v":64000}]
["Kelso/Beaver","Port Westward II",44000,0,44000]
["Kelso/Beaver","N. Mist Storage",61000,9998,51002]
["Kelso/Beaver","Beaver Unit 8",7326,0,7326]
["Kelso/Beaver","Beaver 1 - 6",152400,40000,112400]
["Mist Port Westward","Port Westward",70000,0,70000]
["Mist Port Westward II","Port Westward II",70000,0,70000]
["Mist Beaver","Beaver",70000,0,{"$f":"C200-D200","v":70000}]
["Gas Day:  ",null,null,null,"2021-02-08"]
["Receipt Point","Delivery Point","Operating Capacity (DTHS)","Schedule Volume (DTHS)","Estimated Available Capacity"]
["Kelso/Beaver","Port Westward",64000,0,{"$f":"C203-D203","v":64000}]
["Kelso/Beaver","Port Westward II",44000,0,44000]
["Kelso/Beaver","N. Mist Storage",61000,10109,50891]
["Kelso/Beaver","Beaver Unit 8",7326,0,7326]
["Kelso/Beaver","Beaver 1 - 6",152400,40000,112400]
["Mist Port Westward","Port Westward",70000,0,70000]
["Mist Port Westward II","Port Westward II",70000,0,70000]
["Mist Beaver","Beaver",70000,0,{"$f":"C210-D210","v":70000}]
["Gas Day:  ",null,null,null,"2021-02-07"]
["Receipt Point","Delivery Point","Operating Capacity (DTHS)","Schedule Volume (DTHS)","Estimated Available Capacity"]
["Kelso/Beaver","Port Westward",64000,0,{"$f":"C213-D213","v":64000}]
["Kelso/Beaver","Port Westward II",44000,12109,31891]
["Kelso/Beaver","N. Mist Storage",61000,38000,23000]
["Kelso/Beaver","Beaver Unit 8",7326,0,7326]
["Kelso/Beaver","Beaver 1 - 6",152400,0,152400]
["Mist Port Westward","Port Westward",70000,0,70000]
["Mist Port Westward II","Port Westward II",70000,0,70000]
["Mist Beaver","Beaver",70000,0,{"$f":"C220-D220","v":70000}]
["Gas Day:  ",null,null,null,"2021-02-06"]
["Receipt Point","Delivery Point","Operating Capacity (DTHS)","Schedule Volume (DTHS)","Estimated Available Capacity"]
["Kelso/Beaver","Port Westward",64000,0,{"$f":"C223-D223","v":64000}]
["Kelso/Beaver","Port Westward II",44000,2109,41891]
["Kelso/Beaver","N. Mist Storage",61000,48000,13000]
["Kelso/Beaver","Beaver Unit 8",7326,0,7326]
["Kelso/Beaver","Beaver 1 - 6",152400,0,152400]
["Mist Port Westward","Port Westward",70000,0,70000]
["Mist Port Westward II","Port Westward II",70000,0,70000]
["Mist Beaver","Beaver",70000,0,{"$f":"C230-D230","v":70000}]
["Gas Day:  ",null,null,null,"2021-02-05"]
["Receipt Point","Delivery Point","Operating Capacity (DTHS)","Schedule Volume (DTHS)","Estimated Available Capacity"]
["Kelso/Beaver","Port Westward",64000,0,{"$f":"C233-D233","v":64000}]
["Kelso/Beaver","Port Westward II",44000,0,44000]
["Kelso/Beaver","N. Mist Storage",61000,46143,14857]
["Kelso/Beaver","Beaver Unit 8",7326,0,7326]
["Kelso/Beaver","Beaver 1 - 6",152400,0,152400]
["Mist Port Westward","Port Westward",70000,0,70000]
["Mist Port Westward II","Port Westward II",70000,0,70000]
["Mist Beaver","Beaver",70000,0,{"$f":"C240-D240","v":70000}]
["Gas Day:  ",null,null,null,"2021-02-04"]
["Receipt Point","Delivery Point","Operating Capacity (DTHS)","Schedule Volume (DTHS)","Estimated Available Capacity"]
["Kelso/Beaver","Port Westward",64000,0,{"$f":"C243-D243","v":64000}]
["Kelso/Beaver","Port Westward II",44000,5108,38892]
["Kelso/Beaver","N. Mist Storage",61000,45000,16000]
["Kelso/Beaver","Beaver Unit 8",7326,0,7326]
["Kelso/Beaver","Beaver 1 - 6",152400,0,152400]
["Mist Port Westward","Port Westward",70000,0,70000]
["Mist Port Westward II","Port Westward II",70000,0,70000]
["Mist Beaver","Beaver",70000,0,{"$f":"C250-D250","v":70000}]
["Gas Day:  ",null,null,null,"2021-02-03"]
["Receipt Point","Delivery Point","Operating Capacity (DTHS)","Schedule Volume (DTHS)","Estimated Available Capacity"]
["Kelso/Beaver","Port Westward",64000,0,{"$f":"C253-D253","v":64000}]
["Kelso/Beaver","Port Westward II",44000,10108,33892]
["Kelso/Beaver","N. Mist Storage",61000,40000,21000]
["Kelso/Beaver","Beaver Unit 8",7326,0,7326]
["Kelso/Beaver","Beaver 1 - 6",152400,0,152400]
["Mist Port Westward","Port Westward",70000,0,70000]
["Mist Port Westward II","Port Westward II",70000,0,70000]
["Mist Beaver","Beaver",70000,0,{"$f":"C260-D260","v":70000}]
["Gas Day:  ",null,null,null,"2021-02-02"]
["Receipt Point","Delivery Point","Operating Capacity (DTHS)","Schedule Volume (DTHS)","Estimated Available Capacity"]
["Kelso/Beaver","Port Westward",64000,0,{"$f":"C263-D263","v":64000}]
["Kelso/Beaver","Port Westward II",44000,15108,28892]
["Kelso/Beaver","N. Mist Storage",61000,35000,26000]
["Kelso/Beaver","Beaver Unit 8",7326,0,7326]
["Kelso/Beaver","Beaver 1 - 6",152400,0,152400]
["Mist Port Westward","Port Westward",70000,0,70000]
["Mist Port Westward II","Port Westward II",70000,0,70000]
["Mist Beaver","Beaver",70000,0,{"$f":"C270-D270","v":70000}]
["Gas Day:  ",null,null,null,"2021-02-01"]
["Receipt Point","Delivery Point","Operating Capacity (DTHS)","Schedule Volume (DTHS)","Estimated Available Capacity"]
["Kelso/Beaver","Port Westward",64000,0,{"$f":"C273-D273","v":64000}]
["Kelso/Beaver","Port Westward II",44000,2108,41892]
["Kelso/Beaver","N. Mist Storage",61000,48000,13000]
["Kelso/Beaver","Beaver Unit 8",7326,0,7326]
["Kelso/Beaver","Beaver 1 - 6",152400,0,152400]
["Mist Port Westward","Port Westward",70000,0,70000]
["Mist Port Westward II","Port Westward II",70000,0,70000]
["Mist Beaver","Beaver",70000,0,{"$f":"C280-D280","v":70000}]

{"sheet":"March","index":2,"n_rows":310,"n_cols":5,"rows_kept":310,"cut":false,"hidden":false,"merged":[]}
["Gas Day:  ",null,null,null,"2021-03-31"]
["Receipt Point","Delivery Point","Operating Capacity (DTHS)","Schedule Volume (DTHS)","Estimated Available Capacity"]
["Kelso/Beaver","Port Westward",64000,64000,{"$f":"C3-D3","v":0}]
["Kelso/Beaver","Port Westward II",44000,24038,19962]
["Kelso/Beaver","N. Mist Storage",61000,35000,26000]
["Kelso/Beaver","Beaver Unit 8",7326,0,7326]
["Kelso/Beaver","Beaver 1 - 6",152400,0,152400]
["Mist Port Westward","Port Westward",70000,0,70000]
["Mist Port Westward II","Port Westward II",70000,0,70000]
["Mist Beaver","Beaver",70000,0,{"$f":"C10-D10","v":70000}]
["Gas Day:  ",null,null,null,"2021-03-30"]
["Receipt Point","Delivery Point","Operating Capacity (DTHS)","Schedule Volume (DTHS)","Estimated Available Capacity"]
["Kelso/Beaver","Port Westward",64000,64000,{"$f":"C13-D13","v":0}]
["Kelso/Beaver","Port Westward II",44000,24643,19357]
["Kelso/Beaver","N. Mist Storage",61000,35000,26000]
["Kelso/Beaver","Beaver Unit 8",7326,0,7326]
["Kelso/Beaver","Beaver 1 - 6",152400,0,152400]
["Mist Port Westward","Port Westward",70000,0,70000]
["Mist Port Westward II","Port Westward II",70000,0,70000]
["Mist Beaver","Beaver",70000,0,{"$f":"C20-D20","v":70000}]
["Gas Day:  ",null,null,null,"2021-03-29"]
["Receipt Point","Delivery Point","Operating Capacity (DTHS)","Schedule Volume (DTHS)","Estimated Available Capacity"]
["Kelso/Beaver","Port Westward",64000,60000,{"$f":"C23-D23","v":4000}]
["Kelso/Beaver","Port Westward II",44000,0,44000]
["Kelso/Beaver","N. Mist Storage",61000,35294,25706]
["Kelso/Beaver","Beaver Unit 8",7326,0,7326]
["Kelso/Beaver","Beaver 1 - 6",152400,0,152400]
["Mist Port Westward","Port Westward",70000,0,70000]
["Mist Port Westward II","Port Westward II",70000,0,70000]
["Mist Beaver","Beaver",70000,0,{"$f":"C30-D30","v":70000}]
["Gas Day:  ",null,null,null,"2021-03-28"]
["Receipt Point","Delivery Point","Operating Capacity (DTHS)","Schedule Volume (DTHS)","Estimated Available Capacity"]
["Kelso/Beaver","Port Westward",64000,60000,{"$f":"C33-D33","v":4000}]
["Kelso/Beaver","Port Westward II",44000,0,44000]
["Kelso/Beaver","N. Mist Storage",61000,35294,25706]
["Kelso/Beaver","Beaver Unit 8",7326,0,7326]
["Kelso/Beaver","Beaver 1 - 6",152400,0,152400]
["Mist Port Westward","Port Westward",70000,0,70000]
["Mist Port Westward II","Port Westward II",70000,0,70000]
["Mist Beaver","Beaver",70000,0,{"$f":"C40-D40","v":70000}]
["Gas Day:  ",null,null,null,"2021-03-27"]
["Receipt Point","Delivery Point","Operating Capacity (DTHS)","Schedule Volume (DTHS)","Estimated Available Capacity"]
["Kelso/Beaver","Port Westward",64000,60000,{"$f":"C43-D43","v":4000}]
["Kelso/Beaver","Port Westward II",44000,0,44000]
["Kelso/Beaver","N. Mist Storage",61000,35294,25706]
["Kelso/Beaver","Beaver Unit 8",7326,0,7326]
["Kelso/Beaver","Beaver 1 - 6",152400,0,152400]
["Mist Port Westward","Port Westward",70000,0,70000]
["Mist Port Westward II","Port Westward II",70000,0,70000]
["Mist Beaver","Beaver",70000,0,{"$f":"C50-D50","v":70000}]
["Gas Day:  ",null,null,null,"2021-03-26"]
["Receipt Point","Delivery Point","Operating Capacity (DTHS)","Schedule Volume (DTHS)","Estimated Available Capacity"]
["Kelso/Beaver","Port Westward",64000,60000,{"$f":"C53-D53","v":4000}]
["Kelso/Beaver","Port Westward II",44000,4974,39026]
["Kelso/Beaver","N. Mist Storage",61000,0,61000]
["Kelso/Beaver","Beaver Unit 8",7326,0,7326]
["Kelso/Beaver","Beaver 1 - 6",152400,0,152400]
["Mist Port Westward","Port Westward",70000,0,70000]
["Mist Port Westward II","Port Westward II",70000,0,70000]
["Mist Beaver","Beaver",70000,0,{"$f":"C60-D60","v":70000}]
["Gas Day:  ",null,null,null,"2021-03-25"]
["Receipt Point","Delivery Point","Operating Capacity (DTHS)","Schedule Volume (DTHS)","Estimated Available Capacity"]
["Kelso/Beaver","Port Westward",64000,60000,{"$f":"C63-D63","v":4000}]
["Kelso/Beaver","Port Westward II",44000,4974,39026]
["Kelso/Beaver","N. Mist Storage",61000,0,61000]
["Kelso/Beaver","Beaver Unit 8",7326,0,7326]
["Kelso/Beaver","Beaver 1 - 6",152400,0,152400]
["Mist Port Westward","Port Westward",70000,0,70000]
["Mist Port Westward II","Port Westward II",70000,0,70000]
["Mist Beaver","Beaver",70000,0,{"$f":"C70-D70","v":70000}]
["Gas Day:  ",null,null,null,"2021-03-24"]
["Receipt Point","Delivery Point","Operating Capacity (DTHS)","Schedule Volume (DTHS)","Estimated Available Capacity"]
["Kelso/Beaver","Port Westward",64000,64000,{"$f":"C73-D73","v":0}]
["Kelso/Beaver","Port Westward II",44000,10886,33114]
["Kelso/Beaver","N. Mist Storage",61000,0,61000]
["Kelso/Beaver","Beaver Unit 8",7326,0,7326]
["Kelso/Beaver","Beaver 1 - 6",152400,0,152400]
["Mist Port Westward","Port Westward",70000,0,70000]
["Mist Port Westward II","Port Westward II",70000,0,70000]
["Mist Beaver","Beaver",70000,0,{"$f":"C80-D80","v":70000}]
["Gas Day:  ",null,null,null,"2021-03-23"]
["Receipt Point","Delivery Point","Operating Capacity (DTHS)","Schedule Volume (DTHS)","Estimated Available Capacity"]
["Kelso/Beaver","Port Westward",64000,64000,{"$f":"C83-D83","v":0}]
["Kelso/Beaver","Port Westward II",44000,19036,24964]
["Kelso/Beaver","N. Mist Storage",61000,0,61000]
["Kelso/Beaver","Beaver Unit 8",7326,0,7326]
["Kelso/Beaver","Beaver 1 - 6",152400,20000,132400]
["Mist Port Westward","Port Westward",70000,0,70000]
["Mist Port Westward II","Port Westward II",70000,0,70000]
["Mist Beaver","Beaver",70000,0,{"$f":"C90-D90","v":70000}]
["Gas Day:  ",null,null,null,"2021-03-22"]
["Receipt Point","Delivery Point","Operating Capacity (DTHS)","Schedule Volume (DTHS)","Estimated Available Capacity"]
["Kelso/Beaver","Port Westward",64000,64000,{"$f":"C93-D93","v":0}]
["Kelso/Beaver","Port Westward II",44000,15842,28158]
["Kelso/Beaver","N. Mist Storage",61000,0,61000]
["Kelso/Beaver","Beaver Unit 8",7326,0,7326]
["Kelso/Beaver","Beaver 1 - 6",152400,0,152400]
["Mist Port Westward","Port Westward",70000,0,70000]
["Mist Port Westward II","Port Westward II",70000,0,70000]
["Mist Beaver","Beaver",70000,0,{"$f":"C100-D100","v":70000}]
["Gas Day:  ",null,null,null,"2021-03-21"]
["Receipt Point","Delivery Point","Operating Capacity (DTHS)","Schedule Volume (DTHS)","Estimated Available Capacity"]
["Kelso/Beaver","Port Westward",64000,64000,{"$f":"C103-D103","v":0}]
["Kelso/Beaver","Port Westward II",44000,15842,28158]
["Kelso/Beaver","N. Mist Storage",61000,0,61000]
["Kelso/Beaver","Beaver Unit 8",7326,0,7326]
["Kelso/Beaver","Beaver 1 - 6",152400,0,152400]
["Mist Port Westward","Port Westward",70000,0,70000]
["Mist Port Westward II","Port Westward II",70000,0,70000]
["Mist Beaver","Beaver",70000,0,{"$f":"C110-D110","v":70000}]
["Gas Day:  ",null,null,null,"2021-03-20"]
["Receipt Point","Delivery Point","Operating Capacity (DTHS)","Schedule Volume (DTHS)","Estimated Available Capacity"]
["Kelso/Beaver","Port Westward",64000,64000,{"$f":"C113-D113","v":0}]
["Kelso/Beaver","Port Westward II",44000,15842,28158]
["Kelso/Beaver","N. Mist Storage",61000,0,61000]
["Kelso/Beaver","Beaver Unit 8",7326,0,7326]
["Kelso/Beaver","Beaver 1 - 6",152400,0,152400]
["Mist Port Westward","Port Westward",70000,0,70000]
["Mist Port Westward II","Port Westward II",70000,0,70000]
["Mist Beaver","Beaver",70000,0,{"$f":"C120-D120","v":70000}]
["Gas Day:  ",null,null,null,"2021-03-19"]
["Receipt Point","Delivery Point","Operating Capacity (DTHS)","Schedule Volume (DTHS)","Estimated Available Capacity"]
["Kelso/Beaver","Port Westward",64000,64000,{"$f":"C123-D123","v":0}]
["Kelso/Beaver","Port Westward II",44000,19036,24964]
["Kelso/Beaver","N. Mist Storage",61000,0,61000]
["Kelso/Beaver","Beaver Unit 8",7326,0,7326]
["Kelso/Beaver","Beaver 1 - 6",152400,20000,132400]
["Mist Port Westward","Port Westward",70000,0,70000]
["Mist Port Westward II","Port Westward II",70000,0,70000]
["Mist Beaver","Beaver",70000,0,{"$f":"C130-D130","v":70000}]
["Gas Day:  ",null,null,null,"2021-03-18"]
["Receipt Point","Delivery Point","Operating Capacity (DTHS)","Schedule Volume (DTHS)","Estimated Available Capacity"]
["Kelso/Beaver","Port Westward",64000,64000,{"$f":"C133-D133","v":0}]
["Kelso/Beaver","Port Westward II",44000,0,44000]
["Kelso/Beaver","N. Mist Storage",61000,0,61000]
["Kelso/Beaver","Beaver Unit 8",7326,0,7326]
["Kelso/Beaver","Beaver 1 - 6",152400,39036,113364]
["Mist Port Westward","Port Westward",70000,0,70000]
["Mist Port Westward II","Port Westward II",70000,0,70000]
["Mist Beaver","Beaver",70000,0,{"$f":"C140-D140","v":70000}]
["Gas Day:  ",null,null,null,"2021-03-17"]
["Receipt Point","Delivery Point","Operating Capacity (DTHS)","Schedule Volume (DTHS)","Estimated Available Capacity"]
["Kelso/Beaver","Port Westward",64000,64000,{"$f":"C143-D143","v":0}]
["Kelso/Beaver","Port Westward II",44000,38166,5834]
["Kelso/Beaver","N. Mist Storage",61000,0,61000]
["Kelso/Beaver","Beaver Unit 8",7326,0,7326]
["Kelso/Beaver","Beaver 1 - 6",152400,0,152400]
["Mist Port Westward","Port Westward",70000,0,70000]
["Mist Port Westward II","Port Westward II",70000,0,70000]
["Mist Beaver","Beaver",70000,0,{"$f":"C150-D150","v":70000}]
["Gas Day:  ",null,null,null,"2021-03-16"]
["Receipt Point","Delivery Point","Operating Capacity (DTHS)","Schedule Volume (DTHS)","Estimated Available Capacity"]
["Kelso/Beaver","Port Westward",64000,64000,{"$f":"C153-D153","v":0}]
["Kelso/Beaver","Port Westward II",44000,38661,5339]
["Kelso/Beaver","N. Mist Storage",61000,0,61000]
["Kelso/Beaver","Beaver Unit 8",7326,0,7326]
["Kelso/Beaver","Beaver 1 - 6",152400,0,152400]
["Mist Port Westward","Port Westward",70000,0,70000]
["Mist Port Westward II","Port Westward II",70000,0,70000]
["Mist Beaver","Beaver",70000,0,{"$f":"C160-D160","v":70000}]
["Gas Day:  ",null,null,null,"2021-03-15"]
["Receipt Point","Delivery Point","Operating Capacity (DTHS)","Schedule Volume (DTHS)","Estimated Available Capacity"]
["Kelso/Beaver","Port Westward",64000,64000,{"$f":"C163-D163","v":0}]
["Kelso/Beaver","Port Westward II",44000,38165,5835]
["Kelso/Beaver","N. Mist Storage",61000,0,61000]
["Kelso/Beaver","Beaver Unit 8",7326,0,7326]
["Kelso/Beaver","Beaver 1 - 6",152400,0,152400]
["Mist Port Westward","Port Westward",70000,0,70000]
["Mist Port Westward II","Port Westward II",70000,0,70000]
["Mist Beaver","Beaver",70000,0,{"$f":"C170-D170","v":70000}]
["Gas Day:  ",null,null,null,"2021-03-14"]
["Receipt Point","Delivery Point","Operating Capacity (DTHS)","Schedule Volume (DTHS)","Estimated Available Capacity"]
["Kelso/Beaver","Port Westward",64000,64000,{"$f":"C173-D173","v":0}]
["Kelso/Beaver","Port Westward II",44000,38165,5835]
["Kelso/Beaver","N. Mist Storage",61000,0,61000]
["Kelso/Beaver","Beaver Unit 8",7326,0,7326]
["Kelso/Beaver","Beaver 1 - 6",152400,0,152400]
["Mist Port Westward","Port Westward",70000,0,70000]
["Mist Port Westward II","Port Westward II",70000,0,70000]
["Mist Beaver","Beaver",70000,0,{"$f":"C180-D180","v":70000}]
["Gas Day:  ",null,null,null,"2021-03-13"]
["Receipt Point","Delivery Point","Operating Capacity (DTHS)","Schedule Volume (DTHS)","Estimated Available Capacity"]
["Kelso/Beaver","Port Westward",64000,64000,{"$f":"C183-D183","v":0}]
["Kelso/Beaver","Port Westward II",44000,38165,5835]
["Kelso/Beaver","N. Mist Storage",61000,0,61000]
["Kelso/Beaver","Beaver Unit 8",7326,0,7326]
["Kelso/Beaver","Beaver 1 - 6",152400,0,152400]
["Mist Port Westward","Port Westward",70000,0,70000]
["Mist Port Westward II","Port Westward II",70000,0,70000]
["Mist Beaver","Beaver",70000,0,{"$f":"C190-D190","v":70000}]
["Gas Day:  ",null,null,null,"2021-03-12"]
["Receipt Point","Delivery Point","Operating Capacity (DTHS)","Schedule Volume (DTHS)","Estimated Available Capacity"]
["Kelso/Beaver","Port Westward",64000,64000,{"$f":"C193-D193","v":0}]
["Kelso/Beaver","Port Westward II",44000,39346,4654]
["Kelso/Beaver","N. Mist Storage",61000,0,61000]
["Kelso/Beaver","Beaver Unit 8",7326,0,7326]
["Kelso/Beaver","Beaver 1 - 6",152400,0,152400]
["Mist Port Westward","Port Westward",70000,0,70000]
["Mist Port Westward II","Port Westward II",70000,0,70000]
["Mist Beaver","Beaver",70000,0,{"$f":"C200-D200","v":70000}]
["Gas Day:  ",null,null,null,"2021-03-11"]
["Receipt Point","Delivery Point","Operating Capacity (DTHS)","Schedule Volume (DTHS)","Estimated Available Capacity"]
["Kelso/Beaver","Port Westward",64000,64000,{"$f":"C203-D203","v":0}]
["Kelso/Beaver","Port Westward II",44000,39347,4653]
["Kelso/Beaver","N. Mist Storage",61000,0,61000]
["Kelso/Beaver","Beaver Unit 8",7326,0,7326]
["Kelso/Beaver","Beaver 1 - 6",152400,0,152400]
["Mist Port Westward","Port Westward",70000,0,70000]
["Mist Port Westward II","Port Westward II",70000,0,70000]
["Mist Beaver","Beaver",70000,0,{"$f":"C210-D210","v":70000}]
["Gas Day:  ",null,null,null,"2021-03-10"]
["Receipt Point","Delivery Point","Operating Capacity (DTHS)","Schedule Volume (DTHS)","Estimated Available Capacity"]
["Kelso/Beaver","Port Westward",64000,64000,{"$f":"C213-D213","v":0}]
["Kelso/Beaver","Port Westward II",44000,38937,5063]
["Kelso/Beaver","N. Mist Storage",61000,0,61000]
["Kelso/Beaver","Beaver Unit 8",7326,0,7326]
["Kelso/Beaver","Beaver 1 - 6",152400,0,152400]
["Mist Port Westward","Port Westward",70000,0,70000]
["Mist Port Westward II","Port Westward II",70000,0,70000]
["Mist Beaver","Beaver",70000,0,{"$f":"C220-D220","v":70000}]
["Gas Day:  ",null,null,null,"2021-03-09"]
["Receipt Point","Delivery Point","Operating Capacity (DTHS)","Schedule Volume (DTHS)","Estimated Available Capacity"]
["Kelso/Beaver","Port Westward",64000,64000,{"$f":"C223-D223","v":0}]
["Kelso/Beaver","Port Westward II",44000,39036,4964]
["Kelso/Beaver","N. Mist Storage",61000,0,61000]
["Kelso/Beaver","Beaver Unit 8",7326,0,7326]
["Kelso/Beaver","Beaver 1 - 6",152400,0,152400]
["Mist Port Westward","Port Westward",70000,0,70000]
["Mist Port Westward II","Port Westward II",70000,0,70000]
["Mist Beaver","Beaver",70000,0,{"$f":"C230-D230","v":70000}]
["Gas Day:  ",null,null,null,"2021-03-08"]
["Receipt Point","Delivery Point","Operating Capacity (DTHS)","Schedule Volume (DTHS)","Estimated Available Capacity"]
["Kelso/Beaver","Port Westward",64000,64000,{"$f":"C233-D233","v":0}]
["Kelso/Beaver","Port Westward II",44000,26349,17651]
["Kelso/Beaver","N. Mist Storage",61000,0,61000]
["Kelso/Beaver","Beaver Unit 8",7326,0,7326]
["Kelso/Beaver","Beaver 1 - 6",152400,0,152400]
["Mist Port Westward","Port Westward",70000,0,70000]
["Mist Port Westward II","Port Westward II",70000,0,70000]
["Mist Beaver","Beaver",70000,0,{"$f":"C240-D240","v":70000}]
["Gas Day:  ",null,null,null,"2021-03-07"]
["Receipt Point","Delivery Point","Operating Capacity (DTHS)","Schedule Volume (DTHS)","Estimated Available Capacity"]
["Kelso/Beaver","Port Westward",64000,64000,{"$f":"C243-D243","v":0}]
["Kelso/Beaver","Port Westward II",44000,26349,17651]
["Kelso/Beaver","N. Mist Storage",61000,0,61000]
["Kelso/Beaver","Beaver Unit 8",7326,0,7326]
["Kelso/Beaver","Beaver 1 - 6",152400,0,152400]
["Mist Port Westward","Port Westward",70000,0,70000]
["Mist Port Westward II","Port Westward II",70000,0,70000]
["Mist Beaver","Beaver",70000,0,{"$f":"C250-D250","v":70000}]
["Gas Day:  ",null,null,null,"2021-03-06"]
["Receipt Point","Delivery Point","Operating Capacity (DTHS)","Schedule Volume (DTHS)","Estimated Available Capacity"]
["Kelso/Beaver","Port Westward",64000,64000,{"$f":"C253-D253","v":0}]
["Kelso/Beaver","Port Westward II",44000,26349,17651]
["Kelso/Beaver","N. Mist Storage",61000,0,61000]
["Kelso/Beaver","Beaver Unit 8",7326,0,7326]
["Kelso/Beaver","Beaver 1 - 6",152400,0,152400]
["Mist Port Westward","Port Westward",70000,0,70000]
["Mist Port Westward II","Port Westward II",70000,0,70000]
["Mist Beaver","Beaver",70000,0,{"$f":"C260-D260","v":70000}]
["Gas Day:  ",null,null,null,"2021-03-05"]
["Receipt Point","Delivery Point","Operating Capacity (DTHS)","Schedule Volume (DTHS)","Estimated Available Capacity"]
["Kelso/Beaver","Port Westward",64000,64000,{"$f":"C263-D263","v":0}]
["Kelso/Beaver","Port Westward II",44000,20798,23202]
["Kelso/Beaver","N. Mist Storage",61000,0,61000]
["Kelso/Beaver","Beaver Unit 8",7326,0,7326]
["Kelso/Beaver","Beaver 1 - 6",152400,0,152400]
["Mist Port Westward","Port Westward",70000,0,70000]
["Mist Port Westward II","Port Westward II",70000,0,70000]
["Mist Beaver","Beaver",70000,0,{"$f":"C270-D270","v":70000}]
["Gas Day:  ",null,null,null,"2021-03-04"]
["Receipt Point","Delivery Point","Operating Capacity (DTHS)","Schedule Volume (DTHS)","Estimated Available Capacity"]
["Kelso/Beaver","Port Westward",64000,64000,{"$f":"C273-D273","v":0}]
["Kelso/Beaver","Port Westward II",44000,15842,28158]
["Kelso/Beaver","N. Mist Storage",61000,0,61000]
["Kelso/Beaver","Beaver Unit 8",7326,0,7326]
["Kelso/Beaver","Beaver 1 - 6",152400,0,152400]
["Mist Port Westward","Port Westward",70000,0,70000]
["Mist Port Westward II","Port Westward II",70000,0,70000]
["Mist Beaver","Beaver",70000,0,{"$f":"C280-D280","v":70000}]
["Gas Day:  ",null,null,null,"2021-03-03"]
["Receipt Point","Delivery Point","Operating Capacity (DTHS)","Schedule Volume (DTHS)","Estimated Available Capacity"]
["Kelso/Beaver","Port Westward",64000,60000,{"$f":"C283-D283","v":4000}]
["Kelso/Beaver","Port Westward II",44000,19842,24158]
["Kelso/Beaver","N. Mist Storage",61000,0,61000]
["Kelso/Beaver","Beaver Unit 8",7326,0,7326]
["Kelso/Beaver","Beaver 1 - 6",152400,0,152400]
["Mist Port Westward","Port Westward",70000,0,70000]
["Mist Port Westward II","Port Westward II",70000,0,70000]
["Mist Beaver","Beaver",70000,0,{"$f":"C290-D290","v":70000}]
["Gas Day:  ",null,null,null,"2021-03-02"]
["Receipt Point","Delivery Point","Operating Capacity (DTHS)","Schedule Volume (DTHS)","Estimated Available Capacity"]
["Kelso/Beaver","Port Westward",64000,60000,{"$f":"C293-D293","v":4000}]
["Kelso/Beaver","Port Westward II",44000,9931,34069]
["Kelso/Beaver","N. Mist Storage",61000,0,61000]
["Kelso/Beaver","Beaver Unit 8",7326,0,7326]
["Kelso/Beaver","Beaver 1 - 6",152400,0,152400]
["Mist Port Westward","Port Westward",70000,0,70000]
["Mist Port Westward II","Port Westward II",70000,0,70000]
["Mist Beaver","Beaver",70000,0,{"$f":"C300-D300","v":70000}]
["Gas Day:  ",null,null,null,"2021-03-01"]
["Receipt Point","Delivery Point","Operating Capacity (DTHS)","Schedule Volume (DTHS)","Estimated Available Capacity"]
["Kelso/Beaver","Port Westward",64000,60000,{"$f":"C303-D303","v":4000}]
["Kelso/Beaver","Port Westward II",44000,4974,39026]
["Kelso/Beaver","N. Mist Storage",61000,0,61000]
["Kelso/Beaver","Beaver Unit 8",7326,0,7326]
["Kelso/Beaver","Beaver 1 - 6",152400,0,152400]
["Mist Port Westward","Port Westward",70000,0,70000]
["Mist Port Westward II","Port Westward II",70000,0,70000]
["Mist Beaver","Beaver",70000,0,{"$f":"C310-D310","v":70000}]

{"sheet":"April","index":3,"n_rows":300,"n_cols":5,"rows_kept":300,"cut":false,"hidden":false,"merged":[]}
["Gas Day:  ",null,null,null,"2021-04-30"]
["Receipt Point","Delivery Point","Operating Capacity (DTHS)","Schedule Volume (DTHS)","Estimated Available Capacity"]
["Kelso/Beaver","Port Westward",64000,64000,{"$f":"C3-D3","v":0}]
["Kelso/Beaver","Port Westward II",44000,23660,20340]
["Kelso/Beaver","N. Mist Storage",61000,55000,6000]
["Kelso/Beaver","Beaver Unit 8",7326,0,7326]
["Kelso/Beaver","Beaver 1 - 6",152400,0,152400]
["Mist Port Westward","Port Westward",70000,0,70000]
["Mist Port Westward II","Port Westward II",70000,0,70000]
["Mist Beaver","Beaver",70000,0,{"$f":"C10-D10","v":70000}]
["Gas Day:  ",null,null,null,"2021-04-29"]
["Receipt Point","Delivery Point","Operating Capacity (DTHS)","Schedule Volume (DTHS)","Estimated Available Capacity"]
["Kelso/Beaver","Port Westward",64000,64000,{"$f":"C13-D13","v":0}]
["Kelso/Beaver","Port Westward II",44000,23632,20368]
["Kelso/Beaver","N. Mist Storage",61000,55000,6000]
["Kelso/Beaver","Beaver Unit 8",7326,0,7326]
["Kelso/Beaver","Beaver 1 - 6",152400,0,152400]
["Mist Port Westward","Port Westward",70000,0,70000]
["Mist Port Westward II","Port Westward II",70000,0,70000]
["Mist Beaver","Beaver",70000,0,{"$f":"C20-D20","v":70000}]
["Gas Day:  ",null,null,null,"2021-04-28"]
["Receipt Point","Delivery Point","Operating Capacity (DTHS)","Schedule Volume (DTHS)","Estimated Available Capacity"]
["Kelso/Beaver","Port Westward",64000,64000,{"$f":"C23-D23","v":0}]
["Kelso/Beaver","Port Westward II",44000,28646,15354]
["Kelso/Beaver","N. Mist Storage",61000,50000,11000]
["Kelso/Beaver","Beaver Unit 8",7326,0,7326]
["Kelso/Beaver","Beaver 1 - 6",152400,0,152400]
["Mist Port Westward","Port Westward",70000,0,70000]
["Mist Port Westward II","Port Westward II",70000,0,70000]
["Mist Beaver","Beaver",70000,0,{"$f":"C30-D30","v":70000}]
["Gas Day:  ",null,null,null,"2021-04-27"]
["Receipt Point","Delivery Point","Operating Capacity (DTHS)","Schedule Volume (DTHS)","Estimated Available Capacity"]
["Kelso/Beaver","Port Westward",64000,64000,{"$f":"C33-D33","v":0}]
["Kelso/Beaver","Port Westward II",44000,28646,15354]
["Kelso/Beaver","N. Mist Storage",61000,50000,11000]
["Kelso/Beaver","Beaver Unit 8",7326,0,7326]
["Kelso/Beaver","Beaver 1 - 6",152400,0,152400]
["Mist Port Westward","Port Westward",70000,0,70000]
["Mist Port Westward II","Port Westward II",70000,0,70000]
["Mist Beaver","Beaver",70000,0,{"$f":"C40-D40","v":70000}]
["Gas Day:  ",null,null,null,"2021-04-26"]
["Receipt Point","Delivery Point","Operating Capacity (DTHS)","Schedule Volume (DTHS)","Estimated Available Capacity"]
["Kelso/Beaver","Port Westward",64000,64000,{"$f":"C43-D43","v":0}]
["Kelso/Beaver","Port Westward II",44000,14157,29843]
["Kelso/Beaver","N. Mist Storage",61000,55000,6000]
["Kelso/Beaver","Beaver Unit 8",7326,0,7326]
["Kelso/Beaver","Beaver 1 - 6",152400,0,152400]
["Mist Port Westward","Port Westward",70000,0,70000]
["Mist Port Westward II","Port Westward II",70000,0,70000]
["Mist Beaver","Beaver",70000,0,{"$f":"C50-D50","v":70000}]
["Gas Day:  ",null,null,null,"2021-04-25"]
["Receipt Point","Delivery Point","Operating Capacity (DTHS)","Schedule Volume (DTHS)","Estimated Available Capacity"]
["Kelso/Beaver","Port Westward",64000,64000,{"$f":"C53-D53","v":0}]
["Kelso/Beaver","Port Westward II",44000,14157,29843]
["Kelso/Beaver","N. Mist Storage",61000,55000,6000]
["Kelso/Beaver","Beaver Unit 8",7326,0,7326]
["Kelso/Beaver","Beaver 1 - 6",152400,0,152400]
["Mist Port Westward","Port Westward",70000,0,70000]
["Mist Port Westward II","Port Westward II",70000,0,70000]
["Mist Beaver","Beaver",70000,0,{"$f":"C60-D60","v":70000}]
["Gas Day:  ",null,null,null,"2021-04-24"]
["Receipt Point","Delivery Point","Operating Capacity (DTHS)","Schedule Volume (DTHS)","Estimated Available Capacity"]
["Kelso/Beaver","Port Westward",64000,64000,{"$f":"C63-D63","v":0}]
["Kelso/Beaver","Port Westward II",44000,14157,29843]
["Kelso/Beaver","N. Mist Storage",61000,55000,6000]
["Kelso/Beaver","Beaver Unit 8",7326,0,7326]
["Kelso/Beaver","Beaver 1 - 6",152400,0,152400]
["Mist Port Westward","Port Westward",70000,0,70000]
["Mist Port Westward II","Port Westward II",70000,0,70000]
["Mist Beaver","Beaver",70000,0,{"$f":"C70-D70","v":70000}]
["Gas Day:  ",null,null,null,"2021-04-23"]
["Receipt Point","Delivery Point","Operating Capacity (DTHS)","Schedule Volume (DTHS)","Estimated Available Capacity"]
["Kelso/Beaver","Port Westward",64000,64000,{"$f":"C73-D73","v":0}]
["Kelso/Beaver","Port Westward II",44000,8646,35354]
["Kelso/Beaver","N. Mist Storage",61000,55000,6000]
["Kelso/Beaver","Beaver Unit 8",7326,0,7326]
["Kelso/Beaver","Beaver 1 - 6",152400,0,152400]
["Mist Port Westward","Port Westward",70000,0,70000]
["Mist Port Westward II","Port Westward II",70000,0,70000]
["Mist Beaver","Beaver",70000,0,{"$f":"C80-D80","v":70000}]
["Gas Day:  ",null,null,null,"2021-04-22"]
["Receipt Point","Delivery Point","Operating Capacity (DTHS)","Schedule Volume (DTHS)","Estimated Available Capacity"]
["Kelso/Beaver","Port Westward",64000,64000,{"$f":"C83-D83","v":0}]
["Kelso/Beaver","Port Westward II",44000,13646,30354]
["Kelso/Beaver","N. Mist Storage",61000,50000,11000]
["Kelso/Beaver","Beaver Unit 8",7326,0,7326]
["Kelso/Beaver","Beaver 1 - 6",152400,0,152400]
["Mist Port Westward","Port Westward",70000,0,70000]
["Mist Port Westward II","Port Westward II",70000,0,70000]
["Mist Beaver","Beaver",70000,0,{"$f":"C90-D90","v":70000}]
["Gas Day:  ",null,null,null,"2021-04-21"]
["Receipt Point","Delivery Point","Operating Capacity (DTHS)","Schedule Volume (DTHS)","Estimated Available Capacity"]
["Kelso/Beaver","Port Westward",64000,64000,{"$f":"C93-D93","v":0}]
["Kelso/Beaver","Port Westward II",44000,18648,25352]
["Kelso/Beaver","N. Mist Storage",61000,50000,11000]
["Kelso/Beaver","Beaver Unit 8",7326,0,7326]
["Kelso/Beaver","Beaver 1 - 6",152400,0,152400]
["Mist Port Westward","Port Westward",70000,0,70000]
["Mist Port Westward II","Port Westward II",70000,0,70000]
["Mist Beaver","Beaver",70000,0,{"$f":"C100-D100","v":70000}]
["Gas Day:  ",null,null,null,"2021-04-20"]
["Receipt Point","Delivery Point","Operating Capacity (DTHS)","Schedule Volume (DTHS)","Estimated Available Capacity"]
["Kelso/Beaver","Port Westward",64000,64000,{"$f":"C103-D103","v":0}]
["Kelso/Beaver","Port Westward II",44000,24567,19433]
["Kelso/Beaver","N. Mist Storage",61000,45000,16000]
["Kelso/Beaver","Beaver Unit 8",7326,0,7326]
["Kelso/Beaver","Beaver 1 - 6",152400,0,152400]
["Mist Port Westward","Port Westward",70000,0,70000]
["Mist Port Westward II","Port Westward II",70000,0,70000]
["Mist Beaver","Beaver",70000,0,{"$f":"C110-D110","v":70000}]
["Gas Day:  ",null,null,null,"2021-04-19"]
["Receipt Point","Delivery Point","Operating Capacity (DTHS)","Schedule Volume (DTHS)","Estimated Available Capacity"]
["Kelso/Beaver","Port Westward",64000,64000,{"$f":"C113-D113","v":0}]
["Kelso/Beaver","Port Westward II",44000,0,44000]
["Kelso/Beaver","N. Mist Storage",61000,0,61000]
["Kelso/Beaver","Beaver Unit 8",7326,0,7326]
["Kelso/Beaver","Beaver 1 - 6",152400,79119,73281]
["Mist Port Westward","Port Westward",70000,0,70000]
["Mist Port Westward II","Port Westward II",70000,0,70000]
["Mist Beaver","Beaver",70000,0,{"$f":"C120-D120","v":70000}]
["Gas Day:  ",null,null,null,"2021-04-18"]
["Receipt Point","Delivery Point","Operating Capacity (DTHS)","Schedule Volume (DTHS)","Estimated Available Capacity"]
["Kelso/Beaver","Port Westward",64000,64000,{"$f":"C123-D123","v":0}]
["Kelso/Beaver","Port Westward II",44000,0,44000]
["Kelso/Beaver","N. Mist Storage",61000,0,61000]
["Kelso/Beaver","Beaver Unit 8",7326,0,7326]
["Kelso/Beaver","Beaver 1 - 6",152400,79119,73281]
["Mist Port Westward","Port Westward",70000,0,70000]
["Mist Port Westward II","Port Westward II",70000,0,70000]
["Mist Beaver","Beaver",70000,0,{"$f":"C130-D130","v":70000}]
["Gas Day:  ",null,null,null,"2021-04-17"]
["Receipt Point","Delivery Point","Operating Capacity (DTHS)","Schedule Volume (DTHS)","Estimated Available Capacity"]
["Kelso/Beaver","Port Westward",64000,64000,{"$f":"C133-D133","v":0}]
["Kelso/Beaver","Port Westward II",44000,0,44000]
["Kelso/Beaver","N. Mist Storage",61000,0,61000]
["Kelso/Beaver","Beaver Unit 8",7326,0,7326]
["Kelso/Beaver","Beaver 1 - 6",152400,79119,73281]
["Mist Port Westward","Port Westward",70000,0,70000]
["Mist Port Westward II","Port Westward II",70000,0,70000]
["Mist Beaver","Beaver",70000,0,{"$f":"C140-D140","v":70000}]
["Gas Day:  ",null,null,null,"2021-04-16"]
["Receipt Point","Delivery Point","Operating Capacity (DTHS)","Schedule Volume (DTHS)","Estimated Available Capacity"]
["Kelso/Beaver","Port Westward",64000,64000,{"$f":"C143-D143","v":0}]
["Kelso/Beaver","Port Westward II",44000,0,44000]
["Kelso/Beaver","N. Mist Storage",61000,0,61000]
["Kelso/Beaver","Beaver Unit 8",7326,0,7326]
["Kelso/Beaver","Beaver 1 - 6",152400,73693,78707]
["Mist Port Westward","Port Westward",70000,0,70000]
["Mist Port Westward II","Port Westward II",70000,0,70000]
["Mist Beaver","Beaver",70000,0,{"$f":"C150-D150","v":70000}]
["Gas Day:  ",null,null,null,"2021-04-15"]
["Receipt Point","Delivery Point","Operating Capacity (DTHS)","Schedule Volume (DTHS)","Estimated Available Capacity"]
["Kelso/Beaver","Port Westward",64000,64000,{"$f":"C153-D153","v":0}]
["Kelso/Beaver","Port Westward II",44000,28646,15354]
["Kelso/Beaver","N. Mist Storage",61000,0,61000]
["Kelso/Beaver","Beaver Unit 8",7326,0,7326]
["Kelso/Beaver","Beaver 1 - 6",152400,45000,107400]
["Mist Port Westward","Port Westward",70000,0,70000]
["Mist Port Westward II","Port Westward II",70000,0,70000]
["Mist Beaver","Beaver",70000,0,{"$f":"C160-D160","v":70000}]
["Gas Day:  ",null,null,null,"2021-04-14"]
["Receipt Point","Delivery Point","Operating Capacity (DTHS)","Schedule Volume (DTHS)","Estimated Available Capacity"]
["Kelso/Beaver","Port Westward",64000,64000,{"$f":"C163-D163","v":0}]
["Kelso/Beaver","Port Westward II",44000,16651,27349]
["Kelso/Beaver","N. Mist Storage",61000,42000,19000]
["Kelso/Beaver","Beaver Unit 8",7326,0,7326]
["Kelso/Beaver","Beaver 1 - 6",152400,0,152400]
["Mist Port Westward","Port Westward",70000,0,70000]
["Mist Port Westward II","Port Westward II",70000,0,70000]
["Mist Beaver","Beaver",70000,0,{"$f":"C170-D170","v":70000}]
["Gas Day:  ",null,null,null,"2021-04-13"]
["Receipt Point","Delivery Point","Operating Capacity (DTHS)","Schedule Volume (DTHS)","Estimated Available Capacity"]
["Kelso/Beaver","Port Westward",64000,64000,{"$f":"C173-D173","v":0}]
["Kelso/Beaver","Port Westward II",44000,28602,15398]
["Kelso/Beaver","N. Mist Storage",61000,40000,21000]
["Kelso/Beaver","Beaver Unit 8",7326,0,7326]
["Kelso/Beaver","Beaver 1 - 6",152400,0,152400]
["Mist Port Westward","Port Westward",70000,0,70000]
["Mist Port Westward II","Port Westward II",70000,0,70000]
["Mist Beaver","Beaver",70000,0,{"$f":"C180-D180","v":70000}]
["Gas Day:  ",null,null,null,"2021-04-12"]
["Receipt Point","Delivery Point","Operating Capacity (DTHS)","Schedule Volume (DTHS)","Estimated Available Capacity"]
["Kelso/Beaver","Port Westward",64000,60000,{"$f":"C183-D183","v":4000}]
["Kelso/Beaver","Port Westward II",44000,15000,29000]
["Kelso/Beaver","N. Mist Storage",61000,35000,26000]
["Kelso/Beaver","Beaver Unit 8",7326,0,7326]
["Kelso/Beaver","Beaver 1 - 6",152400,23147,129253]
["Mist Port Westward","Port Westward",70000,0,70000]
["Mist Port Westward II","Port Westward II",70000,0,70000]
["Mist Beaver","Beaver",70000,0,{"$f":"C190-D190","v":70000}]
["Gas Day:  ",null,null,null,"2021-04-11"]
["Receipt Point","Delivery Point","Operating Capacity (DTHS)","Schedule Volume (DTHS)","Estimated Available Capacity"]
["Kelso/Beaver","Port Westward",64000,60000,{"$f":"C193-D193","v":4000}]
["Kelso/Beaver","Port Westward II",44000,15000,29000]
["Kelso/Beaver","N. Mist Storage",61000,35000,26000]
["Kelso/Beaver","Beaver Unit 8",7326,0,7326]
["Kelso/Beaver","Beaver 1 - 6",152400,23147,129253]
["Mist Port Westward","Port Westward",70000,0,70000]
["Mist Port Westward II","Port Westward II",70000,0,70000]
["Mist Beaver","Beaver",70000,0,{"$f":"C200-D200","v":70000}]
["Gas Day:  ",null,null,null,"2021-04-10"]
["Receipt Point","Delivery Point","Operating Capacity (DTHS)","Schedule Volume (DTHS)","Estimated Available Capacity"]
["Kelso/Beaver","Port Westward",64000,60000,{"$f":"C203-D203","v":4000}]
["Kelso/Beaver","Port Westward II",44000,0,44000]
["Kelso/Beaver","N. Mist Storage",61000,50000,11000]
["Kelso/Beaver","Beaver Unit 8",7326,0,7326]
["Kelso/Beaver","Beaver 1 - 6",152400,23147,129253]
["Mist Port Westward","Port Westward",70000,0,70000]
["Mist Port Westward II","Port Westward II",70000,0,70000]
["Mist Beaver","Beaver",70000,0,{"$f":"C210-D210","v":70000}]
["Gas Day:  ",null,null,null,"2021-04-09"]
["Receipt Point","Delivery Point","Operating Capacity (DTHS)","Schedule Volume (DTHS)","Estimated Available Capacity"]
["Kelso/Beaver","Port Westward",64000,60000,{"$f":"C213-D213","v":4000}]
["Kelso/Beaver","Port Westward II",44000,15000,29000]
["Kelso/Beaver","N. Mist Storage",61000,35000,26000]
["Kelso/Beaver","Beaver Unit 8",7326,0,7326]
["Kelso/Beaver","Beaver 1 - 6",152400,22661,129739]
["Mist Port Westward","Port Westward",70000,0,70000]
["Mist Port Westward II","Port Westward II",70000,0,70000]
["Mist Beaver","Beaver",70000,0,{"$f":"C220-D220","v":70000}]
["Gas Day:  ",null,null,null,"2021-04-08"]
["Receipt Point","Delivery Point","Operating Capacity (DTHS)","Schedule Volume (DTHS)","Estimated Available Capacity"]
["Kelso/Beaver","Port Westward",64000,64000,{"$f":"C223-D223","v":0}]
["Kelso/Beaver","Port Westward II",44000,15686,28314]
["Kelso/Beaver","N. Mist Storage",61000,40000,21000]
["Kelso/Beaver","Beaver Unit 8",7326,0,7326]
["Kelso/Beaver","Beaver 1 - 6",152400,0,152400]
["Mist Port Westward","Port Westward",70000,0,70000]
["Mist Port Westward II","Port Westward II",70000,0,70000]
["Mist Beaver","Beaver",70000,0,{"$f":"C230-D230","v":70000}]
["Gas Day:  ",null,null,null,"2021-04-07"]
["Receipt Point","Delivery Point","Operating Capacity (DTHS)","Schedule Volume (DTHS)","Estimated Available Capacity"]
["Kelso/Beaver","Port Westward",64000,64000,{"$f":"C233-D233","v":0}]
["Kelso/Beaver","Port Westward II",44000,23660,20340]
["Kelso/Beaver","N. Mist Storage",61000,35000,26000]
["Kelso/Beaver","Beaver Unit 8",7326,0,7326]
["Kelso/Beaver","Beaver 1 - 6",152400,0,152400]
["Mist Port Westward","Port Westward",70000,0,70000]
["Mist Port Westward II","Port Westward II",70000,0,70000]
["Mist Beaver","Beaver",70000,0,{"$f":"C240-D240","v":70000}]
["Gas Day:  ",null,null,null,"2021-04-06"]
["Receipt Point","Delivery Point","Operating Capacity (DTHS)","Schedule Volume (DTHS)","Estimated Available Capacity"]
["Kelso/Beaver","Port Westward",64000,64000,{"$f":"C243-D243","v":0}]
["Kelso/Beaver","Port Westward II",44000,13660,30340]
["Kelso/Beaver","N. Mist Storage",61000,45000,16000]
["Kelso/Beaver","Beaver Unit 8",7326,0,7326]
["Kelso/Beaver","Beaver 1 - 6",152400,0,152400]
["Mist Port Westward","Port Westward",70000,0,70000]
["Mist Port Westward II","Port Westward II",70000,0,70000]
["Mist Beaver","Beaver",70000,0,{"$f":"C250-D250","v":70000}]
["Gas Day:  ",null,null,null,"2021-04-05"]
["Receipt Point","Delivery Point","Operating Capacity (DTHS)","Schedule Volume (DTHS)","Estimated Available Capacity"]
["Kelso/Beaver","Port Westward",64000,64000,{"$f":"C253-D253","v":0}]
["Kelso/Beaver","Port Westward II",44000,13770,30230]
["Kelso/Beaver","N. Mist Storage",61000,45000,16000]
["Kelso/Beaver","Beaver Unit 8",7326,0,7326]
["Kelso/Beaver","Beaver 1 - 6",152400,0,152400]
["Mist Port Westward","Port Westward",70000,0,70000]
["Mist Port Westward II","Port Westward II",70000,0,70000]
["Mist Beaver","Beaver",70000,0,{"$f":"C260-D260","v":70000}]
["Gas Day:  ",null,null,null,"2021-04-04"]
["Receipt Point","Delivery Point","Operating Capacity (DTHS)","Schedule Volume (DTHS)","Estimated Available Capacity"]
["Kelso/Beaver","Port Westward",64000,64000,{"$f":"C263-D263","v":0}]
["Kelso/Beaver","Port Westward II",44000,13770,30230]
["Kelso/Beaver","N. Mist Storage",61000,45000,16000]
["Kelso/Beaver","Beaver Unit 8",7326,0,7326]
["Kelso/Beaver","Beaver 1 - 6",152400,0,152400]
["Mist Port Westward","Port Westward",70000,0,70000]
["Mist Port Westward II","Port Westward II",70000,0,70000]
["Mist Beaver","Beaver",70000,0,{"$f":"C270-D270","v":70000}]
["Gas Day:  ",null,null,null,"2021-04-03"]
["Receipt Point","Delivery Point","Operating Capacity (DTHS)","Schedule Volume (DTHS)","Estimated Available Capacity"]
["Kelso/Beaver","Port Westward",64000,64000,{"$f":"C273-D273","v":0}]
["Kelso/Beaver","Port Westward II",44000,13770,30230]
["Kelso/Beaver","N. Mist Storage",61000,45000,16000]
["Kelso/Beaver","Beaver Unit 8",7326,0,7326]
["Kelso/Beaver","Beaver 1 - 6",152400,0,152400]
["Mist Port Westward","Port Westward",70000,0,70000]
["Mist Port Westward II","Port Westward II",70000,0,70000]
["Mist Beaver","Beaver",70000,0,{"$f":"C280-D280","v":70000}]
["Gas Day:  ",null,null,null,"2021-04-02"]
["Receipt Point","Delivery Point","Operating Capacity (DTHS)","Schedule Volume (DTHS)","Estimated Available Capacity"]
["Kelso/Beaver","Port Westward",64000,64000,{"$f":"C283-D283","v":0}]
["Kelso/Beaver","Port Westward II",44000,13770,30230]
["Kelso/Beaver","N. Mist Storage",61000,45000,16000]
["Kelso/Beaver","Beaver Unit 8",7326,0,7326]
["Kelso/Beaver","Beaver 1 - 6",152400,0,152400]
["Mist Port Westward","Port Westward",70000,0,70000]
["Mist Port Westward II","Port Westward II",70000,0,70000]
["Mist Beaver","Beaver",70000,0,{"$f":"C290-D290","v":70000}]
["Gas Day:  ",null,null,null,"2021-04-01"]
["Receipt Point","Delivery Point","Operating Capacity (DTHS)","Schedule Volume (DTHS)","Estimated Available Capacity"]
["Kelso/Beaver","Port Westward",64000,64000,{"$f":"C293-D293","v":0}]
["Kelso/Beaver","Port Westward II",44000,18669,25331]
["Kelso/Beaver","N. Mist Storage",61000,40000,21000]
["Kelso/Beaver","Beaver Unit 8",7326,0,7326]
["Kelso/Beaver","Beaver 1 - 6",152400,0,152400]
["Mist Port Westward","Port Westward",70000,0,70000]
["Mist Port Westward II","Port Westward II",70000,0,70000]
["Mist Beaver","Beaver",70000,0,{"$f":"C300-D300","v":70000}]

{"sheet":"May","index":4,"n_rows":310,"n_cols":5,"rows_kept":310,"cut":false,"hidden":false,"merged":[]}
["Gas Day:  ",null,null,null,"2021-05-31"]
["Receipt Point","Delivery Point","Operating Capacity (DTHS)","Schedule Volume (DTHS)","Estimated Available Capacity"]
["Kelso/Beaver","Port Westward",64000,0,{"$f":"C3-D3","v":64000}]
["Kelso/Beaver","Port Westward II",44000,44000,0]
["Kelso/Beaver","N. Mist Storage",61000,0,61000]
["Kelso/Beaver","Beaver Unit 8",7326,0,7326]
["Kelso/Beaver","Beaver 1 - 6",152400,70576,81824]
["Mist Port Westward","Port Westward",70000,0,70000]
["Mist Port Westward II","Port Westward II",70000,0,70000]
["Mist Beaver","Beaver",70000,0,{"$f":"C10-D10","v":70000}]
["Gas Day:  ",null,null,null,"2021-05-30"]
["Receipt Point","Delivery Point","Operating Capacity (DTHS)","Schedule Volume (DTHS)","Estimated Available Capacity"]
["Kelso/Beaver","Port Westward",64000,0,{"$f":"C13-D13","v":64000}]
["Kelso/Beaver","Port Westward II",44000,44000,0]
["Kelso/Beaver","N. Mist Storage",61000,0,61000]
["Kelso/Beaver","Beaver Unit 8",7326,0,7326]
["Kelso/Beaver","Beaver 1 - 6",152400,70576,81824]
["Mist Port Westward","Port Westward",70000,0,70000]
["Mist Port Westward II","Port Westward II",70000,0,70000]
["Mist Beaver","Beaver",70000,0,{"$f":"C20-D20","v":70000}]
["Gas Day:  ",null,null,null,"2021-05-29"]
["Receipt Point","Delivery Point","Operating Capacity (DTHS)","Schedule Volume (DTHS)","Estimated Available Capacity"]
["Kelso/Beaver","Port Westward",64000,0,{"$f":"C23-D23","v":64000}]
["Kelso/Beaver","Port Westward II",44000,44000,0]
["Kelso/Beaver","N. Mist Storage",61000,0,61000]
["Kelso/Beaver","Beaver Unit 8",7326,0,7326]
["Kelso/Beaver","Beaver 1 - 6",152400,70576,81824]
["Mist Port Westward","Port Westward",70000,0,70000]
["Mist Port Westward II","Port Westward II",70000,0,70000]
["Mist Beaver","Beaver",70000,0,{"$f":"C30-D30","v":70000}]
["Gas Day:  ",null,null,null,"2021-05-28"]
["Receipt Point","Delivery Point","Operating Capacity (DTHS)","Schedule Volume (DTHS)","Estimated Available Capacity"]
["Kelso/Beaver","Port Westward",64000,0,{"$f":"C33-D33","v":64000}]
["Kelso/Beaver","Port Westward II",44000,44000,0]
["Kelso/Beaver","N. Mist Storage",61000,0,61000]
["Kelso/Beaver","Beaver Unit 8",7326,0,7326]
["Kelso/Beaver","Beaver 1 - 6",152400,70576,81824]
["Mist Port Westward","Port Westward",70000,0,70000]
["Mist Port Westward II","Port Westward II",70000,0,70000]
["Mist Beaver","Beaver",70000,0,{"$f":"C40-D40","v":70000}]
["Gas Day:  ",null,null,null,"2021-05-27"]
["Receipt Point","Delivery Point","Operating Capacity (DTHS)","Schedule Volume (DTHS)","Estimated Available Capacity"]
["Kelso/Beaver","Port Westward",64000,0,{"$f":"C43-D43","v":64000}]
["Kelso/Beaver","Port Westward II",44000,31531,12469]
["Kelso/Beaver","N. Mist Storage",61000,61000,0]
["Kelso/Beaver","Beaver Unit 8",7326,0,7326]
["Kelso/Beaver","Beaver 1 - 6",152400,20000,132400]
["Mist Port Westward","Port Westward",70000,0,70000]
["Mist Port Westward II","Port Westward II",70000,0,70000]
["Mist Beaver","Beaver",70000,0,{"$f":"C50-D50","v":70000}]
["Gas Day:  ",null,null,null,"2021-05-26"]
["Receipt Point","Delivery Point","Operating Capacity (DTHS)","Schedule Volume (DTHS)","Estimated Available Capacity"]
["Kelso/Beaver","Port Westward",64000,0,{"$f":"C53-D53","v":64000}]
["Kelso/Beaver","Port Westward II",44000,36023,7977]
["Kelso/Beaver","N. Mist Storage",61000,61000,0]
["Kelso/Beaver","Beaver Unit 8",7326,0,7326]
["Kelso/Beaver","Beaver 1 - 6",152400,50000,102400]
["Mist Port Westward","Port Westward",70000,0,70000]
["Mist Port Westward II","Port Westward II",70000,0,70000]
["Mist Beaver","Beaver",70000,0,{"$f":"C60-D60","v":70000}]
["Gas Day:  ",null,null,null,"2021-05-25"]
["Receipt Point","Delivery Point","Operating Capacity (DTHS)","Schedule Volume (DTHS)","Estimated Available Capacity"]
["Kelso/Beaver","Port Westward",64000,0,{"$f":"C63-D63","v":64000}]
["Kelso/Beaver","Port Westward II",44000,27359,16641]
["Kelso/Beaver","N. Mist Storage",61000,55000,6000]
["Kelso/Beaver","Beaver Unit 8",7326,0,7326]
["Kelso/Beaver","Beaver 1 - 6",152400,0,152400]
["Mist Port Westward","Port Westward",70000,0,70000]
["Mist Port Westward II","Port Westward II",70000,0,70000]
["Mist Beaver","Beaver",70000,0,{"$f":"C70-D70","v":70000}]
["Gas Day:  ",null,null,null,"2021-05-24"]
["Receipt Point","Delivery Point","Operating Capacity (DTHS)","Schedule Volume (DTHS)","Estimated Available Capacity"]
["Kelso/Beaver","Port Westward",64000,0,{"$f":"C73-D73","v":64000}]
["Kelso/Beaver","Port Westward II",44000,27357,16643]
["Kelso/Beaver","N. Mist Storage",61000,55000,6000]
["Kelso/Beaver","Beaver Unit 8",7326,0,7326]
["Kelso/Beaver","Beaver 1 - 6",152400,0,152400]
["Mist Port Westward","Port Westward",70000,0,70000]
["Mist Port Westward II","Port Westward II",70000,0,70000]
["Mist Beaver","Beaver",70000,0,{"$f":"C80-D80","v":70000}]
["Gas Day:  ",null,null,null,"2021-05-23"]
["Receipt Point","Delivery Point","Operating Capacity (DTHS)","Schedule Volume (DTHS)","Estimated Available Capacity"]
["Kelso/Beaver","Port Westward",64000,0,{"$f":"C83-D83","v":64000}]
["Kelso/Beaver","Port Westward II",44000,27357,16643]
["Kelso/Beaver","N. Mist Storage",61000,55000,6000]
["Kelso/Beaver","Beaver Unit 8",7326,0,7326]
["Kelso/Beaver","Beaver 1 - 6",152400,0,152400]
["Mist Port Westward","Port Westward",70000,0,70000]
["Mist Port Westward II","Port Westward II",70000,0,70000]
["Mist Beaver","Beaver",70000,0,{"$f":"C90-D90","v":70000}]
["Gas Day:  ",null,null,null,"2021-05-22"]
["Receipt Point","Delivery Point","Operating Capacity (DTHS)","Schedule Volume (DTHS)","Estimated Available Capacity"]
["Kelso/Beaver","Port Westward",64000,0,{"$f":"C93-D93","v":64000}]
["Kelso/Beaver","Port Westward II",44000,22357,21643]
["Kelso/Beaver","N. Mist Storage",61000,55000,6000]
["Kelso/Beaver","Beaver Unit 8",7326,0,7326]
["Kelso/Beaver","Beaver 1 - 6",152400,35000,117400]
["Mist Port Westward","Port Westward",70000,0,70000]
["Mist Port Westward II","Port Westward II",70000,0,70000]
["Mist Beaver","Beaver",70000,0,{"$f":"C100-D100","v":70000}]
["Gas Day:  ",null,null,null,"2021-05-21"]
["Receipt Point","Delivery Point","Operating Capacity (DTHS)","Schedule Volume (DTHS)","Estimated Available Capacity"]
["Kelso/Beaver","Port Westward",64000,64000,{"$f":"C103-D103","v":0}]
["Kelso/Beaver","Port Westward II",44000,23639,20361]
["Kelso/Beaver","N. Mist Storage",61000,55000,6000]
["Kelso/Beaver","Beaver Unit 8",7326,0,7326]
["Kelso/Beaver","Beaver 1 - 6",152400,0,152400]
["Mist Port Westward","Port Westward",70000,0,70000]
["Mist Port Westward II","Port Westward II",70000,0,70000]
["Mist Beaver","Beaver",70000,0,{"$f":"C110-D110","v":70000}]
["Gas Day:  ",null,null,null,"2021-05-20"]
["Receipt Point","Delivery Point","Operating Capacity (DTHS)","Schedule Volume (DTHS)","Estimated Available Capacity"]
["Kelso/Beaver","Port Westward",64000,64000,{"$f":"C113-D113","v":0}]
["Kelso/Beaver","Port Westward II",44000,23639,20361]
["Kelso/Beaver","N. Mist Storage",61000,55000,6000]
["Kelso/Beaver","Beaver Unit 8",7326,0,7326]
["Kelso/Beaver","Beaver 1 - 6",152400,0,152400]
["Mist Port Westward","Port Westward",70000,0,70000]
["Mist Port Westward II","Port Westward II",70000,0,70000]
["Mist Beaver","Beaver",70000,0,{"$f":"C120-D120","v":70000}]
["Gas Day:  ",null,null,null,"2021-05-19"]
["Receipt Point","Delivery Point","Operating Capacity (DTHS)","Schedule Volume (DTHS)","Estimated Available Capacity"]
["Kelso/Beaver","Port Westward",64000,64000,{"$f":"C123-D123","v":0}]
["Kelso/Beaver","Port Westward II",44000,23599,20401]
["Kelso/Beaver","N. Mist Storage",61000,55000,6000]
["Kelso/Beaver","Beaver Unit 8",7326,0,7326]
["Kelso/Beaver","Beaver 1 - 6",152400,0,152400]
["Mist Port Westward","Port Westward",70000,0,70000]
["Mist Port Westward II","Port Westward II",70000,0,70000]
["Mist Beaver","Beaver",70000,0,{"$f":"C130-D130","v":70000}]
["Gas Day:  ",null,null,null,"2021-05-18"]
["Receipt Point","Delivery Point","Operating Capacity (DTHS)","Schedule Volume (DTHS)","Estimated Available Capacity"]
["Kelso/Beaver","Port Westward",64000,64000,{"$f":"C133-D133","v":0}]
["Kelso/Beaver","Port Westward II",44000,23639,20361]
["Kelso/Beaver","N. Mist Storage",61000,55000,6000]
["Kelso/Beaver","Beaver Unit 8",7326,0,7326]
["Kelso/Beaver","Beaver 1 - 6",152400,0,152400]
["Mist Port Westward","Port Westward",70000,0,70000]
["Mist Port Westward II","Port Westward II",70000,0,70000]
["Mist Beaver","Beaver",70000,0,{"$f":"C140-D140","v":70000}]
["Gas Day:  ",null,null,null,"2021-05-17"]
["Receipt Point","Delivery Point","Operating Capacity (DTHS)","Schedule Volume (DTHS)","Estimated Available Capacity"]
["Kelso/Beaver","Port Westward",64000,64000,{"$f":"C143-D143","v":0}]
["Kelso/Beaver","Port Westward II",44000,23651,20349]
["Kelso/Beaver","N. Mist Storage",61000,55000,6000]
["Kelso/Beaver","Beaver Unit 8",7326,0,7326]
["Kelso/Beaver","Beaver 1 - 6",152400,0,152400]
["Mist Port Westward","Port Westward",70000,0,70000]
["Mist Port Westward II","Port Westward II",70000,0,70000]
["Mist Beaver","Beaver",70000,0,{"$f":"C150-D150","v":70000}]
["Gas Day:  ",null,null,null,"2021-05-16"]
["Receipt Point","Delivery Point","Operating Capacity (DTHS)","Schedule Volume (DTHS)","Estimated Available Capacity"]
["Kelso/Beaver","Port Westward",64000,64000,{"$f":"C153-D153","v":0}]
["Kelso/Beaver","Port Westward II",44000,23651,20349]
["Kelso/Beaver","N. Mist Storage",61000,55000,6000]
["Kelso/Beaver","Beaver Unit 8",7326,0,7326]
["Kelso/Beaver","Beaver 1 - 6",152400,0,152400]
["Mist Port Westward","Port Westward",70000,0,70000]
["Mist Port Westward II","Port Westward II",70000,0,70000]
["Mist Beaver","Beaver",70000,0,{"$f":"C160-D160","v":70000}]
["Gas Day:  ",null,null,null,"2021-05-15"]
["Receipt Point","Delivery Point","Operating Capacity (DTHS)","Schedule Volume (DTHS)","Estimated Available Capacity"]
["Kelso/Beaver","Port Westward",64000,64000,{"$f":"C163-D163","v":0}]
["Kelso/Beaver","Port Westward II",44000,23651,20349]
["Kelso/Beaver","N. Mist Storage",61000,55000,6000]
["Kelso/Beaver","Beaver Unit 8",7326,0,7326]
["Kelso/Beaver","Beaver 1 - 6",152400,0,152400]
["Mist Port Westward","Port Westward",70000,0,70000]
["Mist Port Westward II","Port Westward II",70000,0,70000]
["Mist Beaver","Beaver",70000,0,{"$f":"C170-D170","v":70000}]
["Gas Day:  ",null,null,null,"2021-05-14"]
["Receipt Point","Delivery Point","Operating Capacity (DTHS)","Schedule Volume (DTHS)","Estimated Available Capacity"]
["Kelso/Beaver","Port Westward",64000,64000,{"$f":"C173-D173","v":0}]
["Kelso/Beaver","Port Westward II",44000,18664,25336]
["Kelso/Beaver","N. Mist Storage",61000,55000,6000]
["Kelso/Beaver","Beaver Unit 8",7326,0,7326]
["Kelso/Beaver","Beaver 1 - 6",152400,0,152400]
["Mist Port Westward","Port Westward",70000,0,70000]
["Mist Port Westward II","Port Westward II",70000,0,70000]
["Mist Beaver","Beaver",70000,0,{"$f":"C180-D180","v":70000}]
["Gas Day:  ",null,null,null,"2021-05-13"]
["Receipt Point","Delivery Point","Operating Capacity (DTHS)","Schedule Volume (DTHS)","Estimated Available Capacity"]
["Kelso/Beaver","Port Westward",64000,64000,{"$f":"C183-D183","v":0}]
["Kelso/Beaver","Port Westward II",44000,23663,20337]
["Kelso/Beaver","N. Mist Storage",61000,55000,6000]
["Kelso/Beaver","Beaver Unit 8",7326,0,7326]
["Kelso/Beaver","Beaver 1 - 6",152400,0,152400]
["Mist Port Westward","Port Westward",70000,0,70000]
["Mist Port Westward II","Port Westward II",70000,0,70000]
["Mist Beaver","Beaver",70000,0,{"$f":"C190-D190","v":70000}]
["Gas Day:  ",null,null,null,"2021-05-12"]
["Receipt Point","Delivery Point","Operating Capacity (DTHS)","Schedule Volume (DTHS)","Estimated Available Capacity"]
["Kelso/Beaver","Port Westward",64000,64000,{"$f":"C193-D193","v":0}]
["Kelso/Beaver","Port Westward II",44000,33663,10337]
["Kelso/Beaver","N. Mist Storage",61000,50000,11000]
["Kelso/Beaver","Beaver Unit 8",7326,0,7326]
["Kelso/Beaver","Beaver 1 - 6",152400,0,152400]
["Mist Port Westward","Port Westward",70000,0,70000]
["Mist Port Westward II","Port Westward II",70000,0,70000]
["Mist Beaver","Beaver",70000,0,{"$f":"C200-D200","v":70000}]
["Gas Day:  ",null,null,null,"2021-05-11"]
["Receipt Point","Delivery Point","Operating Capacity (DTHS)","Schedule Volume (DTHS)","Estimated Available Capacity"]
["Kelso/Beaver","Port Westward",64000,64000,{"$f":"C203-D203","v":0}]
["Kelso/Beaver","Port Westward II",44000,8664,35336]
["Kelso/Beaver","N. Mist Storage",61000,55000,6000]
["Kelso/Beaver","Beaver Unit 8",7326,0,7326]
["Kelso/Beaver","Beaver 1 - 6",152400,0,152400]
["Mist Port Westward","Port Westward",70000,0,70000]
["Mist Port Westward II","Port Westward II",70000,0,70000]
["Mist Beaver","Beaver",70000,0,{"$f":"C210-D210","v":70000}]
["Gas Day:  ",null,null,null,"2021-05-10"]
["Receipt Point","Delivery Point","Operating Capacity (DTHS)","Schedule Volume (DTHS)","Estimated Available Capacity"]
["Kelso/Beaver","Port Westward",64000,64000,{"$f":"C213-D213","v":0}]
["Kelso/Beaver","Port Westward II",44000,9166,34834]
["Kelso/Beaver","N. Mist Storage",61000,55000,6000]
["Kelso/Beaver","Beaver Unit 8",7326,0,7326]
["Kelso/Beaver","Beaver 1 - 6",152400,0,152400]
["Mist Port Westward","Port Westward",70000,0,70000]
["Mist Port Westward II","Port Westward II",70000,0,70000]
["Mist Beaver","Beaver",70000,0,{"$f":"C220-D220","v":70000}]
["Gas Day:  ",null,null,null,"2021-05-09"]
["Receipt Point","Delivery Point","Operating Capacity (DTHS)","Schedule Volume (DTHS)","Estimated Available Capacity"]
["Kelso/Beaver","Port Westward",64000,64000,{"$f":"C223-D223","v":0}]
["Kelso/Beaver","Port Westward II",44000,9166,34834]
["Kelso/Beaver","N. Mist Storage",61000,55000,6000]
["Kelso/Beaver","Beaver Unit 8",7326,0,7326]
["Kelso/Beaver","Beaver 1 - 6",152400,0,152400]
["Mist Port Westward","Port Westward",70000,0,70000]
["Mist Port Westward II","Port Westward II",70000,0,70000]
["Mist Beaver","Beaver",70000,0,{"$f":"C230-D230","v":70000}]
["Gas Day:  ",null,null,null,"2021-05-08"]
["Receipt Point","Delivery Point","Operating Capacity (DTHS)","Schedule Volume (DTHS)","Estimated Available Capacity"]
["Kelso/Beaver","Port Westward",64000,64000,{"$f":"C233-D233","v":0}]
["Kelso/Beaver","Port Westward II",44000,9166,34834]
["Kelso/Beaver","N. Mist Storage",61000,55000,6000]
["Kelso/Beaver","Beaver Unit 8",7326,0,7326]
["Kelso/Beaver","Beaver 1 - 6",152400,0,152400]
["Mist Port Westward","Port Westward",70000,0,70000]
["Mist Port Westward II","Port Westward II",70000,0,70000]
["Mist Beaver","Beaver",70000,0,{"$f":"C240-D240","v":70000}]
["Gas Day:  ",null,null,null,"2021-05-07"]
["Receipt Point","Delivery Point","Operating Capacity (DTHS)","Schedule Volume (DTHS)","Estimated Available Capacity"]
["Kelso/Beaver","Port Westward",64000,64000,{"$f":"C243-D243","v":0}]
["Kelso/Beaver","Port Westward II",44000,8669,35331]
["Kelso/Beaver","N. Mist Storage",61000,55000,6000]
["Kelso/Beaver","Beaver Unit 8",7326,0,7326]
["Kelso/Beaver","Beaver 1 - 6",152400,0,152400]
["Mist Port Westward","Port Westward",70000,0,70000]
["Mist Port Westward II","Port Westward II",70000,0,70000]
["Mist Beaver","Beaver",70000,0,{"$f":"C250-D250","v":70000}]
["Gas Day:  ",null,null,null,"2021-05-06"]
["Receipt Point","Delivery Point","Operating Capacity (DTHS)","Schedule Volume (DTHS)","Estimated Available Capacity"]
["Kelso/Beaver","Port Westward",64000,64000,{"$f":"C253-D253","v":0}]
["Kelso/Beaver","Port Westward II",44000,8619,35381]
["Kelso/Beaver","N. Mist Storage",61000,55000,6000]
["Kelso/Beaver","Beaver Unit 8",7326,0,7326]
["Kelso/Beaver","Beaver 1 - 6",152400,0,152400]
["Mist Port Westward","Port Westward",70000,0,70000]
["Mist Port Westward II","Port Westward II",70000,0,70000]
["Mist Beaver","Beaver",70000,0,{"$f":"C260-D260","v":70000}]
["Gas Day:  ",null,null,null,"2021-05-05"]
["Receipt Point","Delivery Point","Operating Capacity (DTHS)","Schedule Volume (DTHS)","Estimated Available Capacity"]
["Kelso/Beaver","Port Westward",64000,64000,{"$f":"C263-D263","v":0}]
["Kelso/Beaver","Port Westward II",44000,13603,30397]
["Kelso/Beaver","N. Mist Storage",61000,50000,11000]
["Kelso/Beaver","Beaver Unit 8",7326,0,7326]
["Kelso/Beaver","Beaver 1 - 6",152400,0,152400]
["Mist Port Westward","Port Westward",70000,0,70000]
["Mist Port Westward II","Port Westward II",70000,0,70000]
["Mist Beaver","Beaver",70000,0,{"$f":"C270-D270","v":70000}]
["Gas Day:  ",null,null,null,"2021-05-04"]
["Receipt Point","Delivery Point","Operating Capacity (DTHS)","Schedule Volume (DTHS)","Estimated Available Capacity"]
["Kelso/Beaver","Port Westward",64000,64000,{"$f":"C273-D273","v":0}]
["Kelso/Beaver","Port Westward II",44000,8619,35381]
["Kelso/Beaver","N. Mist Storage",61000,55000,6000]
["Kelso/Beaver","Beaver Unit 8",7326,0,7326]
["Kelso/Beaver","Beaver 1 - 6",152400,0,152400]
["Mist Port Westward","Port Westward",70000,0,70000]
["Mist Port Westward II","Port Westward II",70000,0,70000]
["Mist Beaver","Beaver",70000,0,{"$f":"C280-D280","v":70000}]
["Gas Day:  ",null,null,null,"2021-05-03"]
["Receipt Point","Delivery Point","Operating Capacity (DTHS)","Schedule Volume (DTHS)","Estimated Available Capacity"]
["Kelso/Beaver","Port Westward",64000,64000,{"$f":"C283-D283","v":0}]
["Kelso/Beaver","Port Westward II",44000,9753,34247]
["Kelso/Beaver","N. Mist Storage",61000,55000,6000]
["Kelso/Beaver","Beaver Unit 8",7326,0,7326]
["Kelso/Beaver","Beaver 1 - 6",152400,0,152400]
["Mist Port Westward","Port Westward",70000,0,70000]
["Mist Port Westward II","Port Westward II",70000,0,70000]
["Mist Beaver","Beaver",70000,0,{"$f":"C290-D290","v":70000}]
["Gas Day:  ",null,null,null,"2021-05-02"]
["Receipt Point","Delivery Point","Operating Capacity (DTHS)","Schedule Volume (DTHS)","Estimated Available Capacity"]
["Kelso/Beaver","Port Westward",64000,64000,{"$f":"C293-D293","v":0}]
["Kelso/Beaver","Port Westward II",44000,9753,34247]
["Kelso/Beaver","N. Mist Storage",61000,55000,6000]
["Kelso/Beaver","Beaver Unit 8",7326,0,7326]
["Kelso/Beaver","Beaver 1 - 6",152400,0,152400]
["Mist Port Westward","Port Westward",70000,0,70000]
["Mist Port Westward II","Port Westward II",70000,0,70000]
["Mist Beaver","Beaver",70000,0,{"$f":"C300-D300","v":70000}]
["Gas Day:  ",null,null,null,"2021-05-01"]
["Receipt Point","Delivery Point","Operating Capacity (DTHS)","Schedule Volume (DTHS)","Estimated Available Capacity"]
["Kelso/Beaver","Port Westward",64000,64000,{"$f":"C303-D303","v":0}]
["Kelso/Beaver","Port Westward II",44000,9753,34247]
["Kelso/Beaver","N. Mist Storage",61000,55000,6000]
["Kelso/Beaver","Beaver Unit 8",7326,0,7326]
["Kelso/Beaver","Beaver 1 - 6",152400,0,152400]
["Mist Port Westward","Port Westward",70000,0,70000]
["Mist Port Westward II","Port Westward II",70000,0,70000]
["Mist Beaver","Beaver",70000,0,{"$f":"C310-D310","v":70000}]

{"sheet":"June","index":5,"n_rows":300,"n_cols":5,"rows_kept":300,"cut":false,"hidden":false,"merged":[]}
["Gas Day:  ",null,null,null,"2021-06-30"]
["Receipt Point","Delivery Point","Operating Capacity (DTHS)","Schedule Volume (DTHS)","Estimated Available Capacity"]
["Kelso/Beaver","Port Westward",64000,64000,{"$f":"C3-D3","v":0}]
["Kelso/Beaver","Port Westward II",44000,32865,11135]
["Kelso/Beaver","N. Mist Storage",61000,50000,11000]
["Kelso/Beaver","Beaver Unit 8",7326,0,7326]
["Kelso/Beaver","Beaver 1 - 6",152400,0,152400]
["Mist Port Westward","Port Westward",70000,0,70000]
["Mist Port Westward II","Port Westward II",70000,0,70000]
["Mist Beaver","Beaver",70000,0,{"$f":"C10-D10","v":70000}]
["Gas Day:  ",null,null,null,"2021-06-29"]
["Receipt Point","Delivery Point","Operating Capacity (DTHS)","Schedule Volume (DTHS)","Estimated Available Capacity"]
["Kelso/Beaver","Port Westward",64000,64000,{"$f":"C13-D13","v":0}]
["Kelso/Beaver","Port Westward II",44000,22869,21131]
["Kelso/Beaver","N. Mist Storage",61000,0,61000]
["Kelso/Beaver","Beaver Unit 8",7326,0,7326]
["Kelso/Beaver","Beaver 1 - 6",152400,60000,92400]
["Mist Port Westward","Port Westward",70000,0,70000]
["Mist Port Westward II","Port Westward II",70000,0,70000]
["Mist Beaver","Beaver",70000,0,{"$f":"C20-D20","v":70000}]
["Gas Day:  ",null,null,null,"2021-06-28"]
["Receipt Point","Delivery Point","Operating Capacity (DTHS)","Schedule Volume (DTHS)","Estimated Available Capacity"]
["Kelso/Beaver","Port Westward",64000,64000,{"$f":"C23-D23","v":0}]
["Kelso/Beaver","Port Westward II",44000,22868,21132]
["Kelso/Beaver","N. Mist Storage",61000,0,61000]
["Kelso/Beaver","Beaver Unit 8",7326,0,7326]
["Kelso/Beaver","Beaver 1 - 6",152400,60000,92400]
["Mist Port Westward","Port Westward",70000,0,70000]
["Mist Port Westward II","Port Westward II",70000,0,70000]
["Mist Beaver","Beaver",70000,0,{"$f":"C30-D30","v":70000}]
["Gas Day:  ",null,null,null,"2021-06-27"]
["Receipt Point","Delivery Point","Operating Capacity (DTHS)","Schedule Volume (DTHS)","Estimated Available Capacity"]
["Kelso/Beaver","Port Westward",64000,64000,{"$f":"C33-D33","v":0}]
["Kelso/Beaver","Port Westward II",44000,22868,21132]
["Kelso/Beaver","N. Mist Storage",61000,0,61000]
["Kelso/Beaver","Beaver Unit 8",7326,0,7326]
["Kelso/Beaver","Beaver 1 - 6",152400,60000,92400]
["Mist Port Westward","Port Westward",70000,0,70000]
["Mist Port Westward II","Port Westward II",70000,0,70000]
["Mist Beaver","Beaver",70000,0,{"$f":"C40-D40","v":70000}]
["Gas Day:  ",null,null,null,"2021-06-26"]
["Receipt Point","Delivery Point","Operating Capacity (DTHS)","Schedule Volume (DTHS)","Estimated Available Capacity"]
["Kelso/Beaver","Port Westward",64000,64000,{"$f":"C43-D43","v":0}]
["Kelso/Beaver","Port Westward II",44000,22868,21132]
["Kelso/Beaver","N. Mist Storage",61000,0,61000]
["Kelso/Beaver","Beaver Unit 8",7326,0,7326]
["Kelso/Beaver","Beaver 1 - 6",152400,60000,92400]
["Mist Port Westward","Port Westward",70000,0,70000]
["Mist Port Westward II","Port Westward II",70000,0,70000]
["Mist Beaver","Beaver",70000,0,{"$f":"C50-D50","v":70000}]
["Gas Day:  ",null,null,null,"2021-06-25"]
["Receipt Point","Delivery Point","Operating Capacity (DTHS)","Schedule Volume (DTHS)","Estimated Available Capacity"]
["Kelso/Beaver","Port Westward",64000,60000,{"$f":"C53-D53","v":4000}]
["Kelso/Beaver","Port Westward II",44000,14869,29131]
["Kelso/Beaver","N. Mist Storage",61000,36000,25000]
["Kelso/Beaver","Beaver Unit 8",7326,0,7326]
["Kelso/Beaver","Beaver 1 - 6",152400,36000,116400]
["Mist Port Westward","Port Westward",70000,0,70000]
["Mist Port Westward II","Port Westward II",70000,0,70000]
["Mist Beaver","Beaver",70000,0,{"$f":"C60-D60","v":70000}]
["Gas Day:  ",null,null,null,"2021-06-24"]
["Receipt Point","Delivery Point","Operating Capacity (DTHS)","Schedule Volume (DTHS)","Estimated Available Capacity"]
["Kelso/Beaver","Port Westward",64000,64000,{"$f":"C63-D63","v":0}]
["Kelso/Beaver","Port Westward II",44000,26869,17131]
["Kelso/Beaver","N. Mist Storage",61000,56000,5000]
["Kelso/Beaver","Beaver Unit 8",7326,0,7326]
["Kelso/Beaver","Beaver 1 - 6",152400,0,152400]
["Mist Port Westward","Port Westward",70000,0,70000]
["Mist Port Westward II","Port Westward II",70000,0,70000]
["Mist Beaver","Beaver",70000,0,{"$f":"C70-D70","v":70000}]
["Gas Day:  ",null,null,null,"2021-06-23"]
["Receipt Point","Delivery Point","Operating Capacity (DTHS)","Schedule Volume (DTHS)","Estimated Available Capacity"]
["Kelso/Beaver","Port Westward",64000,64000,{"$f":"C73-D73","v":0}]
["Kelso/Beaver","Port Westward II",44000,26870,17130]
["Kelso/Beaver","N. Mist Storage",61000,56000,5000]
["Kelso/Beaver","Beaver Unit 8",7326,0,7326]
["Kelso/Beaver","Beaver 1 - 6",152400,0,152400]
["Mist Port Westward","Port Westward",70000,0,70000]
["Mist Port Westward II","Port Westward II",70000,0,70000]
["Mist Beaver","Beaver",70000,0,{"$f":"C80-D80","v":70000}]
["Gas Day:  ",null,null,null,"2021-06-22"]
["Receipt Point","Delivery Point","Operating Capacity (DTHS)","Schedule Volume (DTHS)","Estimated Available Capacity"]
["Kelso/Beaver","Port Westward",64000,60000,{"$f":"C83-D83","v":4000}]
["Kelso/Beaver","Port Westward II",44000,31910,12090]
["Kelso/Beaver","N. Mist Storage",61000,55000,6000]
["Kelso/Beaver","Beaver Unit 8",7326,0,7326]
["Kelso/Beaver","Beaver 1 - 6",152400,0,152400]
["Mist Port Westward","Port Westward",70000,0,70000]
["Mist Port Westward II","Port Westward II",70000,0,70000]
["Mist Beaver","Beaver",70000,0,{"$f":"C90-D90","v":70000}]
["Gas Day:  ",null,null,null,"2021-06-21"]
["Receipt Point","Delivery Point","Operating Capacity (DTHS)","Schedule Volume (DTHS)","Estimated Available Capacity"]
["Kelso/Beaver","Port Westward",64000,64000,{"$f":"C93-D93","v":0}]
["Kelso/Beaver","Port Westward II",44000,23008,20992]
["Kelso/Beaver","N. Mist Storage",61000,0,61000]
["Kelso/Beaver","Beaver Unit 8",7326,0,7326]
["Kelso/Beaver","Beaver 1 - 6",152400,60000,92400]
["Mist Port Westward","Port Westward",70000,0,70000]
["Mist Port Westward II","Port Westward II",70000,0,70000]
["Mist Beaver","Beaver",70000,0,{"$f":"C100-D100","v":70000}]
["Gas Day:  ",null,null,null,"2021-06-20"]
["Receipt Point","Delivery Point","Operating Capacity (DTHS)","Schedule Volume (DTHS)","Estimated Available Capacity"]
["Kelso/Beaver","Port Westward",64000,64000,{"$f":"C103-D103","v":0}]
["Kelso/Beaver","Port Westward II",44000,23008,20992]
["Kelso/Beaver","N. Mist Storage",61000,0,61000]
["Kelso/Beaver","Beaver Unit 8",7326,0,7326]
["Kelso/Beaver","Beaver 1 - 6",152400,60000,92400]
["Mist Port Westward","Port Westward",70000,0,70000]
["Mist Port Westward II","Port Westward II",70000,0,70000]
["Mist Beaver","Beaver",70000,0,{"$f":"C110-D110","v":70000}]
["Gas Day:  ",null,null,null,"2021-06-19"]
["Receipt Point","Delivery Point","Operating Capacity (DTHS)","Schedule Volume (DTHS)","Estimated Available Capacity"]
["Kelso/Beaver","Port Westward",64000,64000,{"$f":"C113-D113","v":0}]
["Kelso/Beaver","Port Westward II",44000,23008,20992]
["Kelso/Beaver","N. Mist Storage",61000,0,61000]
["Kelso/Beaver","Beaver Unit 8",7326,0,7326]
["Kelso/Beaver","Beaver 1 - 6",152400,60000,92400]
["Mist Port Westward","Port Westward",70000,0,70000]
["Mist Port Westward II","Port Westward II",70000,0,70000]
["Mist Beaver","Beaver",70000,0,{"$f":"C120-D120","v":70000}]
["Gas Day:  ",null,null,null,"2021-06-18"]
["Receipt Point","Delivery Point","Operating Capacity (DTHS)","Schedule Volume (DTHS)","Estimated Available Capacity"]
["Kelso/Beaver","Port Westward",64000,64000,{"$f":"C123-D123","v":0}]
["Kelso/Beaver","Port Westward II",44000,32873,11127]
["Kelso/Beaver","N. Mist Storage",61000,0,61000]
["Kelso/Beaver","Beaver Unit 8",7326,0,7326]
["Kelso/Beaver","Beaver 1 - 6",152400,50000,102400]
["Mist Port Westward","Port Westward",70000,0,70000]
["Mist Port Westward II","Port Westward II",70000,0,70000]
["Mist Beaver","Beaver",70000,0,{"$f":"C130-D130","v":70000}]
["Gas Day:  ",null,null,null,"2021-06-17"]
["Receipt Point","Delivery Point","Operating Capacity (DTHS)","Schedule Volume (DTHS)","Estimated Available Capacity"]
["Kelso/Beaver","Port Westward",64000,64000,{"$f":"C133-D133","v":0}]
["Kelso/Beaver","Port Westward II",44000,32931,11069]
["Kelso/Beaver","N. Mist Storage",61000,0,61000]
["Kelso/Beaver","Beaver Unit 8",7326,0,7326]
["Kelso/Beaver","Beaver 1 - 6",152400,50000,102400]
["Mist Port Westward","Port Westward",70000,0,70000]
["Mist Port Westward II","Port Westward II",70000,0,70000]
["Mist Beaver","Beaver",70000,0,{"$f":"C140-D140","v":70000}]
["Gas Day:  ",null,null,null,"2021-06-16"]
["Receipt Point","Delivery Point","Operating Capacity (DTHS)","Schedule Volume (DTHS)","Estimated Available Capacity"]
["Kelso/Beaver","Port Westward",64000,64000,{"$f":"C143-D143","v":0}]
["Kelso/Beaver","Port Westward II",44000,32874,11126]
["Kelso/Beaver","N. Mist Storage",61000,0,61000]
["Kelso/Beaver","Beaver Unit 8",7326,0,7326]
["Kelso/Beaver","Beaver 1 - 6",152400,50000,102400]
["Mist Port Westward","Port Westward",70000,0,70000]
["Mist Port Westward II","Port Westward II",70000,0,70000]
["Mist Beaver","Beaver",70000,0,{"$f":"C150-D150","v":70000}]
["Gas Day:  ",null,null,null,"2021-06-15"]
["Receipt Point","Delivery Point","Operating Capacity (DTHS)","Schedule Volume (DTHS)","Estimated Available Capacity"]
["Kelso/Beaver","Port Westward",64000,64000,{"$f":"C153-D153","v":0}]
["Kelso/Beaver","Port Westward II",44000,17913,26087]
["Kelso/Beaver","N. Mist Storage",61000,0,61000]
["Kelso/Beaver","Beaver Unit 8",7326,0,7326]
["Kelso/Beaver","Beaver 1 - 6",152400,50000,102400]
["Mist Port Westward","Port Westward",70000,0,70000]
["Mist Port Westward II","Port Westward II",70000,0,70000]
["Mist Beaver","Beaver",70000,0,{"$f":"C160-D160","v":70000}]
["Gas Day:  ",null,null,null,"2021-06-14"]
["Receipt Point","Delivery Point","Operating Capacity (DTHS)","Schedule Volume (DTHS)","Estimated Available Capacity"]
["Kelso/Beaver","Port Westward",64000,64000,{"$f":"C163-D163","v":0}]
["Kelso/Beaver","Port Westward II",44000,18134,25866]
["Kelso/Beaver","N. Mist Storage",61000,0,61000]
["Kelso/Beaver","Beaver Unit 8",7326,0,7326]
["Kelso/Beaver","Beaver 1 - 6",152400,50000,102400]
["Mist Port Westward","Port Westward",70000,0,70000]
["Mist Port Westward II","Port Westward II",70000,0,70000]
["Mist Beaver","Beaver",70000,0,{"$f":"C170-D170","v":70000}]
["Gas Day:  ",null,null,null,"2021-06-13"]
["Receipt Point","Delivery Point","Operating Capacity (DTHS)","Schedule Volume (DTHS)","Estimated Available Capacity"]
["Kelso/Beaver","Port Westward",64000,64000,{"$f":"C173-D173","v":0}]
["Kelso/Beaver","Port Westward II",44000,18134,25866]
["Kelso/Beaver","N. Mist Storage",61000,0,61000]
["Kelso/Beaver","Beaver Unit 8",7326,0,7326]
["Kelso/Beaver","Beaver 1 - 6",152400,50000,102400]
["Mist Port Westward","Port Westward",70000,0,70000]
["Mist Port Westward II","Port Westward II",70000,0,70000]
["Mist Beaver","Beaver",70000,0,{"$f":"C180-D180","v":70000}]
["Gas Day:  ",null,null,null,"2021-06-12"]
["Receipt Point","Delivery Point","Operating Capacity (DTHS)","Schedule Volume (DTHS)","Estimated Available Capacity"]
["Kelso/Beaver","Port Westward",64000,64000,{"$f":"C183-D183","v":0}]
["Kelso/Beaver","Port Westward II",44000,18134,25866]
["Kelso/Beaver","N. Mist Storage",61000,0,61000]
["Kelso/Beaver","Beaver Unit 8",7326,0,7326]
["Kelso/Beaver","Beaver 1 - 6",152400,20000,132400]
["Mist Port Westward","Port Westward",70000,0,70000]
["Mist Port Westward II","Port Westward II",70000,0,70000]
["Mist Beaver","Beaver",70000,0,{"$f":"C190-D190","v":70000}]
["Gas Day:  ",null,null,null,"2021-06-11"]
["Receipt Point","Delivery Point","Operating Capacity (DTHS)","Schedule Volume (DTHS)","Estimated Available Capacity"]
["Kelso/Beaver","Port Westward",64000,64000,{"$f":"C193-D193","v":0}]
["Kelso/Beaver","Port Westward II",44000,34141,9859]
["Kelso/Beaver","N. Mist Storage",61000,0,61000]
["Kelso/Beaver","Beaver Unit 8",7326,0,7326]
["Kelso/Beaver","Beaver 1 - 6",152400,0,152400]
["Mist Port Westward","Port Westward",70000,0,70000]
["Mist Port Westward II","Port Westward II",70000,0,70000]
["Mist Beaver","Beaver",70000,0,{"$f":"C200-D200","v":70000}]
["Gas Day:  ",null,null,null,"2021-06-10"]
["Receipt Point","Delivery Point","Operating Capacity (DTHS)","Schedule Volume (DTHS)","Estimated Available Capacity"]
["Kelso/Beaver","Port Westward",64000,52596,{"$f":"C203-D203","v":11404}]
["Kelso/Beaver","Port Westward II",44000,0,44000]
["Kelso/Beaver","N. Mist Storage",61000,0,61000]
["Kelso/Beaver","Beaver Unit 8",7326,0,7326]
["Kelso/Beaver","Beaver 1 - 6",152400,0,152400]
["Mist Port Westward","Port Westward",70000,0,70000]
["Mist Port Westward II","Port Westward II",70000,0,70000]
["Mist Beaver","Beaver",70000,0,{"$f":"C210-D210","v":70000}]
["Gas Day:  ",null,null,null,"2021-06-09"]
["Receipt Point","Delivery Point","Operating Capacity (DTHS)","Schedule Volume (DTHS)","Estimated Available Capacity"]
["Kelso/Beaver","Port Westward",64000,64000,{"$f":"C213-D213","v":0}]
["Kelso/Beaver","Port Westward II",44000,3409,40591]
["Kelso/Beaver","N. Mist Storage",61000,0,61000]
["Kelso/Beaver","Beaver Unit 8",7326,0,7326]
["Kelso/Beaver","Beaver 1 - 6",152400,0,152400]
["Mist Port Westward","Port Westward",70000,0,70000]
["Mist Port Westward II","Port Westward II",70000,0,70000]
["Mist Beaver","Beaver",70000,0,{"$f":"C220-D220","v":70000}]
["Gas Day:  ",null,null,null,"2021-06-08"]
["Receipt Point","Delivery Point","Operating Capacity (DTHS)","Schedule Volume (DTHS)","Estimated Available Capacity"]
["Kelso/Beaver","Port Westward",64000,64000,{"$f":"C223-D223","v":0}]
["Kelso/Beaver","Port Westward II",44000,8439,35561]
["Kelso/Beaver","N. Mist Storage",61000,0,61000]
["Kelso/Beaver","Beaver Unit 8",7326,0,7326]
["Kelso/Beaver","Beaver 1 - 6",152400,0,152400]
["Mist Port Westward","Port Westward",70000,0,70000]
["Mist Port Westward II","Port Westward II",70000,0,70000]
["Mist Beaver","Beaver",70000,0,{"$f":"C230-D230","v":70000}]
["Gas Day:  ",null,null,null,"2021-06-07"]
["Receipt Point","Delivery Point","Operating Capacity (DTHS)","Schedule Volume (DTHS)","Estimated Available Capacity"]
["Kelso/Beaver","Port Westward",64000,0,{"$f":"C233-D233","v":64000}]
["Kelso/Beaver","Port Westward II",44000,12389,31611]
["Kelso/Beaver","N. Mist Storage",61000,0,61000]
["Kelso/Beaver","Beaver Unit 8",7326,0,7326]
["Kelso/Beaver","Beaver 1 - 6",152400,0,152400]
["Mist Port Westward","Port Westward",70000,0,70000]
["Mist Port Westward II","Port Westward II",70000,0,70000]
["Mist Beaver","Beaver",70000,0,{"$f":"C240-D240","v":70000}]
["Gas Day:  ",null,null,null,"2021-06-06"]
["Receipt Point","Delivery Point","Operating Capacity (DTHS)","Schedule Volume (DTHS)","Estimated Available Capacity"]
["Kelso/Beaver","Port Westward",64000,0,{"$f":"C243-D243","v":64000}]
["Kelso/Beaver","Port Westward II",44000,12389,31611]
["Kelso/Beaver","N. Mist Storage",61000,0,61000]
["Kelso/Beaver","Beaver Unit 8",7326,0,7326]
["Kelso/Beaver","Beaver 1 - 6",152400,0,152400]
["Mist Port Westward","Port Westward",70000,0,70000]
["Mist Port Westward II","Port Westward II",70000,0,70000]
["Mist Beaver","Beaver",70000,0,{"$f":"C250-D250","v":70000}]
["Gas Day:  ",null,null,null,"2021-06-05"]
["Receipt Point","Delivery Point","Operating Capacity (DTHS)","Schedule Volume (DTHS)","Estimated Available Capacity"]
["Kelso/Beaver","Port Westward",64000,0,{"$f":"C253-D253","v":64000}]
["Kelso/Beaver","Port Westward II",44000,12389,31611]
["Kelso/Beaver","N. Mist Storage",61000,0,61000]
["Kelso/Beaver","Beaver Unit 8",7326,0,7326]
["Kelso/Beaver","Beaver 1 - 6",152400,0,152400]
["Mist Port Westward","Port Westward",70000,0,70000]
["Mist Port Westward II","Port Westward II",70000,0,70000]
["Mist Beaver","Beaver",70000,0,{"$f":"C260-D260","v":70000}]
["Gas Day:  ",null,null,null,"2021-06-04"]
["Receipt Point","Delivery Point","Operating Capacity (DTHS)","Schedule Volume (DTHS)","Estimated Available Capacity"]
["Kelso/Beaver","Port Westward",64000,0,{"$f":"C263-D263","v":64000}]
["Kelso/Beaver","Port Westward II",44000,10443,33557]
["Kelso/Beaver","N. Mist Storage",61000,0,61000]
["Kelso/Beaver","Beaver Unit 8",7326,0,7326]
["Kelso/Beaver","Beaver 1 - 6",152400,0,152400]
["Mist Port Westward","Port Westward",70000,0,70000]
["Mist Port Westward II","Port Westward II",70000,0,70000]
["Mist Beaver","Beaver",70000,0,{"$f":"C270-D270","v":70000}]
["Gas Day:  ",null,null,null,"2021-06-03"]
["Receipt Point","Delivery Point","Operating Capacity (DTHS)","Schedule Volume (DTHS)","Estimated Available Capacity"]
["Kelso/Beaver","Port Westward",64000,0,{"$f":"C273-D273","v":64000}]
["Kelso/Beaver","Port Westward II",44000,20018,23982]
["Kelso/Beaver","N. Mist Storage",61000,0,61000]
["Kelso/Beaver","Beaver Unit 8",7326,0,7326]
["Kelso/Beaver","Beaver 1 - 6",152400,60000,92400]
["Mist Port Westward","Port Westward",70000,0,70000]
["Mist Port Westward II","Port Westward II",70000,0,70000]
["Mist Beaver","Beaver",70000,0,{"$f":"C280-D280","v":70000}]
["Gas Day:  ",null,null,null,"2021-06-02"]
["Receipt Point","Delivery Point","Operating Capacity (DTHS)","Schedule Volume (DTHS)","Estimated Available Capacity"]
["Kelso/Beaver","Port Westward",64000,0,{"$f":"C283-D283","v":64000}]
["Kelso/Beaver","Port Westward II",44000,36994,7006]
["Kelso/Beaver","N. Mist Storage",61000,0,61000]
["Kelso/Beaver","Beaver Unit 8",7326,0,7326]
["Kelso/Beaver","Beaver 1 - 6",152400,80000,72400]
["Mist Port Westward","Port Westward",70000,0,70000]
["Mist Port Westward II","Port Westward II",70000,0,70000]
["Mist Beaver","Beaver",70000,0,{"$f":"C290-D290","v":70000}]
["Gas Day:  ",null,null,null,"2021-06-01"]
["Receipt Point","Delivery Point","Operating Capacity (DTHS)","Schedule Volume (DTHS)","Estimated Available Capacity"]
["Kelso/Beaver","Port Westward",64000,0,{"$f":"C293-D293","v":64000}]
["Kelso/Beaver","Port Westward II",44000,32099,11901]
["Kelso/Beaver","N. Mist Storage",61000,0,61000]
["Kelso/Beaver","Beaver Unit 8",7326,0,7326]
["Kelso/Beaver","Beaver 1 - 6",152400,80000,72400]
["Mist Port Westward","Port Westward",70000,0,70000]
["Mist Port Westward II","Port Westward II",70000,0,70000]
["Mist Beaver","Beaver",70000,0,{"$f":"C300-D300","v":70000}]

{"sheet":"July","index":6,"n_rows":310,"n_cols":5,"rows_kept":310,"cut":false,"hidden":false,"merged":[]}
["Gas Day:  ",null,null,null,"2021-07-31"]
["Receipt Point","Delivery Point","Operating Capacity (DTHS)","Schedule Volume (DTHS)","Estimated Available Capacity"]
["Kelso/Beaver","Port Westward",64000,64000,{"$f":"C3-D3","v":0}]
["Kelso/Beaver","Port Westward II",44000,0,44000]
["Kelso/Beaver","N. Mist Storage",61000,0,61000]
["Kelso/Beaver","Beaver Unit 8",7326,0,7326]
["Kelso/Beaver","Beaver 1 - 6",152400,85875,66525]
["Mist Port Westward","Port Westward",70000,0,70000]
["Mist Port Westward II","Port Westward II",70000,0,70000]
["Mist Beaver","Beaver",70000,0,{"$f":"C10-D10","v":70000}]
["Gas Day:  ",null,null,null,"2021-07-30"]
["Receipt Point","Delivery Point","Operating Capacity (DTHS)","Schedule Volume (DTHS)","Estimated Available Capacity"]
["Kelso/Beaver","Port Westward",64000,64000,{"$f":"C13-D13","v":0}]
["Kelso/Beaver","Port Westward II",44000,0,44000]
["Kelso/Beaver","N. Mist Storage",61000,0,61000]
["Kelso/Beaver","Beaver Unit 8",7326,0,7326]
["Kelso/Beaver","Beaver 1 - 6",152400,85875,66525]
["Mist Port Westward","Port Westward",70000,0,70000]
["Mist Port Westward II","Port Westward II",70000,0,70000]
["Mist Beaver","Beaver",70000,0,{"$f":"C20-D20","v":70000}]
["Gas Day:  ",null,null,null,"2021-07-29"]
["Receipt Point","Delivery Point","Operating Capacity (DTHS)","Schedule Volume (DTHS)","Estimated Available Capacity"]
["Kelso/Beaver","Port Westward",64000,64000,{"$f":"C23-D23","v":0}]
["Kelso/Beaver","Port Westward II",44000,0,44000]
["Kelso/Beaver","N. Mist Storage",61000,0,61000]
["Kelso/Beaver","Beaver Unit 8",7326,0,7326]
["Kelso/Beaver","Beaver 1 - 6",152400,85876,66524]
["Mist Port Westward","Port Westward",70000,0,70000]
["Mist Port Westward II","Port Westward II",70000,0,70000]
["Mist Beaver","Beaver",70000,0,{"$f":"C30-D30","v":70000}]
["Gas Day:  ",null,null,null,"2021-07-28"]
["Receipt Point","Delivery Point","Operating Capacity (DTHS)","Schedule Volume (DTHS)","Estimated Available Capacity"]
["Kelso/Beaver","Port Westward",64000,64000,{"$f":"C33-D33","v":0}]
["Kelso/Beaver","Port Westward II",44000,0,44000]
["Kelso/Beaver","N. Mist Storage",61000,0,61000]
["Kelso/Beaver","Beaver Unit 8",7326,0,7326]
["Kelso/Beaver","Beaver 1 - 6",152400,85875,66525]
["Mist Port Westward","Port Westward",70000,0,70000]
["Mist Port Westward II","Port Westward II",70000,0,70000]
["Mist Beaver","Beaver",70000,0,{"$f":"C40-D40","v":70000}]
["Gas Day:  ",null,null,null,"2021-07-27"]
["Receipt Point","Delivery Point","Operating Capacity (DTHS)","Schedule Volume (DTHS)","Estimated Available Capacity"]
["Kelso/Beaver","Port Westward",64000,64000,{"$f":"C43-D43","v":0}]
["Kelso/Beaver","Port Westward II",44000,25886,18114]
["Kelso/Beaver","N. Mist Storage",61000,0,61000]
["Kelso/Beaver","Beaver Unit 8",7326,0,7326]
["Kelso/Beaver","Beaver 1 - 6",152400,60000,92400]
["Mist Port Westward","Port Westward",70000,0,70000]
["Mist Port Westward II","Port Westward II",70000,0,70000]
["Mist Beaver","Beaver",70000,0,{"$f":"C50-D50","v":70000}]
["Gas Day:  ",null,null,null,"2021-07-26"]
["Receipt Point","Delivery Point","Operating Capacity (DTHS)","Schedule Volume (DTHS)","Estimated Available Capacity"]
["Kelso/Beaver","Port Westward",64000,60000,{"$f":"C53-D53","v":4000}]
["Kelso/Beaver","Port Westward II",44000,32426,11574]
["Kelso/Beaver","N. Mist Storage",61000,0,61000]
["Kelso/Beaver","Beaver Unit 8",7326,0,7326]
["Kelso/Beaver","Beaver 1 - 6",152400,40000,112400]
["Mist Port Westward","Port Westward",70000,0,70000]
["Mist Port Westward II","Port Westward II",70000,0,70000]
["Mist Beaver","Beaver",70000,0,{"$f":"C60-D60","v":70000}]
["Gas Day:  ",null,null,null,"2021-07-25"]
["Receipt Point","Delivery Point","Operating Capacity (DTHS)","Schedule Volume (DTHS)","Estimated Available Capacity"]
["Kelso/Beaver","Port Westward",64000,60000,{"$f":"C63-D63","v":4000}]
["Kelso/Beaver","Port Westward II",44000,32426,11574]
["Kelso/Beaver","N. Mist Storage",61000,0,61000]
["Kelso/Beaver","Beaver Unit 8",7326,0,7326]
["Kelso/Beaver","Beaver 1 - 6",152400,40000,112400]
["Mist Port Westward","Port Westward",70000,0,70000]
["Mist Port Westward II","Port Westward II",70000,0,70000]
["Mist Beaver","Beaver",70000,0,{"$f":"C70-D70","v":70000}]
["Gas Day:  ",null,null,null,"2021-07-24"]
["Receipt Point","Delivery Point","Operating Capacity (DTHS)","Schedule Volume (DTHS)","Estimated Available Capacity"]
["Kelso/Beaver","Port Westward",64000,60000,{"$f":"C73-D73","v":4000}]
["Kelso/Beaver","Port Westward II",44000,32426,11574]
["Kelso/Beaver","N. Mist Storage",61000,0,61000]
["Kelso/Beaver","Beaver Unit 8",7326,0,7326]
["Kelso/Beaver","Beaver 1 - 6",152400,40000,112400]
["Mist Port Westward","Port Westward",70000,0,70000]
["Mist Port Westward II","Port Westward II",70000,0,70000]
["Mist Beaver","Beaver",70000,0,{"$f":"C80-D80","v":70000}]
["Gas Day:  ",null,null,null,"2021-07-23"]
["Receipt Point","Delivery Point","Operating Capacity (DTHS)","Schedule Volume (DTHS)","Estimated Available Capacity"]
["Kelso/Beaver","Port Westward",64000,60000,{"$f":"C83-D83","v":4000}]
["Kelso/Beaver","Port Westward II",44000,32426,11574]
["Kelso/Beaver","N. Mist Storage",61000,0,61000]
["Kelso/Beaver","Beaver Unit 8",7326,0,7326]
["Kelso/Beaver","Beaver 1 - 6",152400,40000,112400]
["Mist Port Westward","Port Westward",70000,0,70000]
["Mist Port Westward II","Port Westward II",70000,0,70000]
["Mist Beaver","Beaver",70000,0,{"$f":"C90-D90","v":70000}]
["Gas Day:  ",null,null,null,"2021-07-22"]
["Receipt Point","Delivery Point","Operating Capacity (DTHS)","Schedule Volume (DTHS)","Estimated Available Capacity"]
["Kelso/Beaver","Port Westward",64000,64000,{"$f":"C93-D93","v":0}]
["Kelso/Beaver","Port Westward II",44000,18347,25653]
["Kelso/Beaver","N. Mist Storage",61000,0,61000]
["Kelso/Beaver","Beaver Unit 8",7326,0,7326]
["Kelso/Beaver","Beaver 1 - 6",152400,50000,102400]
["Mist Port Westward","Port Westward",70000,0,70000]
["Mist Port Westward II","Port Westward II",70000,0,70000]
["Mist Beaver","Beaver",70000,0,{"$f":"C100-D100","v":70000}]
["Gas Day:  ",null,null,null,"2021-07-21"]
["Receipt Point","Delivery Point","Operating Capacity (DTHS)","Schedule Volume (DTHS)","Estimated Available Capacity"]
["Kelso/Beaver","Port Westward",64000,64000,{"$f":"C103-D103","v":0}]
["Kelso/Beaver","Port Westward II",44000,18240,25760]
["Kelso/Beaver","N. Mist Storage",61000,30000,31000]
["Kelso/Beaver","Beaver Unit 8",7326,0,7326]
["Kelso/Beaver","Beaver 1 - 6",152400,20000,132400]
["Mist Port Westward","Port Westward",70000,0,70000]
["Mist Port Westward II","Port Westward II",70000,0,70000]
["Mist Beaver","Beaver",70000,0,{"$f":"C110-D110","v":70000}]
["Gas Day:  ",null,null,null,"2021-07-20"]
["Receipt Point","Delivery Point","Operating Capacity (DTHS)","Schedule Volume (DTHS)","Estimated Available Capacity"]
["Kelso/Beaver","Port Westward",64000,64000,{"$f":"C113-D113","v":0}]
["Kelso/Beaver","Port Westward II",44000,30809,13191]
["Kelso/Beaver","N. Mist Storage",61000,0,61000]
["Kelso/Beaver","Beaver Unit 8",7326,0,7326]
["Kelso/Beaver","Beaver 1 - 6",152400,55000,97400]
["Mist Port Westward","Port Westward",70000,0,70000]
["Mist Port Westward II","Port Westward II",70000,0,70000]
["Mist Beaver","Beaver",70000,0,{"$f":"C120-D120","v":70000}]
["Gas Day:  ",null,null,null,"2021-07-19"]
["Receipt Point","Delivery Point","Operating Capacity (DTHS)","Schedule Volume (DTHS)","Estimated Available Capacity"]
["Kelso/Beaver","Port Westward",64000,64000,{"$f":"C123-D123","v":0}]
["Kelso/Beaver","Port Westward II",44000,23355,20645]
["Kelso/Beaver","N. Mist Storage",61000,0,61000]
["Kelso/Beaver","Beaver Unit 8",7326,0,7326]
["Kelso/Beaver","Beaver 1 - 6",152400,60000,92400]
["Mist Port Westward","Port Westward",70000,0,70000]
["Mist Port Westward II","Port Westward II",70000,0,70000]
["Mist Beaver","Beaver",70000,0,{"$f":"C130-D130","v":70000}]
["Gas Day:  ",null,null,null,"2021-07-18"]
["Receipt Point","Delivery Point","Operating Capacity (DTHS)","Schedule Volume (DTHS)","Estimated Available Capacity"]
["Kelso/Beaver","Port Westward",64000,64000,{"$f":"C133-D133","v":0}]
["Kelso/Beaver","Port Westward II",44000,13355,30645]
["Kelso/Beaver","N. Mist Storage",61000,30000,31000]
["Kelso/Beaver","Beaver Unit 8",7326,0,7326]
["Kelso/Beaver","Beaver 1 - 6",152400,40000,112400]
["Mist Port Westward","Port Westward",70000,0,70000]
["Mist Port Westward II","Port Westward II",70000,0,70000]
["Mist Beaver","Beaver",70000,0,{"$f":"C140-D140","v":70000}]
["Gas Day:  ",null,null,null,"2021-07-17"]
["Receipt Point","Delivery Point","Operating Capacity (DTHS)","Schedule Volume (DTHS)","Estimated Available Capacity"]
["Kelso/Beaver","Port Westward",64000,64000,{"$f":"C143-D143","v":0}]
["Kelso/Beaver","Port Westward II",44000,13355,30645]
["Kelso/Beaver","N. Mist Storage",61000,30000,31000]
["Kelso/Beaver","Beaver Unit 8",7326,0,7326]
["Kelso/Beaver","Beaver 1 - 6",152400,40000,112400]
["Mist Port Westward","Port Westward",70000,0,70000]
["Mist Port Westward II","Port Westward II",70000,0,70000]
["Mist Beaver","Beaver",70000,0,{"$f":"C150-D150","v":70000}]
["Gas Day:  ",null,null,null,"2021-07-16"]
["Receipt Point","Delivery Point","Operating Capacity (DTHS)","Schedule Volume (DTHS)","Estimated Available Capacity"]
["Kelso/Beaver","Port Westward",64000,60000,{"$f":"C153-D153","v":4000}]
["Kelso/Beaver","Port Westward II",44000,4431,39569]
["Kelso/Beaver","N. Mist Storage",61000,50000,11000]
["Kelso/Beaver","Beaver Unit 8",7326,0,7326]
["Kelso/Beaver","Beaver 1 - 6",152400,0,152400]
["Mist Port Westward","Port Westward",70000,0,70000]
["Mist Port Westward II","Port Westward II",70000,0,70000]
["Mist Beaver","Beaver",70000,0,{"$f":"C160-D160","v":70000}]
["Gas Day:  ",null,null,null,"2021-07-15"]
["Receipt Point","Delivery Point","Operating Capacity (DTHS)","Schedule Volume (DTHS)","Estimated Available Capacity"]
["Kelso/Beaver","Port Westward",64000,60000,{"$f":"C163-D163","v":4000}]
["Kelso/Beaver","Port Westward II",44000,4514,39486]
["Kelso/Beaver","N. Mist Storage",61000,50000,11000]
["Kelso/Beaver","Beaver Unit 8",7326,0,7326]
["Kelso/Beaver","Beaver 1 - 6",152400,0,152400]
["Mist Port Westward","Port Westward",70000,0,70000]
["Mist Port Westward II","Port Westward II",70000,0,70000]
["Mist Beaver","Beaver",70000,0,{"$f":"C170-D170","v":70000}]
["Gas Day:  ",null,null,null,"2021-07-14"]
["Receipt Point","Delivery Point","Operating Capacity (DTHS)","Schedule Volume (DTHS)","Estimated Available Capacity"]
["Kelso/Beaver","Port Westward",64000,60000,{"$f":"C173-D173","v":4000}]
["Kelso/Beaver","Port Westward II",44000,27369,16631]
["Kelso/Beaver","N. Mist Storage",61000,45000,16000]
["Kelso/Beaver","Beaver Unit 8",7326,0,7326]
["Kelso/Beaver","Beaver 1 - 6",152400,0,152400]
["Mist Port Westward","Port Westward",70000,0,70000]
["Mist Port Westward II","Port Westward II",70000,0,70000]
["Mist Beaver","Beaver",70000,0,{"$f":"C180-D180","v":70000}]
["Gas Day:  ",null,null,null,"2021-07-13"]
["Receipt Point","Delivery Point","Operating Capacity (DTHS)","Schedule Volume (DTHS)","Estimated Available Capacity"]
["Kelso/Beaver","Port Westward",64000,60000,{"$f":"C183-D183","v":4000}]
["Kelso/Beaver","Port Westward II",44000,27330,16670]
["Kelso/Beaver","N. Mist Storage",61000,0,61000]
["Kelso/Beaver","Beaver Unit 8",7326,0,7326]
["Kelso/Beaver","Beaver 1 - 6",152400,45000,107400]
["Mist Port Westward","Port Westward",70000,0,70000]
["Mist Port Westward II","Port Westward II",70000,0,70000]
["Mist Beaver","Beaver",70000,0,{"$f":"C190-D190","v":70000}]
["Gas Day:  ",null,null,null,"2021-07-12"]
["Receipt Point","Delivery Point","Operating Capacity (DTHS)","Schedule Volume (DTHS)","Estimated Available Capacity"]
["Kelso/Beaver","Port Westward",64000,64000,{"$f":"C193-D193","v":0}]
["Kelso/Beaver","Port Westward II",44000,30943,13057]
["Kelso/Beaver","N. Mist Storage",61000,0,61000]
["Kelso/Beaver","Beaver Unit 8",7326,0,7326]
["Kelso/Beaver","Beaver 1 - 6",152400,55000,97400]
["Mist Port Westward","Port Westward",70000,0,70000]
["Mist Port Westward II","Port Westward II",70000,0,70000]
["Mist Beaver","Beaver",70000,0,{"$f":"C200-D200","v":70000}]
["Gas Day:  ",null,null,null,"2021-07-11"]
["Receipt Point","Delivery Point","Operating Capacity (DTHS)","Schedule Volume (DTHS)","Estimated Available Capacity"]
["Kelso/Beaver","Port Westward",64000,64000,{"$f":"C203-D203","v":0}]
["Kelso/Beaver","Port Westward II",44000,30943,13057]
["Kelso/Beaver","N. Mist Storage",61000,0,61000]
["Kelso/Beaver","Beaver Unit 8",7326,0,7326]
["Kelso/Beaver","Beaver 1 - 6",152400,55000,97400]
["Mist Port Westward","Port Westward",70000,0,70000]
["Mist Port Westward II","Port Westward II",70000,0,70000]
["Mist Beaver","Beaver",70000,0,{"$f":"C210-D210","v":70000}]
["Gas Day:  ",null,null,null,"2021-07-10"]
["Receipt Point","Delivery Point","Operating Capacity (DTHS)","Schedule Volume (DTHS)","Estimated Available Capacity"]
["Kelso/Beaver","Port Westward",64000,64000,{"$f":"C213-D213","v":0}]
["Kelso/Beaver","Port Westward II",44000,30943,13057]
["Kelso/Beaver","N. Mist Storage",61000,0,61000]
["Kelso/Beaver","Beaver Unit 8",7326,0,7326]
["Kelso/Beaver","Beaver 1 - 6",152400,55000,97400]
["Mist Port Westward","Port Westward",70000,0,70000]
["Mist Port Westward II","Port Westward II",70000,0,70000]
["Mist Beaver","Beaver",70000,0,{"$f":"C220-D220","v":70000}]
["Gas Day:  ",null,null,null,"2021-07-09"]
["Receipt Point","Delivery Point","Operating Capacity (DTHS)","Schedule Volume (DTHS)","Estimated Available Capacity"]
["Kelso/Beaver","Port Westward",64000,64000,{"$f":"C223-D223","v":0}]
["Kelso/Beaver","Port Westward II",44000,30848,13152]
["Kelso/Beaver","N. Mist Storage",61000,0,61000]
["Kelso/Beaver","Beaver Unit 8",7326,0,7326]
["Kelso/Beaver","Beaver 1 - 6",152400,55000,97400]
["Mist Port Westward","Port Westward",70000,0,70000]
["Mist Port Westward II","Port Westward II",70000,0,70000]
["Mist Beaver","Beaver",70000,0,{"$f":"C230-D230","v":70000}]
["Gas Day:  ",null,null,null,"2021-07-08"]
["Receipt Point","Delivery Point","Operating Capacity (DTHS)","Schedule Volume (DTHS)","Estimated Available Capacity"]
["Kelso/Beaver","Port Westward",64000,62000,{"$f":"C233-D233","v":2000}]
["Kelso/Beaver","Port Westward II",44000,20347,23653]
["Kelso/Beaver","N. Mist Storage",61000,35000,26000]
["Kelso/Beaver","Beaver Unit 8",7326,0,7326]
["Kelso/Beaver","Beaver 1 - 6",152400,30000,122400]
["Mist Port Westward","Port Westward",70000,0,70000]
["Mist Port Westward II","Port Westward II",70000,0,70000]
["Mist Beaver","Beaver",70000,0,{"$f":"C240-D240","v":70000}]
["Gas Day:  ",null,null,null,"2021-07-07"]
["Receipt Point","Delivery Point","Operating Capacity (DTHS)","Schedule Volume (DTHS)","Estimated Available Capacity"]
["Kelso/Beaver","Port Westward",64000,62000,{"$f":"C243-D243","v":2000}]
["Kelso/Beaver","Port Westward II",44000,15347,28653]
["Kelso/Beaver","N. Mist Storage",61000,55000,6000]
["Kelso/Beaver","Beaver Unit 8",7326,0,7326]
["Kelso/Beaver","Beaver 1 - 6",152400,0,152400]
["Mist Port Westward","Port Westward",70000,0,70000]
["Mist Port Westward II","Port Westward II",70000,0,70000]
["Mist Beaver","Beaver",70000,0,{"$f":"C250-D250","v":70000}]
["Gas Day:  ",null,null,null,"2021-07-06"]
["Receipt Point","Delivery Point","Operating Capacity (DTHS)","Schedule Volume (DTHS)","Estimated Available Capacity"]
["Kelso/Beaver","Port Westward",64000,60000,{"$f":"C253-D253","v":4000}]
["Kelso/Beaver","Port Westward II",44000,11910,32090]
["Kelso/Beaver","N. Mist Storage",61000,0,61000]
["Kelso/Beaver","Beaver Unit 8",7326,0,7326]
["Kelso/Beaver","Beaver 1 - 6",152400,55000,97400]
["Mist Port Westward","Port Westward",70000,0,70000]
["Mist Port Westward II","Port Westward II",70000,0,70000]
["Mist Beaver","Beaver",70000,0,{"$f":"C260-D260","v":70000}]
["Gas Day:  ",null,null,null,"2021-07-05"]
["Receipt Point","Delivery Point","Operating Capacity (DTHS)","Schedule Volume (DTHS)","Estimated Available Capacity"]
["Kelso/Beaver","Port Westward",64000,60000,{"$f":"C263-D263","v":4000}]
["Kelso/Beaver","Port Westward II",44000,11910,32090]
["Kelso/Beaver","N. Mist Storage",61000,0,61000]
["Kelso/Beaver","Beaver Unit 8",7326,0,7326]
["Kelso/Beaver","Beaver 1 - 6",152400,55000,97400]
["Mist Port Westward","Port Westward",70000,0,70000]
["Mist Port Westward II","Port Westward II",70000,0,70000]
["Mist Beaver","Beaver",70000,0,{"$f":"C270-D270","v":70000}]
["Gas Day:  ",null,null,null,"2021-07-04"]
["Receipt Point","Delivery Point","Operating Capacity (DTHS)","Schedule Volume (DTHS)","Estimated Available Capacity"]
["Kelso/Beaver","Port Westward",64000,60000,{"$f":"C273-D273","v":4000}]
["Kelso/Beaver","Port Westward II",44000,11910,32090]
["Kelso/Beaver","N. Mist Storage",61000,0,61000]
["Kelso/Beaver","Beaver Unit 8",7326,0,7326]
["Kelso/Beaver","Beaver 1 - 6",152400,55000,97400]
["Mist Port Westward","Port Westward",70000,0,70000]
["Mist Port Westward II","Port Westward II",70000,0,70000]
["Mist Beaver","Beaver",70000,0,{"$f":"C280-D280","v":70000}]
["Gas Day:  ",null,null,null,"2021-07-03"]
["Receipt Point","Delivery Point","Operating Capacity (DTHS)","Schedule Volume (DTHS)","Estimated Available Capacity"]
["Kelso/Beaver","Port Westward",64000,60000,{"$f":"C283-D283","v":4000}]
["Kelso/Beaver","Port Westward II",44000,11910,32090]
["Kelso/Beaver","N. Mist Storage",61000,0,61000]
["Kelso/Beaver","Beaver Unit 8",7326,0,7326]
["Kelso/Beaver","Beaver 1 - 6",152400,55000,97400]
["Mist Port Westward","Port Westward",70000,0,70000]
["Mist Port Westward II","Port Westward II",70000,0,70000]
["Mist Beaver","Beaver",70000,0,{"$f":"C290-D290","v":70000}]
["Gas Day:  ",null,null,null,"2021-07-02"]
["Receipt Point","Delivery Point","Operating Capacity (DTHS)","Schedule Volume (DTHS)","Estimated Available Capacity"]
["Kelso/Beaver","Port Westward",64000,62000,{"$f":"C293-D293","v":2000}]
["Kelso/Beaver","Port Westward II",44000,13035,30965]
["Kelso/Beaver","N. Mist Storage",61000,55000,6000]
["Kelso/Beaver","Beaver Unit 8",7326,0,7326]
["Kelso/Beaver","Beaver 1 - 6",152400,0,152400]
["Mist Port Westward","Port Westward",70000,0,70000]
["Mist Port Westward II","Port Westward II",70000,0,70000]
["Mist Beaver","Beaver",70000,0,{"$f":"C300-D300","v":70000}]
["Gas Day:  ",null,null,null,"2021-07-01"]
["Receipt Point","Delivery Point","Operating Capacity (DTHS)","Schedule Volume (DTHS)","Estimated Available Capacity"]
["Kelso/Beaver","Port Westward",64000,64000,{"$f":"C303-D303","v":0}]
["Kelso/Beaver","Port Westward II",44000,16974,27026]
["Kelso/Beaver","N. Mist Storage",61000,56000,5000]
["Kelso/Beaver","Beaver Unit 8",7326,0,7326]
["Kelso/Beaver","Beaver 1 - 6",152400,0,152400]
["Mist Port Westward","Port Westward",70000,0,70000]
["Mist Port Westward II","Port Westward II",70000,0,70000]
["Mist Beaver","Beaver",70000,0,{"$f":"C310-D310","v":70000}]

{"sheet":"August","index":7,"n_rows":310,"n_cols":5,"rows_kept":310,"cut":false,"hidden":false,"merged":[]}
["Gas Day:  ",null,null,null,"2021-08-31"]
["Receipt Point","Delivery Point","Operating Capacity (DTHS)","Schedule Volume (DTHS)","Estimated Available Capacity"]
["Kelso/Beaver","Port Westward",64000,60000,{"$f":"C3-D3","v":4000}]
["Kelso/Beaver","Port Westward II",44000,13843,30157]
["Kelso/Beaver","N. Mist Storage",61000,0,61000]
["Kelso/Beaver","Beaver Unit 8",7326,0,7326]
["Kelso/Beaver","Beaver 1 - 6",152400,0,152400]
["Mist Port Westward","Port Westward",70000,0,70000]
["Mist Port Westward II","Port Westward II",70000,0,70000]
["Mist Beaver","Beaver",70000,0,{"$f":"C10-D10","v":70000}]
["Gas Day:  ",null,null,null,"2021-08-30"]
["Receipt Point","Delivery Point","Operating Capacity (DTHS)","Schedule Volume (DTHS)","Estimated Available Capacity"]
["Kelso/Beaver","Port Westward",64000,60000,{"$f":"C13-D13","v":4000}]
["Kelso/Beaver","Port Westward II",44000,33670,10330]
["Kelso/Beaver","N. Mist Storage",61000,0,61000]
["Kelso/Beaver","Beaver Unit 8",7326,0,7326]
["Kelso/Beaver","Beaver 1 - 6",152400,0,152400]
["Mist Port Westward","Port Westward",70000,0,70000]
["Mist Port Westward II","Port Westward II",70000,0,70000]
["Mist Beaver","Beaver",70000,0,{"$f":"C20-D20","v":70000}]
["Gas Day:  ",null,null,null,"2021-08-29"]
["Receipt Point","Delivery Point","Operating Capacity (DTHS)","Schedule Volume (DTHS)","Estimated Available Capacity"]
["Kelso/Beaver","Port Westward",64000,60000,{"$f":"C23-D23","v":4000}]
["Kelso/Beaver","Port Westward II",44000,33670,10330]
["Kelso/Beaver","N. Mist Storage",61000,0,61000]
["Kelso/Beaver","Beaver Unit 8",7326,0,7326]
["Kelso/Beaver","Beaver 1 - 6",152400,0,152400]
["Mist Port Westward","Port Westward",70000,0,70000]
["Mist Port Westward II","Port Westward II",70000,0,70000]
["Mist Beaver","Beaver",70000,0,{"$f":"C30-D30","v":70000}]
["Gas Day:  ",null,null,null,"2021-08-28"]
["Receipt Point","Delivery Point","Operating Capacity (DTHS)","Schedule Volume (DTHS)","Estimated Available Capacity"]
["Kelso/Beaver","Port Westward",64000,60000,{"$f":"C33-D33","v":4000}]
["Kelso/Beaver","Port Westward II",44000,33670,10330]
["Kelso/Beaver","N. Mist Storage",61000,0,61000]
["Kelso/Beaver","Beaver Unit 8",7326,0,7326]
["Kelso/Beaver","Beaver 1 - 6",152400,0,152400]
["Mist Port Westward","Port Westward",70000,0,70000]
["Mist Port Westward II","Port Westward II",70000,0,70000]
["Mist Beaver","Beaver",70000,0,{"$f":"C40-D40","v":70000}]
["Gas Day:  ",null,null,null,"2021-08-27"]
["Receipt Point","Delivery Point","Operating Capacity (DTHS)","Schedule Volume (DTHS)","Estimated Available Capacity"]
["Kelso/Beaver","Port Westward",64000,60000,{"$f":"C43-D43","v":4000}]
["Kelso/Beaver","Port Westward II",44000,5419,38581]
["Kelso/Beaver","N. Mist Storage",61000,0,61000]
["Kelso/Beaver","Beaver Unit 8",7326,0,7326]
["Kelso/Beaver","Beaver 1 - 6",152400,0,152400]
["Mist Port Westward","Port Westward",70000,0,70000]
["Mist Port Westward II","Port Westward II",70000,0,70000]
["Mist Beaver","Beaver",70000,0,{"$f":"C50-D50","v":70000}]
["Gas Day:  ",null,null,null,"2021-08-26"]
["Receipt Point","Delivery Point","Operating Capacity (DTHS)","Schedule Volume (DTHS)","Estimated Available Capacity"]
["Kelso/Beaver","Port Westward",64000,64000,{"$f":"C53-D53","v":0}]
["Kelso/Beaver","Port Westward II",44000,18359,25641]
["Kelso/Beaver","N. Mist Storage",61000,0,61000]
["Kelso/Beaver","Beaver Unit 8",7326,0,7326]
["Kelso/Beaver","Beaver 1 - 6",152400,0,152400]
["Mist Port Westward","Port Westward",70000,0,70000]
["Mist Port Westward II","Port Westward II",70000,0,70000]
["Mist Beaver","Beaver",70000,0,{"$f":"C60-D60","v":70000}]
["Gas Day:  ",null,null,null,"2021-08-25"]
["Receipt Point","Delivery Point","Operating Capacity (DTHS)","Schedule Volume (DTHS)","Estimated Available Capacity"]
["Kelso/Beaver","Port Westward",64000,64000,{"$f":"C63-D63","v":0}]
["Kelso/Beaver","Port Westward II",44000,23418,20582]
["Kelso/Beaver","N. Mist Storage",61000,0,61000]
["Kelso/Beaver","Beaver Unit 8",7326,0,7326]
["Kelso/Beaver","Beaver 1 - 6",152400,45000,107400]
["Mist Port Westward","Port Westward",70000,0,70000]
["Mist Port Westward II","Port Westward II",70000,0,70000]
["Mist Beaver","Beaver",70000,0,{"$f":"C70-D70","v":70000}]
["Gas Day:  ",null,null,null,"2021-08-24"]
["Receipt Point","Delivery Point","Operating Capacity (DTHS)","Schedule Volume (DTHS)","Estimated Available Capacity"]
["Kelso/Beaver","Port Westward",64000,64000,{"$f":"C73-D73","v":0}]
["Kelso/Beaver","Port Westward II",44000,25791,18209]
["Kelso/Beaver","N. Mist Storage",61000,0,61000]
["Kelso/Beaver","Beaver Unit 8",7326,0,7326]
["Kelso/Beaver","Beaver 1 - 6",152400,0,152400]
["Mist Port Westward","Port Westward",70000,0,70000]
["Mist Port Westward II","Port Westward II",70000,0,70000]
["Mist Beaver","Beaver",70000,0,{"$f":"C80-D80","v":70000}]
["Gas Day:  ",null,null,null,"2021-08-23"]
["Receipt Point","Delivery Point","Operating Capacity (DTHS)","Schedule Volume (DTHS)","Estimated Available Capacity"]
["Kelso/Beaver","Port Westward",64000,64000,{"$f":"C83-D83","v":0}]
["Kelso/Beaver","Port Westward II",44000,16375,27625]
["Kelso/Beaver","N. Mist Storage",61000,0,61000]
["Kelso/Beaver","Beaver Unit 8",7326,0,7326]
["Kelso/Beaver","Beaver 1 - 6",152400,0,152400]
["Mist Port Westward","Port Westward",70000,0,70000]
["Mist Port Westward II","Port Westward II",70000,0,70000]
["Mist Beaver","Beaver",70000,0,{"$f":"C90-D90","v":70000}]
["Gas Day:  ",null,null,null,"2021-08-22"]
["Receipt Point","Delivery Point","Operating Capacity (DTHS)","Schedule Volume (DTHS)","Estimated Available Capacity"]
["Kelso/Beaver","Port Westward",64000,64000,{"$f":"C93-D93","v":0}]
["Kelso/Beaver","Port Westward II",44000,16375,27625]
["Kelso/Beaver","N. Mist Storage",61000,0,61000]
["Kelso/Beaver","Beaver Unit 8",7326,0,7326]
["Kelso/Beaver","Beaver 1 - 6",152400,0,152400]
["Mist Port Westward","Port Westward",70000,0,70000]
["Mist Port Westward II","Port Westward II",70000,0,70000]
["Mist Beaver","Beaver",70000,0,{"$f":"C100-D100","v":70000}]
["Gas Day:  ",null,null,null,"2021-08-21"]
["Receipt Point","Delivery Point","Operating Capacity (DTHS)","Schedule Volume (DTHS)","Estimated Available Capacity"]
["Kelso/Beaver","Port Westward",64000,64000,{"$f":"C103-D103","v":0}]
["Kelso/Beaver","Port Westward II",44000,16375,27625]
["Kelso/Beaver","N. Mist Storage",61000,0,61000]
["Kelso/Beaver","Beaver Unit 8",7326,0,7326]
["Kelso/Beaver","Beaver 1 - 6",152400,0,152400]
["Mist Port Westward","Port Westward",70000,0,70000]
["Mist Port Westward II","Port Westward II",70000,0,70000]
["Mist Beaver","Beaver",70000,0,{"$f":"C110-D110","v":70000}]
["Gas Day:  ",null,null,null,"2021-08-20"]
["Receipt Point","Delivery Point","Operating Capacity (DTHS)","Schedule Volume (DTHS)","Estimated Available Capacity"]
["Kelso/Beaver","Port Westward",64000,64000,{"$f":"C113-D113","v":0}]
["Kelso/Beaver","Port Westward II",44000,5476,38524]
["Kelso/Beaver","N. Mist Storage",61000,12000,49000]
["Kelso/Beaver","Beaver Unit 8",7326,0,7326]
["Kelso/Beaver","Beaver 1 - 6",152400,0,152400]
["Mist Port Westward","Port Westward",70000,0,70000]
["Mist Port Westward II","Port Westward II",70000,0,70000]
["Mist Beaver","Beaver",70000,0,{"$f":"C120-D120","v":70000}]
["Gas Day:  ",null,null,null,"2021-08-19"]
["Receipt Point","Delivery Point","Operating Capacity (DTHS)","Schedule Volume (DTHS)","Estimated Available Capacity"]
["Kelso/Beaver","Port Westward",64000,64000,{"$f":"C123-D123","v":0}]
["Kelso/Beaver","Port Westward II",44000,20619,23381]
["Kelso/Beaver","N. Mist Storage",61000,0,61000]
["Kelso/Beaver","Beaver Unit 8",7326,0,7326]
["Kelso/Beaver","Beaver 1 - 6",152400,25000,127400]
["Mist Port Westward","Port Westward",70000,0,70000]
["Mist Port Westward II","Port Westward II",70000,0,70000]
["Mist Beaver","Beaver",70000,0,{"$f":"C130-D130","v":70000}]
["Gas Day:  ",null,null,null,"2021-08-18"]
["Receipt Point","Delivery Point","Operating Capacity (DTHS)","Schedule Volume (DTHS)","Estimated Available Capacity"]
["Kelso/Beaver","Port Westward",64000,64000,{"$f":"C133-D133","v":0}]
["Kelso/Beaver","Port Westward II",44000,23419,20581]
["Kelso/Beaver","N. Mist Storage",61000,0,61000]
["Kelso/Beaver","Beaver Unit 8",7326,0,7326]
["Kelso/Beaver","Beaver 1 - 6",152400,45000,107400]
["Mist Port Westward","Port Westward",70000,0,70000]
["Mist Port Westward II","Port Westward II",70000,0,70000]
["Mist Beaver","Beaver",70000,0,{"$f":"C140-D140","v":70000}]
["Gas Day:  ",null,null,null,"2021-08-17"]
["Receipt Point","Delivery Point","Operating Capacity (DTHS)","Schedule Volume (DTHS)","Estimated Available Capacity"]
["Kelso/Beaver","Port Westward",64000,64000,{"$f":"C143-D143","v":0}]
["Kelso/Beaver","Port Westward II",44000,23418,20582]
["Kelso/Beaver","N. Mist Storage",61000,0,61000]
["Kelso/Beaver","Beaver Unit 8",7326,0,7326]
["Kelso/Beaver","Beaver 1 - 6",152400,45000,107400]
["Mist Port Westward","Port Westward",70000,0,70000]
["Mist Port Westward II","Port Westward II",70000,0,70000]
["Mist Beaver","Beaver",70000,0,{"$f":"C150-D150","v":70000}]
["Gas Day:  ",null,null,null,"2021-08-16"]
["Receipt Point","Delivery Point","Operating Capacity (DTHS)","Schedule Volume (DTHS)","Estimated Available Capacity"]
["Kelso/Beaver","Port Westward",64000,64000,{"$f":"C153-D153","v":0}]
["Kelso/Beaver","Port Westward II",44000,20000,24000]
["Kelso/Beaver","N. Mist Storage",61000,0,61000]
["Kelso/Beaver","Beaver Unit 8",7326,0,7326]
["Kelso/Beaver","Beaver 1 - 6",152400,48418,103982]
["Mist Port Westward","Port Westward",70000,0,70000]
["Mist Port Westward II","Port Westward II",70000,0,70000]
["Mist Beaver","Beaver",70000,0,{"$f":"C160-D160","v":70000}]
["Gas Day:  ",null,null,null,"2021-08-15"]
["Receipt Point","Delivery Point","Operating Capacity (DTHS)","Schedule Volume (DTHS)","Estimated Available Capacity"]
["Kelso/Beaver","Port Westward",64000,64000,{"$f":"C163-D163","v":0}]
["Kelso/Beaver","Port Westward II",44000,20000,24000]
["Kelso/Beaver","N. Mist Storage",61000,0,61000]
["Kelso/Beaver","Beaver Unit 8",7326,0,7326]
["Kelso/Beaver","Beaver 1 - 6",152400,48418,103982]
["Mist Port Westward","Port Westward",70000,0,70000]
["Mist Port Westward II","Port Westward II",70000,0,70000]
["Mist Beaver","Beaver",70000,0,{"$f":"C170-D170","v":70000}]
["Gas Day:  ",null,null,null,"2021-08-14"]
["Receipt Point","Delivery Point","Operating Capacity (DTHS)","Schedule Volume (DTHS)","Estimated Available Capacity"]
["Kelso/Beaver","Port Westward",64000,64000,{"$f":"C173-D173","v":0}]
["Kelso/Beaver","Port Westward II",44000,20000,24000]
["Kelso/Beaver","N. Mist Storage",61000,0,61000]
["Kelso/Beaver","Beaver Unit 8",7326,0,7326]
["Kelso/Beaver","Beaver 1 - 6",152400,48418,103982]
["Mist Port Westward","Port Westward",70000,0,70000]
["Mist Port Westward II","Port Westward II",70000,0,70000]
["Mist Beaver","Beaver",70000,0,{"$f":"C180-D180","v":70000}]
["Gas Day:  ",null,null,null,"2021-08-13"]
["Receipt Point","Delivery Point","Operating Capacity (DTHS)","Schedule Volume (DTHS)","Estimated Available Capacity"]
["Kelso/Beaver","Port Westward",64000,0,{"$f":"C183-D183","v":64000}]
["Kelso/Beaver","Port Westward II",44000,32418,11582]
["Kelso/Beaver","N. Mist Storage",61000,0,61000]
["Kelso/Beaver","Beaver Unit 8",7326,0,7326]
["Kelso/Beaver","Beaver 1 - 6",152400,100000,52400]
["Mist Port Westward","Port Westward",70000,0,70000]
["Mist Port Westward II","Port Westward II",70000,0,70000]
["Mist Beaver","Beaver",70000,0,{"$f":"C190-D190","v":70000}]
["Gas Day:  ",null,null,null,"2021-08-12"]
["Receipt Point","Delivery Point","Operating Capacity (DTHS)","Schedule Volume (DTHS)","Estimated Available Capacity"]
["Kelso/Beaver","Port Westward",64000,0,{"$f":"C193-D193","v":64000}]
["Kelso/Beaver","Port Westward II",44000,32418,11582]
["Kelso/Beaver","N. Mist Storage",61000,0,61000]
["Kelso/Beaver","Beaver Unit 8",7326,0,7326]
["Kelso/Beaver","Beaver 1 - 6",152400,100000,52400]
["Mist Port Westward","Port Westward",70000,0,70000]
["Mist Port Westward II","Port Westward II",70000,0,70000]
["Mist Beaver","Beaver",70000,0,{"$f":"C200-D200","v":70000}]
["Gas Day:  ",null,null,null,"2021-08-11"]
["Receipt Point","Delivery Point","Operating Capacity (DTHS)","Schedule Volume (DTHS)","Estimated Available Capacity"]
["Kelso/Beaver","Port Westward",64000,0,{"$f":"C203-D203","v":64000}]
["Kelso/Beaver","Port Westward II",44000,32418,11582]
["Kelso/Beaver","N. Mist Storage",61000,0,61000]
["Kelso/Beaver","Beaver Unit 8",7326,0,7326]
["Kelso/Beaver","Beaver 1 - 6",152400,100000,52400]
["Mist Port Westward","Port Westward",70000,0,70000]
["Mist Port Westward II","Port Westward II",70000,0,70000]
["Mist Beaver","Beaver",70000,0,{"$f":"C210-D210","v":70000}]
["Gas Day:  ",null,null,null,"2021-08-10"]
["Receipt Point","Delivery Point","Operating Capacity (DTHS)","Schedule Volume (DTHS)","Estimated Available Capacity"]
["Kelso/Beaver","Port Westward",64000,0,{"$f":"C213-D213","v":64000}]
["Kelso/Beaver","Port Westward II",44000,42417,1583]
["Kelso/Beaver","N. Mist Storage",61000,0,61000]
["Kelso/Beaver","Beaver Unit 8",7326,0,7326]
["Kelso/Beaver","Beaver 1 - 6",152400,105000,47400]
["Mist Port Westward","Port Westward",70000,0,70000]
["Mist Port Westward II","Port Westward II",70000,0,70000]
["Mist Beaver","Beaver",70000,0,{"$f":"C220-D220","v":70000}]
["Gas Day:  ",null,null,null,"2021-08-09"]
["Receipt Point","Delivery Point","Operating Capacity (DTHS)","Schedule Volume (DTHS)","Estimated Available Capacity"]
["Kelso/Beaver","Port Westward",64000,0,{"$f":"C223-D223","v":64000}]
["Kelso/Beaver","Port Westward II",44000,27560,16440]
["Kelso/Beaver","N. Mist Storage",61000,0,61000]
["Kelso/Beaver","Beaver Unit 8",7326,0,7326]
["Kelso/Beaver","Beaver 1 - 6",152400,100000,52400]
["Mist Port Westward","Port Westward",70000,0,70000]
["Mist Port Westward II","Port Westward II",70000,0,70000]
["Mist Beaver","Beaver",70000,0,{"$f":"C230-D230","v":70000}]
["Gas Day:  ",null,null,null,"2021-08-08"]
["Receipt Point","Delivery Point","Operating Capacity (DTHS)","Schedule Volume (DTHS)","Estimated Available Capacity"]
["Kelso/Beaver","Port Westward",64000,60000,{"$f":"C233-D233","v":4000}]
["Kelso/Beaver","Port Westward II",44000,17560,26440]
["Kelso/Beaver","N. Mist Storage",61000,50000,11000]
["Kelso/Beaver","Beaver Unit 8",7326,0,7326]
["Kelso/Beaver","Beaver 1 - 6",152400,0,152400]
["Mist Port Westward","Port Westward",70000,0,70000]
["Mist Port Westward II","Port Westward II",70000,0,70000]
["Mist Beaver","Beaver",70000,0,{"$f":"C240-D240","v":70000}]
["Gas Day:  ",null,null,null,"2021-08-07"]
["Receipt Point","Delivery Point","Operating Capacity (DTHS)","Schedule Volume (DTHS)","Estimated Available Capacity"]
["Kelso/Beaver","Port Westward",64000,60000,{"$f":"C243-D243","v":4000}]
["Kelso/Beaver","Port Westward II",44000,17560,26440]
["Kelso/Beaver","N. Mist Storage",61000,50000,11000]
["Kelso/Beaver","Beaver Unit 8",7326,0,7326]
["Kelso/Beaver","Beaver 1 - 6",152400,0,152400]
["Mist Port Westward","Port Westward",70000,0,70000]
["Mist Port Westward II","Port Westward II",70000,0,70000]
["Mist Beaver","Beaver",70000,0,{"$f":"C250-D250","v":70000}]
["Gas Day:  ",null,null,null,"2021-08-06"]
["Receipt Point","Delivery Point","Operating Capacity (DTHS)","Schedule Volume (DTHS)","Estimated Available Capacity"]
["Kelso/Beaver","Port Westward",64000,64000,{"$f":"C253-D253","v":0}]
["Kelso/Beaver","Port Westward II",44000,10000,34000]
["Kelso/Beaver","N. Mist Storage",61000,42000,19000]
["Kelso/Beaver","Beaver Unit 8",7326,0,7326]
["Kelso/Beaver","Beaver 1 - 6",152400,16489,135911]
["Mist Port Westward","Port Westward",70000,0,70000]
["Mist Port Westward II","Port Westward II",70000,0,70000]
["Mist Beaver","Beaver",70000,0,{"$f":"C260-D260","v":70000}]
["Gas Day:  ",null,null,null,"2021-08-05"]
["Receipt Point","Delivery Point","Operating Capacity (DTHS)","Schedule Volume (DTHS)","Estimated Available Capacity"]
["Kelso/Beaver","Port Westward",64000,64000,{"$f":"C263-D263","v":0}]
["Kelso/Beaver","Port Westward II",44000,10000,34000]
["Kelso/Beaver","N. Mist Storage",61000,0,61000]
["Kelso/Beaver","Beaver Unit 8",7326,0,7326]
["Kelso/Beaver","Beaver 1 - 6",152400,75858,76542]
["Mist Port Westward","Port Westward",70000,0,70000]
["Mist Port Westward II","Port Westward II",70000,0,70000]
["Mist Beaver","Beaver",70000,0,{"$f":"C270-D270","v":70000}]
["Gas Day:  ",null,null,null,"2021-08-04"]
["Receipt Point","Delivery Point","Operating Capacity (DTHS)","Schedule Volume (DTHS)","Estimated Available Capacity"]
["Kelso/Beaver","Port Westward",64000,64000,{"$f":"C273-D273","v":0}]
["Kelso/Beaver","Port Westward II",44000,0,44000]
["Kelso/Beaver","N. Mist Storage",61000,0,61000]
["Kelso/Beaver","Beaver Unit 8",7326,0,7326]
["Kelso/Beaver","Beaver 1 - 6",152400,85858,66542]
["Mist Port Westward","Port Westward",70000,0,70000]
["Mist Port Westward II","Port Westward II",70000,0,70000]
["Mist Beaver","Beaver",70000,0,{"$f":"C280-D280","v":70000}]
["Gas Day:  ",null,null,null,"2021-08-03"]
["Receipt Point","Delivery Point","Operating Capacity (DTHS)","Schedule Volume (DTHS)","Estimated Available Capacity"]
["Kelso/Beaver","Port Westward",64000,64000,{"$f":"C283-D283","v":0}]
["Kelso/Beaver","Port Westward II",44000,0,44000]
["Kelso/Beaver","N. Mist Storage",61000,0,61000]
["Kelso/Beaver","Beaver Unit 8",7326,0,7326]
["Kelso/Beaver","Beaver 1 - 6",152400,85874,66526]
["Mist Port Westward","Port Westward",70000,0,70000]
["Mist Port Westward II","Port Westward II",70000,0,70000]
["Mist Beaver","Beaver",70000,0,{"$f":"C290-D290","v":70000}]
["Gas Day:  ",null,null,null,"2021-08-02"]
["Receipt Point","Delivery Point","Operating Capacity (DTHS)","Schedule Volume (DTHS)","Estimated Available Capacity"]
["Kelso/Beaver","Port Westward",64000,64000,{"$f":"C293-D293","v":0}]
["Kelso/Beaver","Port Westward II",44000,0,44000]
["Kelso/Beaver","N. Mist Storage",61000,0,61000]
["Kelso/Beaver","Beaver Unit 8",7326,0,7326]
["Kelso/Beaver","Beaver 1 - 6",152400,85874,66526]
["Mist Port Westward","Port Westward",70000,0,70000]
["Mist Port Westward II","Port Westward II",70000,0,70000]
["Mist Beaver","Beaver",70000,0,{"$f":"C300-D300","v":70000}]
["Gas Day:  ",null,null,null,"2021-08-01"]
["Receipt Point","Delivery Point","Operating Capacity (DTHS)","Schedule Volume (DTHS)","Estimated Available Capacity"]
["Kelso/Beaver","Port Westward",64000,64000,{"$f":"C303-D303","v":0}]
["Kelso/Beaver","Port Westward II",44000,0,44000]
["Kelso/Beaver","N. Mist Storage",61000,0,61000]
["Kelso/Beaver","Beaver Unit 8",7326,0,7326]
["Kelso/Beaver","Beaver 1 - 6",152400,85874,66526]
["Mist Port Westward","Port Westward",70000,0,70000]
["Mist Port Westward II","Port Westward II",70000,0,70000]
["Mist Beaver","Beaver",70000,0,{"$f":"C310-D310","v":70000}]

{"sheet":"September","index":8,"n_rows":300,"n_cols":5,"rows_kept":300,"cut":false,"hidden":false,"merged":[]}
["Gas Day:  ",null,null,null,"2021-09-30"]
["Receipt Point","Delivery Point","Operating Capacity (DTHS)","Schedule Volume (DTHS)","Estimated Available Capacity"]
["Kelso/Beaver","Port Westward",64000,64000,{"$f":"C3-D3","v":0}]
["Kelso/Beaver","Port Westward II",44000,38603,5397]
["Kelso/Beaver","N. Mist Storage",61000,0,61000]
["Kelso/Beaver","Beaver Unit 8",7326,0,7326]
["Kelso/Beaver","Beaver 1 - 6",152400,0,152400]
["Mist Port Westward","Port Westward",70000,0,70000]
["Mist Port Westward II","Port Westward II",70000,0,70000]
["Mist Beaver","Beaver",70000,0,{"$f":"C10-D10","v":70000}]
["Gas Day:  ",null,null,null,"2021-09-29"]
["Receipt Point","Delivery Point","Operating Capacity (DTHS)","Schedule Volume (DTHS)","Estimated Available Capacity"]
["Kelso/Beaver","Port Westward",64000,64000,{"$f":"C13-D13","v":0}]
["Kelso/Beaver","Port Westward II",44000,0,44000]
["Kelso/Beaver","N. Mist Storage",61000,0,61000]
["Kelso/Beaver","Beaver Unit 8",7326,0,7326]
["Kelso/Beaver","Beaver 1 - 6",152400,38601,113799]
["Mist Port Westward","Port Westward",70000,0,70000]
["Mist Port Westward II","Port Westward II",70000,0,70000]
["Mist Beaver","Beaver",70000,0,{"$f":"C20-D20","v":70000}]
["Gas Day:  ",null,null,null,"2021-09-28"]
["Receipt Point","Delivery Point","Operating Capacity (DTHS)","Schedule Volume (DTHS)","Estimated Available Capacity"]
["Kelso/Beaver","Port Westward",64000,64000,{"$f":"C23-D23","v":0}]
["Kelso/Beaver","Port Westward II",44000,18601,25399]
["Kelso/Beaver","N. Mist Storage",61000,20000,41000]
["Kelso/Beaver","Beaver Unit 8",7326,0,7326]
["Kelso/Beaver","Beaver 1 - 6",152400,0,152400]
["Mist Port Westward","Port Westward",70000,0,70000]
["Mist Port Westward II","Port Westward II",70000,0,70000]
["Mist Beaver","Beaver",70000,0,{"$f":"C30-D30","v":70000}]
["Gas Day:  ",null,null,null,"2021-09-27"]
["Receipt Point","Delivery Point","Operating Capacity (DTHS)","Schedule Volume (DTHS)","Estimated Available Capacity"]
["Kelso/Beaver","Port Westward",64000,64000,{"$f":"C33-D33","v":0}]
["Kelso/Beaver","Port Westward II",44000,15000,29000]
["Kelso/Beaver","N. Mist Storage",61000,43000,18000]
["Kelso/Beaver","Beaver Unit 8",7326,0,7326]
["Kelso/Beaver","Beaver 1 - 6",152400,0,152400]
["Mist Port Westward","Port Westward",70000,0,70000]
["Mist Port Westward II","Port Westward II",70000,0,70000]
["Mist Beaver","Beaver",70000,0,{"$f":"C40-D40","v":70000}]
["Gas Day:  ",null,null,null,"2021-09-26"]
["Receipt Point","Delivery Point","Operating Capacity (DTHS)","Schedule Volume (DTHS)","Estimated Available Capacity"]
["Kelso/Beaver","Port Westward",64000,64000,{"$f":"C43-D43","v":0}]
["Kelso/Beaver","Port Westward II",44000,15000,29000]
["Kelso/Beaver","N. Mist Storage",61000,43000,18000]
["Kelso/Beaver","Beaver Unit 8",7326,0,7326]
["Kelso/Beaver","Beaver 1 - 6",152400,0,152400]
["Mist Port Westward","Port Westward",70000,0,70000]
["Mist Port Westward II","Port Westward II",70000,0,70000]
["Mist Beaver","Beaver",70000,0,{"$f":"C50-D50","v":70000}]
["Gas Day:  ",null,null,null,"2021-09-25"]
["Receipt Point","Delivery Point","Operating Capacity (DTHS)","Schedule Volume (DTHS)","Estimated Available Capacity"]
["Kelso/Beaver","Port Westward",64000,64000,{"$f":"C53-D53","v":0}]
["Kelso/Beaver","Port Westward II",44000,15000,29000]
["Kelso/Beaver","N. Mist Storage",61000,43000,18000]
["Kelso/Beaver","Beaver Unit 8",7326,0,7326]
["Kelso/Beaver","Beaver 1 - 6",152400,0,152400]
["Mist Port Westward","Port Westward",70000,0,70000]
["Mist Port Westward II","Port Westward II",70000,0,70000]
["Mist Beaver","Beaver",70000,0,{"$f":"C60-D60","v":70000}]
["Gas Day:  ",null,null,null,"2021-09-24"]
["Receipt Point","Delivery Point","Operating Capacity (DTHS)","Schedule Volume (DTHS)","Estimated Available Capacity"]
["Kelso/Beaver","Port Westward",64000,64000,{"$f":"C63-D63","v":0}]
["Kelso/Beaver","Port Westward II",44000,17602,26398]
["Kelso/Beaver","N. Mist Storage",61000,0,61000]
["Kelso/Beaver","Beaver Unit 8",7326,0,7326]
["Kelso/Beaver","Beaver 1 - 6",152400,21000,131400]
["Mist Port Westward","Port Westward",70000,0,70000]
["Mist Port Westward II","Port Westward II",70000,0,70000]
["Mist Beaver","Beaver",70000,0,{"$f":"C70-D70","v":70000}]
["Gas Day:  ",null,null,null,"2021-09-23"]
["Receipt Point","Delivery Point","Operating Capacity (DTHS)","Schedule Volume (DTHS)","Estimated Available Capacity"]
["Kelso/Beaver","Port Westward",64000,64000,{"$f":"C73-D73","v":0}]
["Kelso/Beaver","Port Westward II",44000,17602,26398]
["Kelso/Beaver","N. Mist Storage",61000,0,61000]
["Kelso/Beaver","Beaver Unit 8",7326,0,7326]
["Kelso/Beaver","Beaver 1 - 6",152400,21000,131400]
["Mist Port Westward","Port Westward",70000,0,70000]
["Mist Port Westward II","Port Westward II",70000,0,70000]
["Mist Beaver","Beaver",70000,0,{"$f":"C80-D80","v":70000}]
["Gas Day:  ",null,null,null,"2021-09-22"]
["Receipt Point","Delivery Point","Operating Capacity (DTHS)","Schedule Volume (DTHS)","Estimated Available Capacity"]
["Kelso/Beaver","Port Westward",64000,64000,{"$f":"C83-D83","v":0}]
["Kelso/Beaver","Port Westward II",44000,28664,15336]
["Kelso/Beaver","N. Mist Storage",61000,30000,31000]
["Kelso/Beaver","Beaver Unit 8",7326,0,7326]
["Kelso/Beaver","Beaver 1 - 6",152400,0,152400]
["Mist Port Westward","Port Westward",70000,0,70000]
["Mist Port Westward II","Port Westward II",70000,0,70000]
["Mist Beaver","Beaver",70000,0,{"$f":"C90-D90","v":70000}]
["Gas Day:  ",null,null,null,"2021-09-21"]
["Receipt Point","Delivery Point","Operating Capacity (DTHS)","Schedule Volume (DTHS)","Estimated Available Capacity"]
["Kelso/Beaver","Port Westward",64000,0,{"$f":"C93-D93","v":64000}]
["Kelso/Beaver","Port Westward II",44000,38665,5335]
["Kelso/Beaver","N. Mist Storage",61000,0,61000]
["Kelso/Beaver","Beaver Unit 8",7326,0,7326]
["Kelso/Beaver","Beaver 1 - 6",152400,64000,88400]
["Mist Port Westward","Port Westward",70000,0,70000]
["Mist Port Westward II","Port Westward II",70000,0,70000]
["Mist Beaver","Beaver",70000,0,{"$f":"C100-D100","v":70000}]
["Gas Day:  ",null,null,null,"2021-09-20"]
["Receipt Point","Delivery Point","Operating Capacity (DTHS)","Schedule Volume (DTHS)","Estimated Available Capacity"]
["Kelso/Beaver","Port Westward",64000,64000,{"$f":"C103-D103","v":0}]
["Kelso/Beaver","Port Westward II",44000,38898,5102]
["Kelso/Beaver","N. Mist Storage",61000,0,61000]
["Kelso/Beaver","Beaver Unit 8",7326,0,7326]
["Kelso/Beaver","Beaver 1 - 6",152400,0,152400]
["Mist Port Westward","Port Westward",70000,0,70000]
["Mist Port Westward II","Port Westward II",70000,0,70000]
["Mist Beaver","Beaver",70000,0,{"$f":"C110-D110","v":70000}]
["Gas Day:  ",null,null,null,"2021-09-19"]
["Receipt Point","Delivery Point","Operating Capacity (DTHS)","Schedule Volume (DTHS)","Estimated Available Capacity"]
["Kelso/Beaver","Port Westward",64000,64000,{"$f":"C113-D113","v":0}]
["Kelso/Beaver","Port Westward II",44000,38898,5102]
["Kelso/Beaver","N. Mist Storage",61000,0,61000]
["Kelso/Beaver","Beaver Unit 8",7326,0,7326]
["Kelso/Beaver","Beaver 1 - 6",152400,0,152400]
["Mist Port Westward","Port Westward",70000,0,70000]
["Mist Port Westward II","Port Westward II",70000,0,70000]
["Mist Beaver","Beaver",70000,0,{"$f":"C120-D120","v":70000}]
["Gas Day:  ",null,null,null,"2021-09-18"]
["Receipt Point","Delivery Point","Operating Capacity (DTHS)","Schedule Volume (DTHS)","Estimated Available Capacity"]
["Kelso/Beaver","Port Westward",64000,64000,{"$f":"C123-D123","v":0}]
["Kelso/Beaver","Port Westward II",44000,38898,5102]
["Kelso/Beaver","N. Mist Storage",61000,0,61000]
["Kelso/Beaver","Beaver Unit 8",7326,0,7326]
["Kelso/Beaver","Beaver 1 - 6",152400,0,152400]
["Mist Port Westward","Port Westward",70000,0,70000]
["Mist Port Westward II","Port Westward II",70000,0,70000]
["Mist Beaver","Beaver",70000,0,{"$f":"C130-D130","v":70000}]
["Gas Day:  ",null,null,null,"2021-09-17"]
["Receipt Point","Delivery Point","Operating Capacity (DTHS)","Schedule Volume (DTHS)","Estimated Available Capacity"]
["Kelso/Beaver","Port Westward",64000,64000,{"$f":"C133-D133","v":0}]
["Kelso/Beaver","Port Westward II",44000,38601,5399]
["Kelso/Beaver","N. Mist Storage",61000,0,61000]
["Kelso/Beaver","Beaver Unit 8",7326,0,7326]
["Kelso/Beaver","Beaver 1 - 6",152400,0,152400]
["Mist Port Westward","Port Westward",70000,0,70000]
["Mist Port Westward II","Port Westward II",70000,0,70000]
["Mist Beaver","Beaver",70000,0,{"$f":"C140-D140","v":70000}]
["Gas Day:  ",null,null,null,"2021-09-16"]
["Receipt Point","Delivery Point","Operating Capacity (DTHS)","Schedule Volume (DTHS)","Estimated Available Capacity"]
["Kelso/Beaver","Port Westward",64000,64000,{"$f":"C143-D143","v":0}]
["Kelso/Beaver","Port Westward II",44000,38603,5397]
["Kelso/Beaver","N. Mist Storage",61000,0,61000]
["Kelso/Beaver","Beaver Unit 8",7326,0,7326]
["Kelso/Beaver","Beaver 1 - 6",152400,0,152400]
["Mist Port Westward","Port Westward",70000,0,70000]
["Mist Port Westward II","Port Westward II",70000,0,70000]
["Mist Beaver","Beaver",70000,0,{"$f":"C150-D150","v":70000}]
["Gas Day:  ",null,null,null,"2021-09-15"]
["Receipt Point","Delivery Point","Operating Capacity (DTHS)","Schedule Volume (DTHS)","Estimated Available Capacity"]
["Kelso/Beaver","Port Westward",64000,0,{"$f":"C153-D153","v":64000}]
["Kelso/Beaver","Port Westward II",44000,28637,15363]
["Kelso/Beaver","N. Mist Storage",61000,40000,21000]
["Kelso/Beaver","Beaver Unit 8",7326,0,7326]
["Kelso/Beaver","Beaver 1 - 6",152400,34000,118400]
["Mist Port Westward","Port Westward",70000,0,70000]
["Mist Port Westward II","Port Westward II",70000,0,70000]
["Mist Beaver","Beaver",70000,0,{"$f":"C160-D160","v":70000}]
["Gas Day:  ",null,null,null,"2021-09-14"]
["Receipt Point","Delivery Point","Operating Capacity (DTHS)","Schedule Volume (DTHS)","Estimated Available Capacity"]
["Kelso/Beaver","Port Westward",64000,0,{"$f":"C163-D163","v":64000}]
["Kelso/Beaver","Port Westward II",44000,38637,5363]
["Kelso/Beaver","N. Mist Storage",61000,0,61000]
["Kelso/Beaver","Beaver Unit 8",7326,0,7326]
["Kelso/Beaver","Beaver 1 - 6",152400,64000,88400]
["Mist Port Westward","Port Westward",70000,0,70000]
["Mist Port Westward II","Port Westward II",70000,0,70000]
["Mist Beaver","Beaver",70000,0,{"$f":"C170-D170","v":70000}]
["Gas Day:  ",null,null,null,"2021-09-13"]
["Receipt Point","Delivery Point","Operating Capacity (DTHS)","Schedule Volume (DTHS)","Estimated Available Capacity"]
["Kelso/Beaver","Port Westward",64000,64000,{"$f":"C173-D173","v":0}]
["Kelso/Beaver","Port Westward II",44000,38663,5337]
["Kelso/Beaver","N. Mist Storage",61000,0,61000]
["Kelso/Beaver","Beaver Unit 8",7326,0,7326]
["Kelso/Beaver","Beaver 1 - 6",152400,0,152400]
["Mist Port Westward","Port Westward",70000,0,70000]
["Mist Port Westward II","Port Westward II",70000,0,70000]
["Mist Beaver","Beaver",70000,0,{"$f":"C180-D180","v":70000}]
["Gas Day:  ",null,null,null,"2021-09-12"]
["Receipt Point","Delivery Point","Operating Capacity (DTHS)","Schedule Volume (DTHS)","Estimated Available Capacity"]
["Kelso/Beaver","Port Westward",64000,64000,{"$f":"C183-D183","v":0}]
["Kelso/Beaver","Port Westward II",44000,38663,5337]
["Kelso/Beaver","N. Mist Storage",61000,0,61000]
["Kelso/Beaver","Beaver Unit 8",7326,0,7326]
["Kelso/Beaver","Beaver 1 - 6",152400,0,152400]
["Mist Port Westward","Port Westward",70000,0,70000]
["Mist Port Westward II","Port Westward II",70000,0,70000]
["Mist Beaver","Beaver",70000,0,{"$f":"C190-D190","v":70000}]
["Gas Day:  ",null,null,null,"2021-09-11"]
["Receipt Point","Delivery Point","Operating Capacity (DTHS)","Schedule Volume (DTHS)","Estimated Available Capacity"]
["Kelso/Beaver","Port Westward",64000,64000,{"$f":"C193-D193","v":0}]
["Kelso/Beaver","Port Westward II",44000,38663,5337]
["Kelso/Beaver","N. Mist Storage",61000,0,61000]
["Kelso/Beaver","Beaver Unit 8",7326,0,7326]
["Kelso/Beaver","Beaver 1 - 6",152400,0,152400]
["Mist Port Westward","Port Westward",70000,0,70000]
["Mist Port Westward II","Port Westward II",70000,0,70000]
["Mist Beaver","Beaver",70000,0,{"$f":"C200-D200","v":70000}]
["Gas Day:  ",null,null,null,"2021-09-10"]
["Receipt Point","Delivery Point","Operating Capacity (DTHS)","Schedule Volume (DTHS)","Estimated Available Capacity"]
["Kelso/Beaver","Port Westward",64000,64000,{"$f":"C203-D203","v":0}]
["Kelso/Beaver","Port Westward II",44000,38662,5338]
["Kelso/Beaver","N. Mist Storage",61000,0,61000]
["Kelso/Beaver","Beaver Unit 8",7326,0,7326]
["Kelso/Beaver","Beaver 1 - 6",152400,0,152400]
["Mist Port Westward","Port Westward",70000,0,70000]
["Mist Port Westward II","Port Westward II",70000,0,70000]
["Mist Beaver","Beaver",70000,0,{"$f":"C210-D210","v":70000}]
["Gas Day:  ",null,null,null,"2021-09-09"]
["Receipt Point","Delivery Point","Operating Capacity (DTHS)","Schedule Volume (DTHS)","Estimated Available Capacity"]
["Kelso/Beaver","Port Westward",64000,64000,{"$f":"C213-D213","v":0}]
["Kelso/Beaver","Port Westward II",44000,38663,5337]
["Kelso/Beaver","N. Mist Storage",61000,0,61000]
["Kelso/Beaver","Beaver Unit 8",7326,0,7326]
["Kelso/Beaver","Beaver 1 - 6",152400,0,152400]
["Mist Port Westward","Port Westward",70000,0,70000]
["Mist Port Westward II","Port Westward II",70000,0,70000]
["Mist Beaver","Beaver",70000,0,{"$f":"C220-D220","v":70000}]
["Gas Day:  ",null,null,null,"2021-09-08"]
["Receipt Point","Delivery Point","Operating Capacity (DTHS)","Schedule Volume (DTHS)","Estimated Available Capacity"]
["Kelso/Beaver","Port Westward",64000,64000,{"$f":"C223-D223","v":0}]
["Kelso/Beaver","Port Westward II",44000,38605,5395]
["Kelso/Beaver","N. Mist Storage",61000,0,61000]
["Kelso/Beaver","Beaver Unit 8",7326,0,7326]
["Kelso/Beaver","Beaver 1 - 6",152400,0,152400]
["Mist Port Westward","Port Westward",70000,0,70000]
["Mist Port Westward II","Port Westward II",70000,0,70000]
["Mist Beaver","Beaver",70000,0,{"$f":"C230-D230","v":70000}]
["Gas Day:  ",null,null,null,"2021-09-07"]
["Receipt Point","Delivery Point","Operating Capacity (DTHS)","Schedule Volume (DTHS)","Estimated Available Capacity"]
["Kelso/Beaver","Port Westward",64000,64000,{"$f":"C233-D233","v":0}]
["Kelso/Beaver","Port Westward II",44000,0,44000]
["Kelso/Beaver","N. Mist Storage",61000,0,61000]
["Kelso/Beaver","Beaver Unit 8",7326,0,7326]
["Kelso/Beaver","Beaver 1 - 6",152400,38861,113539]
["Mist Port Westward","Port Westward",70000,0,70000]
["Mist Port Westward II","Port Westward II",70000,0,70000]
["Mist Beaver","Beaver",70000,0,{"$f":"C240-D240","v":70000}]
["Gas Day:  ",null,null,null,"2021-09-06"]
["Receipt Point","Delivery Point","Operating Capacity (DTHS)","Schedule Volume (DTHS)","Estimated Available Capacity"]
["Kelso/Beaver","Port Westward",64000,64000,{"$f":"C243-D243","v":0}]
["Kelso/Beaver","Port Westward II",44000,0,44000]
["Kelso/Beaver","N. Mist Storage",61000,0,61000]
["Kelso/Beaver","Beaver Unit 8",7326,0,7326]
["Kelso/Beaver","Beaver 1 - 6",152400,38861,113539]
["Mist Port Westward","Port Westward",70000,0,70000]
["Mist Port Westward II","Port Westward II",70000,0,70000]
["Mist Beaver","Beaver",70000,0,{"$f":"C250-D250","v":70000}]
["Gas Day:  ",null,null,null,"2021-09-05"]
["Receipt Point","Delivery Point","Operating Capacity (DTHS)","Schedule Volume (DTHS)","Estimated Available Capacity"]
["Kelso/Beaver","Port Westward",64000,64000,{"$f":"C253-D253","v":0}]
["Kelso/Beaver","Port Westward II",44000,0,44000]
["Kelso/Beaver","N. Mist Storage",61000,0,61000]
["Kelso/Beaver","Beaver Unit 8",7326,0,7326]
["Kelso/Beaver","Beaver 1 - 6",152400,38861,113539]
["Mist Port Westward","Port Westward",70000,0,70000]
["Mist Port Westward II","Port Westward II",70000,0,70000]
["Mist Beaver","Beaver",70000,0,{"$f":"C260-D260","v":70000}]
["Gas Day:  ",null,null,null,"2021-09-04"]
["Receipt Point","Delivery Point","Operating Capacity (DTHS)","Schedule Volume (DTHS)","Estimated Available Capacity"]
["Kelso/Beaver","Port Westward",64000,64000,{"$f":"C263-D263","v":0}]
["Kelso/Beaver","Port Westward II",44000,0,44000]
["Kelso/Beaver","N. Mist Storage",61000,0,61000]
["Kelso/Beaver","Beaver Unit 8",7326,0,7326]
["Kelso/Beaver","Beaver 1 - 6",152400,38861,113539]
["Mist Port Westward","Port Westward",70000,0,70000]
["Mist Port Westward II","Port Westward II",70000,0,70000]
["Mist Beaver","Beaver",70000,0,{"$f":"C270-D270","v":70000}]
["Gas Day:  ",null,null,null,"2021-09-03"]
["Receipt Point","Delivery Point","Operating Capacity (DTHS)","Schedule Volume (DTHS)","Estimated Available Capacity"]
["Kelso/Beaver","Port Westward",64000,64000,{"$f":"C273-D273","v":0}]
["Kelso/Beaver","Port Westward II",44000,0,44000]
["Kelso/Beaver","N. Mist Storage",61000,0,61000]
["Kelso/Beaver","Beaver Unit 8",7326,0,7326]
["Kelso/Beaver","Beaver 1 - 6",152400,38593,113807]
["Mist Port Westward","Port Westward",70000,0,70000]
["Mist Port Westward II","Port Westward II",70000,0,70000]
["Mist Beaver","Beaver",70000,0,{"$f":"C280-D280","v":70000}]
["Gas Day:  ",null,null,null,"2021-09-02"]
["Receipt Point","Delivery Point","Operating Capacity (DTHS)","Schedule Volume (DTHS)","Estimated Available Capacity"]
["Kelso/Beaver","Port Westward",64000,64000,{"$f":"C283-D283","v":0}]
["Kelso/Beaver","Port Westward II",44000,0,44000]
["Kelso/Beaver","N. Mist Storage",61000,0,61000]
["Kelso/Beaver","Beaver Unit 8",7326,0,7326]
["Kelso/Beaver","Beaver 1 - 6",152400,38593,113807]
["Mist Port Westward","Port Westward",70000,0,70000]
["Mist Port Westward II","Port Westward II",70000,0,70000]
["Mist Beaver","Beaver",70000,0,{"$f":"C290-D290","v":70000}]
["Gas Day:  ",null,null,null,"2021-09-01"]
["Receipt Point","Delivery Point","Operating Capacity (DTHS)","Schedule Volume (DTHS)","Estimated Available Capacity"]
["Kelso/Beaver","Port Westward",64000,64000,{"$f":"C293-D293","v":0}]
["Kelso/Beaver","Port Westward II",44000,0,44000]
["Kelso/Beaver","N. Mist Storage",61000,0,61000]
["Kelso/Beaver","Beaver Unit 8",7326,0,7326]
["Kelso/Beaver","Beaver 1 - 6",152400,38593,113807]
["Mist Port Westward","Port Westward",70000,0,70000]
["Mist Port Westward II","Port Westward II",70000,0,70000]
["Mist Beaver","Beaver",70000,0,{"$f":"C300-D300","v":70000}]

{"sheet":"October","index":9,"n_rows":310,"n_cols":5,"rows_kept":310,"cut":false,"hidden":false,"merged":[]}
["Gas Day:  ",null,null,null,"2021-10-31"]
["Receipt Point","Delivery Point","Operating Capacity (DTHS)","Schedule Volume (DTHS)","Estimated Available Capacity"]
["Kelso/Beaver","Port Westward",64000,64000,{"$f":"C3-D3","v":0}]
["Kelso/Beaver","Port Westward II",44000,17679,26321]
["Kelso/Beaver","N. Mist Storage",61000,50000,11000]
["Kelso/Beaver","Beaver Unit 8",7326,0,7326]
["Kelso/Beaver","Beaver 1 - 6",152400,0,152400]
["Mist Port Westward","Port Westward",70000,0,70000]
["Mist Port Westward II","Port Westward II",70000,0,70000]
["Mist Beaver","Beaver",70000,0,{"$f":"C10-D10","v":70000}]
["Gas Day:  ",null,null,null,"2021-10-30"]
["Receipt Point","Delivery Point","Operating Capacity (DTHS)","Schedule Volume (DTHS)","Estimated Available Capacity"]
["Kelso/Beaver","Port Westward",64000,64000,{"$f":"C13-D13","v":0}]
["Kelso/Beaver","Port Westward II",44000,17679,26321]
["Kelso/Beaver","N. Mist Storage",61000,50000,11000]
["Kelso/Beaver","Beaver Unit 8",7326,0,7326]
["Kelso/Beaver","Beaver 1 - 6",152400,0,152400]
["Mist Port Westward","Port Westward",70000,0,70000]
["Mist Port Westward II","Port Westward II",70000,0,70000]
["Mist Beaver","Beaver",70000,0,{"$f":"C20-D20","v":70000}]
["Gas Day:  ",null,null,null,"2021-10-29"]
["Receipt Point","Delivery Point","Operating Capacity (DTHS)","Schedule Volume (DTHS)","Estimated Available Capacity"]
["Kelso/Beaver","Port Westward",64000,64000,{"$f":"C23-D23","v":0}]
["Kelso/Beaver","Port Westward II",44000,27679,16321]
["Kelso/Beaver","N. Mist Storage",61000,0,61000]
["Kelso/Beaver","Beaver Unit 8",7326,0,7326]
["Kelso/Beaver","Beaver 1 - 6",152400,40000,112400]
["Mist Port Westward","Port Westward",70000,0,70000]
["Mist Port Westward II","Port Westward II",70000,0,70000]
["Mist Beaver","Beaver",70000,0,{"$f":"C30-D30","v":70000}]
["Gas Day:  ",null,null,null,"2021-10-28"]
["Receipt Point","Delivery Point","Operating Capacity (DTHS)","Schedule Volume (DTHS)","Estimated Available Capacity"]
["Kelso/Beaver","Port Westward",64000,64000,{"$f":"C33-D33","v":0}]
["Kelso/Beaver","Port Westward II",44000,20157,23843]
["Kelso/Beaver","N. Mist Storage",61000,0,61000]
["Kelso/Beaver","Beaver Unit 8",7326,0,7326]
["Kelso/Beaver","Beaver 1 - 6",152400,30000,122400]
["Mist Port Westward","Port Westward",70000,0,70000]
["Mist Port Westward II","Port Westward II",70000,0,70000]
["Mist Beaver","Beaver",70000,0,{"$f":"C40-D40","v":70000}]
["Gas Day:  ",null,null,null,"2021-10-27"]
["Receipt Point","Delivery Point","Operating Capacity (DTHS)","Schedule Volume (DTHS)","Estimated Available Capacity"]
["Kelso/Beaver","Port Westward",64000,64000,{"$f":"C43-D43","v":0}]
["Kelso/Beaver","Port Westward II",44000,27885,16115]
["Kelso/Beaver","N. Mist Storage",61000,0,61000]
["Kelso/Beaver","Beaver Unit 8",7326,0,7326]
["Kelso/Beaver","Beaver 1 - 6",152400,50000,102400]
["Mist Port Westward","Port Westward",70000,0,70000]
["Mist Port Westward II","Port Westward II",70000,0,70000]
["Mist Beaver","Beaver",70000,0,{"$f":"C50-D50","v":70000}]
["Gas Day:  ",null,null,null,"2021-10-26"]
["Receipt Point","Delivery Point","Operating Capacity (DTHS)","Schedule Volume (DTHS)","Estimated Available Capacity"]
["Kelso/Beaver","Port Westward",64000,62500,{"$f":"C53-D53","v":1500}]
["Kelso/Beaver","Port Westward II",44000,14385,29615]
["Kelso/Beaver","N. Mist Storage",61000,55000,6000]
["Kelso/Beaver","Beaver Unit 8",7326,0,7326]
["Kelso/Beaver","Beaver 1 - 6",152400,0,152400]
["Mist Port Westward","Port Westward",70000,0,70000]
["Mist Port Westward II","Port Westward II",70000,0,70000]
["Mist Beaver","Beaver",70000,0,{"$f":"C60-D60","v":70000}]
["Gas Day:  ",null,null,null,"2021-10-25"]
["Receipt Point","Delivery Point","Operating Capacity (DTHS)","Schedule Volume (DTHS)","Estimated Available Capacity"]
["Kelso/Beaver","Port Westward",64000,62500,{"$f":"C63-D63","v":1500}]
["Kelso/Beaver","Port Westward II",44000,35530,8470]
["Kelso/Beaver","N. Mist Storage",61000,60000,1000]
["Kelso/Beaver","Beaver Unit 8",7326,0,7326]
["Kelso/Beaver","Beaver 1 - 6",152400,0,152400]
["Mist Port Westward","Port Westward",70000,0,70000]
["Mist Port Westward II","Port Westward II",70000,0,70000]
["Mist Beaver","Beaver",70000,0,{"$f":"C70-D70","v":70000}]
["Gas Day:  ",null,null,null,"2021-10-24"]
["Receipt Point","Delivery Point","Operating Capacity (DTHS)","Schedule Volume (DTHS)","Estimated Available Capacity"]
["Kelso/Beaver","Port Westward",64000,62500,{"$f":"C73-D73","v":1500}]
["Kelso/Beaver","Port Westward II",44000,35530,8470]
["Kelso/Beaver","N. Mist Storage",61000,60000,1000]
["Kelso/Beaver","Beaver Unit 8",7326,0,7326]
["Kelso/Beaver","Beaver 1 - 6",152400,0,152400]
["Mist Port Westward","Port Westward",70000,0,70000]
["Mist Port Westward II","Port Westward II",70000,0,70000]
["Mist Beaver","Beaver",70000,0,{"$f":"C80-D80","v":70000}]
["Gas Day:  ",null,null,null,"2021-10-23"]
["Receipt Point","Delivery Point","Operating Capacity (DTHS)","Schedule Volume (DTHS)","Estimated Available Capacity"]
["Kelso/Beaver","Port Westward",64000,62500,{"$f":"C83-D83","v":1500}]
["Kelso/Beaver","Port Westward II",44000,35530,8470]
["Kelso/Beaver","N. Mist Storage",61000,60000,1000]
["Kelso/Beaver","Beaver Unit 8",7326,0,7326]
["Kelso/Beaver","Beaver 1 - 6",152400,0,152400]
["Mist Port Westward","Port Westward",70000,0,70000]
["Mist Port Westward II","Port Westward II",70000,0,70000]
["Mist Beaver","Beaver",70000,0,{"$f":"C90-D90","v":70000}]
["Gas Day:  ",null,null,null,"2021-10-22"]
["Receipt Point","Delivery Point","Operating Capacity (DTHS)","Schedule Volume (DTHS)","Estimated Available Capacity"]
["Kelso/Beaver","Port Westward",64000,0,{"$f":"C93-D93","v":64000}]
["Kelso/Beaver","Port Westward II",44000,31888,12112]
["Kelso/Beaver","N. Mist Storage",61000,60000,1000]
["Kelso/Beaver","Beaver Unit 8",7326,0,7326]
["Kelso/Beaver","Beaver 1 - 6",152400,50000,102400]
["Mist Port Westward","Port Westward",70000,0,70000]
["Mist Port Westward II","Port Westward II",70000,0,70000]
["Mist Beaver","Beaver",70000,0,{"$f":"C100-D100","v":70000}]
["Gas Day:  ",null,null,null,"2021-10-21"]
["Receipt Point","Delivery Point","Operating Capacity (DTHS)","Schedule Volume (DTHS)","Estimated Available Capacity"]
["Kelso/Beaver","Port Westward",64000,0,{"$f":"C103-D103","v":64000}]
["Kelso/Beaver","Port Westward II",44000,26917,17083]
["Kelso/Beaver","N. Mist Storage",61000,60000,1000]
["Kelso/Beaver","Beaver Unit 8",7326,0,7326]
["Kelso/Beaver","Beaver 1 - 6",152400,40000,112400]
["Mist Port Westward","Port Westward",70000,0,70000]
["Mist Port Westward II","Port Westward II",70000,0,70000]
["Mist Beaver","Beaver",70000,0,{"$f":"C110-D110","v":70000}]
["Gas Day:  ",null,null,null,"2021-10-20"]
["Receipt Point","Delivery Point","Operating Capacity (DTHS)","Schedule Volume (DTHS)","Estimated Available Capacity"]
["Kelso/Beaver","Port Westward",64000,0,{"$f":"C113-D113","v":64000}]
["Kelso/Beaver","Port Westward II",44000,17445,26555]
["Kelso/Beaver","N. Mist Storage",61000,60000,1000]
["Kelso/Beaver","Beaver Unit 8",7326,0,7326]
["Kelso/Beaver","Beaver 1 - 6",152400,25000,127400]
["Mist Port Westward","Port Westward",70000,0,70000]
["Mist Port Westward II","Port Westward II",70000,0,70000]
["Mist Beaver","Beaver",70000,0,{"$f":"C120-D120","v":70000}]
["Gas Day:  ",null,null,null,"2021-10-19"]
["Receipt Point","Delivery Point","Operating Capacity (DTHS)","Schedule Volume (DTHS)","Estimated Available Capacity"]
["Kelso/Beaver","Port Westward",64000,62500,{"$f":"C123-D123","v":1500}]
["Kelso/Beaver","Port Westward II",44000,24385,19615]
["Kelso/Beaver","N. Mist Storage",61000,60000,1000]
["Kelso/Beaver","Beaver Unit 8",7326,0,7326]
["Kelso/Beaver","Beaver 1 - 6",152400,0,152400]
["Mist Port Westward","Port Westward",70000,0,70000]
["Mist Port Westward II","Port Westward II",70000,0,70000]
["Mist Beaver","Beaver",70000,0,{"$f":"C130-D130","v":70000}]
["Gas Day:  ",null,null,null,"2021-10-18"]
["Receipt Point","Delivery Point","Operating Capacity (DTHS)","Schedule Volume (DTHS)","Estimated Available Capacity"]
["Kelso/Beaver","Port Westward",64000,64000,{"$f":"C133-D133","v":0}]
["Kelso/Beaver","Port Westward II",44000,17884,26116]
["Kelso/Beaver","N. Mist Storage",61000,50000,11000]
["Kelso/Beaver","Beaver Unit 8",7326,0,7326]
["Kelso/Beaver","Beaver 1 - 6",152400,0,152400]
["Mist Port Westward","Port Westward",70000,0,70000]
["Mist Port Westward II","Port Westward II",70000,0,70000]
["Mist Beaver","Beaver",70000,0,{"$f":"C140-D140","v":70000}]
["Gas Day:  ",null,null,null,"2021-10-17"]
["Receipt Point","Delivery Point","Operating Capacity (DTHS)","Schedule Volume (DTHS)","Estimated Available Capacity"]
["Kelso/Beaver","Port Westward",64000,64000,{"$f":"C143-D143","v":0}]
["Kelso/Beaver","Port Westward II",44000,17884,26116]
["Kelso/Beaver","N. Mist Storage",61000,50000,11000]
["Kelso/Beaver","Beaver Unit 8",7326,0,7326]
["Kelso/Beaver","Beaver 1 - 6",152400,0,152400]
["Mist Port Westward","Port Westward",70000,0,70000]
["Mist Port Westward II","Port Westward II",70000,0,70000]
["Mist Beaver","Beaver",70000,0,{"$f":"C150-D150","v":70000}]
["Gas Day:  ",null,null,null,"2021-10-16"]
["Receipt Point","Delivery Point","Operating Capacity (DTHS)","Schedule Volume (DTHS)","Estimated Available Capacity"]
["Kelso/Beaver","Port Westward",64000,64000,{"$f":"C153-D153","v":0}]
["Kelso/Beaver","Port Westward II",44000,17884,26116]
["Kelso/Beaver","N. Mist Storage",61000,50000,11000]
["Kelso/Beaver","Beaver Unit 8",7326,0,7326]
["Kelso/Beaver","Beaver 1 - 6",152400,0,152400]
["Mist Port Westward","Port Westward",70000,0,70000]
["Mist Port Westward II","Port Westward II",70000,0,70000]
["Mist Beaver","Beaver",70000,0,{"$f":"C160-D160","v":70000}]
["Gas Day:  ",null,null,null,"2021-10-15"]
["Receipt Point","Delivery Point","Operating Capacity (DTHS)","Schedule Volume (DTHS)","Estimated Available Capacity"]
["Kelso/Beaver","Port Westward",64000,64000,{"$f":"C163-D163","v":0}]
["Kelso/Beaver","Port Westward II",44000,19053,24947]
["Kelso/Beaver","N. Mist Storage",61000,45000,16000]
["Kelso/Beaver","Beaver Unit 8",7326,0,7326]
["Kelso/Beaver","Beaver 1 - 6",152400,0,152400]
["Mist Port Westward","Port Westward",70000,0,70000]
["Mist Port Westward II","Port Westward II",70000,0,70000]
["Mist Beaver","Beaver",70000,0,{"$f":"C170-D170","v":70000}]
["Gas Day:  ",null,null,null,"2021-10-14"]
["Receipt Point","Delivery Point","Operating Capacity (DTHS)","Schedule Volume (DTHS)","Estimated Available Capacity"]
["Kelso/Beaver","Port Westward",64000,64000,{"$f":"C173-D173","v":0}]
["Kelso/Beaver","Port Westward II",44000,22911,21089]
["Kelso/Beaver","N. Mist Storage",61000,45000,16000]
["Kelso/Beaver","Beaver Unit 8",7326,0,7326]
["Kelso/Beaver","Beaver 1 - 6",152400,0,152400]
["Mist Port Westward","Port Westward",70000,0,70000]
["Mist Port Westward II","Port Westward II",70000,0,70000]
["Mist Beaver","Beaver",70000,0,{"$f":"C180-D180","v":70000}]
["Gas Day:  ",null,null,null,"2021-10-13"]
["Receipt Point","Delivery Point","Operating Capacity (DTHS)","Schedule Volume (DTHS)","Estimated Available Capacity"]
["Kelso/Beaver","Port Westward",64000,64000,{"$f":"C183-D183","v":0}]
["Kelso/Beaver","Port Westward II",44000,17921,26079]
["Kelso/Beaver","N. Mist Storage",61000,50000,11000]
["Kelso/Beaver","Beaver Unit 8",7326,0,7326]
["Kelso/Beaver","Beaver 1 - 6",152400,0,152400]
["Mist Port Westward","Port Westward",70000,0,70000]
["Mist Port Westward II","Port Westward II",70000,0,70000]
["Mist Beaver","Beaver",70000,0,{"$f":"C190-D190","v":70000}]
["Gas Day:  ",null,null,null,"2021-10-12"]
["Receipt Point","Delivery Point","Operating Capacity (DTHS)","Schedule Volume (DTHS)","Estimated Available Capacity"]
["Kelso/Beaver","Port Westward",64000,64000,{"$f":"C193-D193","v":0}]
["Kelso/Beaver","Port Westward II",44000,17850,26150]
["Kelso/Beaver","N. Mist Storage",61000,50000,11000]
["Kelso/Beaver","Beaver Unit 8",7326,0,7326]
["Kelso/Beaver","Beaver 1 - 6",152400,0,152400]
["Mist Port Westward","Port Westward",70000,0,70000]
["Mist Port Westward II","Port Westward II",70000,0,70000]
["Mist Beaver","Beaver",70000,0,{"$f":"C200-D200","v":70000}]
["Gas Day:  ",null,null,null,"2021-10-11"]
["Receipt Point","Delivery Point","Operating Capacity (DTHS)","Schedule Volume (DTHS)","Estimated Available Capacity"]
["Kelso/Beaver","Port Westward",64000,62500,{"$f":"C203-D203","v":1500}]
["Kelso/Beaver","Port Westward II",44000,9349,34651]
["Kelso/Beaver","N. Mist Storage",61000,55000,6000]
["Kelso/Beaver","Beaver Unit 8",7326,0,7326]
["Kelso/Beaver","Beaver 1 - 6",152400,0,152400]
["Mist Port Westward","Port Westward",70000,0,70000]
["Mist Port Westward II","Port Westward II",70000,0,70000]
["Mist Beaver","Beaver",70000,0,{"$f":"C210-D210","v":70000}]
["Gas Day:  ",null,null,null,"2021-10-10"]
["Receipt Point","Delivery Point","Operating Capacity (DTHS)","Schedule Volume (DTHS)","Estimated Available Capacity"]
["Kelso/Beaver","Port Westward",64000,62500,{"$f":"C213-D213","v":1500}]
["Kelso/Beaver","Port Westward II",44000,9349,34651]
["Kelso/Beaver","N. Mist Storage",61000,55000,6000]
["Kelso/Beaver","Beaver Unit 8",7326,0,7326]
["Kelso/Beaver","Beaver 1 - 6",152400,0,152400]
["Mist Port Westward","Port Westward",70000,0,70000]
["Mist Port Westward II","Port Westward II",70000,0,70000]
["Mist Beaver","Beaver",70000,0,{"$f":"C220-D220","v":70000}]
["Gas Day:  ",null,null,null,"2021-10-09"]
["Receipt Point","Delivery Point","Operating Capacity (DTHS)","Schedule Volume (DTHS)","Estimated Available Capacity"]
["Kelso/Beaver","Port Westward",64000,62500,{"$f":"C223-D223","v":1500}]
["Kelso/Beaver","Port Westward II",44000,9349,34651]
["Kelso/Beaver","N. Mist Storage",61000,55000,6000]
["Kelso/Beaver","Beaver Unit 8",7326,0,7326]
["Kelso/Beaver","Beaver 1 - 6",152400,0,152400]
["Mist Port Westward","Port Westward",70000,0,70000]
["Mist Port Westward II","Port Westward II",70000,0,70000]
["Mist Beaver","Beaver",70000,0,{"$f":"C230-D230","v":70000}]
["Gas Day:  ",null,null,null,"2021-10-08"]
["Receipt Point","Delivery Point","Operating Capacity (DTHS)","Schedule Volume (DTHS)","Estimated Available Capacity"]
["Kelso/Beaver","Port Westward",64000,62500,{"$f":"C233-D233","v":1500}]
["Kelso/Beaver","Port Westward II",44000,4479,39521]
["Kelso/Beaver","N. Mist Storage",61000,55000,6000]
["Kelso/Beaver","Beaver Unit 8",7326,0,7326]
["Kelso/Beaver","Beaver 1 - 6",152400,0,152400]
["Mist Port Westward","Port Westward",70000,0,70000]
["Mist Port Westward II","Port Westward II",70000,0,70000]
["Mist Beaver","Beaver",70000,0,{"$f":"C240-D240","v":70000}]
["Gas Day:  ",null,null,null,"2021-10-07"]
["Receipt Point","Delivery Point","Operating Capacity (DTHS)","Schedule Volume (DTHS)","Estimated Available Capacity"]
["Kelso/Beaver","Port Westward",64000,64000,{"$f":"C243-D243","v":0}]
["Kelso/Beaver","Port Westward II",44000,18151,25849]
["Kelso/Beaver","N. Mist Storage",61000,50000,11000]
["Kelso/Beaver","Beaver Unit 8",7326,0,7326]
["Kelso/Beaver","Beaver 1 - 6",152400,0,152400]
["Mist Port Westward","Port Westward",70000,0,70000]
["Mist Port Westward II","Port Westward II",70000,0,70000]
["Mist Beaver","Beaver",70000,0,{"$f":"C250-D250","v":70000}]
["Gas Day:  ",null,null,null,"2021-10-06"]
["Receipt Point","Delivery Point","Operating Capacity (DTHS)","Schedule Volume (DTHS)","Estimated Available Capacity"]
["Kelso/Beaver","Port Westward",64000,62151,{"$f":"C253-D253","v":1849}]
["Kelso/Beaver","Port Westward II",44000,0,44000]
["Kelso/Beaver","N. Mist Storage",61000,40000,21000]
["Kelso/Beaver","Beaver Unit 8",7326,0,7326]
["Kelso/Beaver","Beaver 1 - 6",152400,0,152400]
["Mist Port Westward","Port Westward",70000,0,70000]
["Mist Port Westward II","Port Westward II",70000,0,70000]
["Mist Beaver","Beaver",70000,0,{"$f":"C260-D260","v":70000}]
["Gas Day:  ",null,null,null,"2021-10-05"]
["Receipt Point","Delivery Point","Operating Capacity (DTHS)","Schedule Volume (DTHS)","Estimated Available Capacity"]
["Kelso/Beaver","Port Westward",64000,64000,{"$f":"C263-D263","v":0}]
["Kelso/Beaver","Port Westward II",44000,38109,5891]
["Kelso/Beaver","N. Mist Storage",61000,0,61000]
["Kelso/Beaver","Beaver Unit 8",7326,0,7326]
["Kelso/Beaver","Beaver 1 - 6",152400,0,152400]
["Mist Port Westward","Port Westward",70000,0,70000]
["Mist Port Westward II","Port Westward II",70000,0,70000]
["Mist Beaver","Beaver",70000,0,{"$f":"C270-D270","v":70000}]
["Gas Day:  ",null,null,null,"2021-10-04"]
["Receipt Point","Delivery Point","Operating Capacity (DTHS)","Schedule Volume (DTHS)","Estimated Available Capacity"]
["Kelso/Beaver","Port Westward",64000,64000,{"$f":"C273-D273","v":0}]
["Kelso/Beaver","Port Westward II",44000,38123,5877]
["Kelso/Beaver","N. Mist Storage",61000,0,61000]
["Kelso/Beaver","Beaver Unit 8",7326,0,7326]
["Kelso/Beaver","Beaver 1 - 6",152400,0,152400]
["Mist Port Westward","Port Westward",70000,0,70000]
["Mist Port Westward II","Port Westward II",70000,0,70000]
["Mist Beaver","Beaver",70000,0,{"$f":"C280-D280","v":70000}]
["Gas Day:  ",null,null,null,"2021-10-03"]
["Receipt Point","Delivery Point","Operating Capacity (DTHS)","Schedule Volume (DTHS)","Estimated Available Capacity"]
["Kelso/Beaver","Port Westward",64000,64000,{"$f":"C283-D283","v":0}]
["Kelso/Beaver","Port Westward II",44000,13123,30877]
["Kelso/Beaver","N. Mist Storage",61000,25000,36000]
["Kelso/Beaver","Beaver Unit 8",7326,0,7326]
["Kelso/Beaver","Beaver 1 - 6",152400,0,152400]
["Mist Port Westward","Port Westward",70000,0,70000]
["Mist Port Westward II","Port Westward II",70000,0,70000]
["Mist Beaver","Beaver",70000,0,{"$f":"C290-D290","v":70000}]
["Gas Day:  ",null,null,null,"2021-10-02"]
["Receipt Point","Delivery Point","Operating Capacity (DTHS)","Schedule Volume (DTHS)","Estimated Available Capacity"]
["Kelso/Beaver","Port Westward",64000,64000,{"$f":"C293-D293","v":0}]
["Kelso/Beaver","Port Westward II",44000,13123,30877]
["Kelso/Beaver","N. Mist Storage",61000,25000,36000]
["Kelso/Beaver","Beaver Unit 8",7326,0,7326]
["Kelso/Beaver","Beaver 1 - 6",152400,0,152400]
["Mist Port Westward","Port Westward",70000,0,70000]
["Mist Port Westward II","Port Westward II",70000,0,70000]
["Mist Beaver","Beaver",70000,0,{"$f":"C300-D300","v":70000}]
["Gas Day:  ",null,null,null,"2021-10-01"]
["Receipt Point","Delivery Point","Operating Capacity (DTHS)","Schedule Volume (DTHS)","Estimated Available Capacity"]
["Kelso/Beaver","Port Westward",64000,64000,{"$f":"C303-D303","v":0}]
["Kelso/Beaver","Port Westward II",44000,38119,5881]
["Kelso/Beaver","N. Mist Storage",61000,0,61000]
["Kelso/Beaver","Beaver Unit 8",7326,0,7326]
["Kelso/Beaver","Beaver 1 - 6",152400,0,152400]
["Mist Port Westward","Port Westward",70000,0,70000]
["Mist Port Westward II","Port Westward II",70000,0,70000]
["Mist Beaver","Beaver",70000,0,{"$f":"C310-D310","v":70000}]

{"sheet":"November","index":10,"n_rows":300,"n_cols":5,"rows_kept":300,"cut":false,"hidden":false,"merged":[]}
["Gas Day:  ",null,null,null,"2021-11-30"]
["Receipt Point","Delivery Point","Operating Capacity (DTHS)","Schedule Volume (DTHS)","Estimated Available Capacity"]
["Kelso/Beaver","Port Westward",64000,50160,{"$f":"C3-D3","v":13840}]
["Kelso/Beaver","Port Westward II",44000,0,44000]
["Kelso/Beaver","N. Mist Storage",61000,0,61000]
["Kelso/Beaver","Beaver Unit 8",7326,0,7326]
["Kelso/Beaver","Beaver 1 - 6",152400,0,152400]
["Mist Port Westward","Port Westward",70000,0,70000]
["Mist Port Westward II","Port Westward II",70000,0,70000]
["Mist Beaver","Beaver",70000,0,{"$f":"C10-D10","v":70000}]
["Gas Day:  ",null,null,null,"2021-11-29"]
["Receipt Point","Delivery Point","Operating Capacity (DTHS)","Schedule Volume (DTHS)","Estimated Available Capacity"]
["Kelso/Beaver","Port Westward",64000,62000,{"$f":"C13-D13","v":2000}]
["Kelso/Beaver","Port Westward II",44000,5506,38494]
["Kelso/Beaver","N. Mist Storage",61000,0,61000]
["Kelso/Beaver","Beaver Unit 8",7326,0,7326]
["Kelso/Beaver","Beaver 1 - 6",152400,0,152400]
["Mist Port Westward","Port Westward",70000,0,70000]
["Mist Port Westward II","Port Westward II",70000,0,70000]
["Mist Beaver","Beaver",70000,0,{"$f":"C20-D20","v":70000}]
["Gas Day:  ",null,null,null,"2021-11-28"]
["Receipt Point","Delivery Point","Operating Capacity (DTHS)","Schedule Volume (DTHS)","Estimated Available Capacity"]
["Kelso/Beaver","Port Westward",64000,62000,{"$f":"C23-D23","v":2000}]
["Kelso/Beaver","Port Westward II",44000,5506,38494]
["Kelso/Beaver","N. Mist Storage",61000,0,61000]
["Kelso/Beaver","Beaver Unit 8",7326,0,7326]
["Kelso/Beaver","Beaver 1 - 6",152400,0,152400]
["Mist Port Westward","Port Westward",70000,0,70000]
["Mist Port Westward II","Port Westward II",70000,0,70000]
["Mist Beaver","Beaver",70000,0,{"$f":"C30-D30","v":70000}]
["Gas Day:  ",null,null,null,"2021-11-27"]
["Receipt Point","Delivery Point","Operating Capacity (DTHS)","Schedule Volume (DTHS)","Estimated Available Capacity"]
["Kelso/Beaver","Port Westward",64000,62000,{"$f":"C33-D33","v":2000}]
["Kelso/Beaver","Port Westward II",44000,5506,38494]
["Kelso/Beaver","N. Mist Storage",61000,0,61000]
["Kelso/Beaver","Beaver Unit 8",7326,0,7326]
["Kelso/Beaver","Beaver 1 - 6",152400,0,152400]
["Mist Port Westward","Port Westward",70000,0,70000]
["Mist Port Westward II","Port Westward II",70000,0,70000]
["Mist Beaver","Beaver",70000,0,{"$f":"C40-D40","v":70000}]
["Gas Day:  ",null,null,null,"2021-11-26"]
["Receipt Point","Delivery Point","Operating Capacity (DTHS)","Schedule Volume (DTHS)","Estimated Available Capacity"]
["Kelso/Beaver","Port Westward",64000,62000,{"$f":"C43-D43","v":2000}]
["Kelso/Beaver","Port Westward II",44000,5506,38494]
["Kelso/Beaver","N. Mist Storage",61000,0,61000]
["Kelso/Beaver","Beaver Unit 8",7326,0,7326]
["Kelso/Beaver","Beaver 1 - 6",152400,0,152400]
["Mist Port Westward","Port Westward",70000,0,70000]
["Mist Port Westward II","Port Westward II",70000,0,70000]
["Mist Beaver","Beaver",70000,0,{"$f":"C50-D50","v":70000}]
["Gas Day:  ",null,null,null,"2021-11-25"]
["Receipt Point","Delivery Point","Operating Capacity (DTHS)","Schedule Volume (DTHS)","Estimated Available Capacity"]
["Kelso/Beaver","Port Westward",64000,62000,{"$f":"C53-D53","v":2000}]
["Kelso/Beaver","Port Westward II",44000,5506,38494]
["Kelso/Beaver","N. Mist Storage",61000,0,61000]
["Kelso/Beaver","Beaver Unit 8",7326,0,7326]
["Kelso/Beaver","Beaver 1 - 6",152400,0,152400]
["Mist Port Westward","Port Westward",70000,0,70000]
["Mist Port Westward II","Port Westward II",70000,0,70000]
["Mist Beaver","Beaver",70000,0,{"$f":"C60-D60","v":70000}]
["Gas Day:  ",null,null,null,"2021-11-24"]
["Receipt Point","Delivery Point","Operating Capacity (DTHS)","Schedule Volume (DTHS)","Estimated Available Capacity"]
["Kelso/Beaver","Port Westward",64000,62000,{"$f":"C63-D63","v":2000}]
["Kelso/Beaver","Port Westward II",44000,3126,40874]
["Kelso/Beaver","N. Mist Storage",61000,0,61000]
["Kelso/Beaver","Beaver Unit 8",7326,0,7326]
["Kelso/Beaver","Beaver 1 - 6",152400,0,152400]
["Mist Port Westward","Port Westward",70000,0,70000]
["Mist Port Westward II","Port Westward II",70000,0,70000]
["Mist Beaver","Beaver",70000,0,{"$f":"C70-D70","v":70000}]
["Gas Day:  ",null,null,null,"2021-11-23"]
["Receipt Point","Delivery Point","Operating Capacity (DTHS)","Schedule Volume (DTHS)","Estimated Available Capacity"]
["Kelso/Beaver","Port Westward",64000,63000,{"$f":"C73-D73","v":1000}]
["Kelso/Beaver","Port Westward II",44000,2015,41985]
["Kelso/Beaver","N. Mist Storage",61000,0,61000]
["Kelso/Beaver","Beaver Unit 8",7326,0,7326]
["Kelso/Beaver","Beaver 1 - 6",152400,0,152400]
["Mist Port Westward","Port Westward",70000,0,70000]
["Mist Port Westward II","Port Westward II",70000,0,70000]
["Mist Beaver","Beaver",70000,0,{"$f":"C80-D80","v":70000}]
["Gas Day:  ",null,null,null,"2021-11-22"]
["Receipt Point","Delivery Point","Operating Capacity (DTHS)","Schedule Volume (DTHS)","Estimated Available Capacity"]
["Kelso/Beaver","Port Westward",64000,60000,{"$f":"C83-D83","v":4000}]
["Kelso/Beaver","Port Westward II",44000,16846,27154]
["Kelso/Beaver","N. Mist Storage",61000,0,61000]
["Kelso/Beaver","Beaver Unit 8",7326,0,7326]
["Kelso/Beaver","Beaver 1 - 6",152400,0,152400]
["Mist Port Westward","Port Westward",70000,0,70000]
["Mist Port Westward II","Port Westward II",70000,0,70000]
["Mist Beaver","Beaver",70000,0,{"$f":"C90-D90","v":70000}]
["Gas Day:  ",null,null,null,"2021-11-21"]
["Receipt Point","Delivery Point","Operating Capacity (DTHS)","Schedule Volume (DTHS)","Estimated Available Capacity"]
["Kelso/Beaver","Port Westward",64000,60000,{"$f":"C93-D93","v":4000}]
["Kelso/Beaver","Port Westward II",44000,16846,27154]
["Kelso/Beaver","N. Mist Storage",61000,0,61000]
["Kelso/Beaver","Beaver Unit 8",7326,0,7326]
["Kelso/Beaver","Beaver 1 - 6",152400,0,152400]
["Mist Port Westward","Port Westward",70000,0,70000]
["Mist Port Westward II","Port Westward II",70000,0,70000]
["Mist Beaver","Beaver",70000,0,{"$f":"C100-D100","v":70000}]
["Gas Day:  ",null,null,null,"2021-11-20"]
["Receipt Point","Delivery Point","Operating Capacity (DTHS)","Schedule Volume (DTHS)","Estimated Available Capacity"]
["Kelso/Beaver","Port Westward",64000,63000,{"$f":"C103-D103","v":1000}]
["Kelso/Beaver","Port Westward II",44000,1846,42154]
["Kelso/Beaver","N. Mist Storage",61000,15000,46000]
["Kelso/Beaver","Beaver Unit 8",7326,0,7326]
["Kelso/Beaver","Beaver 1 - 6",152400,0,152400]
["Mist Port Westward","Port Westward",70000,0,70000]
["Mist Port Westward II","Port Westward II",70000,0,70000]
["Mist Beaver","Beaver",70000,0,{"$f":"C110-D110","v":70000}]
["Gas Day:  ",null,null,null,"2021-11-19"]
["Receipt Point","Delivery Point","Operating Capacity (DTHS)","Schedule Volume (DTHS)","Estimated Available Capacity"]
["Kelso/Beaver","Port Westward",64000,60000,{"$f":"C113-D113","v":4000}]
["Kelso/Beaver","Port Westward II",44000,4865,39135]
["Kelso/Beaver","N. Mist Storage",61000,0,61000]
["Kelso/Beaver","Beaver Unit 8",7326,0,7326]
["Kelso/Beaver","Beaver 1 - 6",152400,0,152400]
["Mist Port Westward","Port Westward",70000,0,70000]
["Mist Port Westward II","Port Westward II",70000,0,70000]
["Mist Beaver","Beaver",70000,0,{"$f":"C120-D120","v":70000}]
["Gas Day:  ",null,null,null,"2021-11-18"]
["Receipt Point","Delivery Point","Operating Capacity (DTHS)","Schedule Volume (DTHS)","Estimated Available Capacity"]
["Kelso/Beaver","Port Westward",64000,64000,{"$f":"C123-D123","v":0}]
["Kelso/Beaver","Port Westward II",44000,15802,28198]
["Kelso/Beaver","N. Mist Storage",61000,0,61000]
["Kelso/Beaver","Beaver Unit 8",7326,0,7326]
["Kelso/Beaver","Beaver 1 - 6",152400,0,152400]
["Mist Port Westward","Port Westward",70000,0,70000]
["Mist Port Westward II","Port Westward II",70000,0,70000]
["Mist Beaver","Beaver",70000,0,{"$f":"C130-D130","v":70000}]
["Gas Day:  ",null,null,null,"2021-11-17"]
["Receipt Point","Delivery Point","Operating Capacity (DTHS)","Schedule Volume (DTHS)","Estimated Available Capacity"]
["Kelso/Beaver","Port Westward",64000,64000,{"$f":"C133-D133","v":0}]
["Kelso/Beaver","Port Westward II",44000,5898,38102]
["Kelso/Beaver","N. Mist Storage",61000,0,61000]
["Kelso/Beaver","Beaver Unit 8",7326,0,7326]
["Kelso/Beaver","Beaver 1 - 6",152400,0,152400]
["Mist Port Westward","Port Westward",70000,0,70000]
["Mist Port Westward II","Port Westward II",70000,0,70000]
["Mist Beaver","Beaver",70000,0,{"$f":"C140-D140","v":70000}]
["Gas Day:  ",null,null,null,"2021-11-16"]
["Receipt Point","Delivery Point","Operating Capacity (DTHS)","Schedule Volume (DTHS)","Estimated Available Capacity"]
["Kelso/Beaver","Port Westward",64000,64000,{"$f":"C143-D143","v":0}]
["Kelso/Beaver","Port Westward II",44000,15856,28144]
["Kelso/Beaver","N. Mist Storage",61000,0,61000]
["Kelso/Beaver","Beaver Unit 8",7326,0,7326]
["Kelso/Beaver","Beaver 1 - 6",152400,0,152400]
["Mist Port Westward","Port Westward",70000,0,70000]
["Mist Port Westward II","Port Westward II",70000,0,70000]
["Mist Beaver","Beaver",70000,0,{"$f":"C150-D150","v":70000}]
["Gas Day:  ",null,null,null,"2021-11-15"]
["Receipt Point","Delivery Point","Operating Capacity (DTHS)","Schedule Volume (DTHS)","Estimated Available Capacity"]
["Kelso/Beaver","Port Westward",64000,64000,{"$f":"C153-D153","v":0}]
["Kelso/Beaver","Port Westward II",44000,5944,38056]
["Kelso/Beaver","N. Mist Storage",61000,0,61000]
["Kelso/Beaver","Beaver Unit 8",7326,0,7326]
["Kelso/Beaver","Beaver 1 - 6",152400,0,152400]
["Mist Port Westward","Port Westward",70000,0,70000]
["Mist Port Westward II","Port Westward II",70000,0,70000]
["Mist Beaver","Beaver",70000,0,{"$f":"C160-D160","v":70000}]
["Gas Day:  ",null,null,null,"2021-11-14"]
["Receipt Point","Delivery Point","Operating Capacity (DTHS)","Schedule Volume (DTHS)","Estimated Available Capacity"]
["Kelso/Beaver","Port Westward",64000,64000,{"$f":"C163-D163","v":0}]
["Kelso/Beaver","Port Westward II",44000,5944,38056]
["Kelso/Beaver","N. Mist Storage",61000,0,61000]
["Kelso/Beaver","Beaver Unit 8",7326,0,7326]
["Kelso/Beaver","Beaver 1 - 6",152400,2,152398]
["Mist Port Westward","Port Westward",70000,0,70000]
["Mist Port Westward II","Port Westward II",70000,0,70000]
["Mist Beaver","Beaver",70000,0,{"$f":"C170-D170","v":70000}]
["Gas Day:  ",null,null,null,"2021-11-13"]
["Receipt Point","Delivery Point","Operating Capacity (DTHS)","Schedule Volume (DTHS)","Estimated Available Capacity"]
["Kelso/Beaver","Port Westward",64000,64000,{"$f":"C173-D173","v":0}]
["Kelso/Beaver","Port Westward II",44000,5944,38056]
["Kelso/Beaver","N. Mist Storage",61000,0,61000]
["Kelso/Beaver","Beaver Unit 8",7326,0,7326]
["Kelso/Beaver","Beaver 1 - 6",152400,0,152400]
["Mist Port Westward","Port Westward",70000,0,70000]
["Mist Port Westward II","Port Westward II",70000,0,70000]
["Mist Beaver","Beaver",70000,0,{"$f":"C180-D180","v":70000}]
["Gas Day:  ",null,null,null,"2021-11-12"]
["Receipt Point","Delivery Point","Operating Capacity (DTHS)","Schedule Volume (DTHS)","Estimated Available Capacity"]
["Kelso/Beaver","Port Westward",64000,64000,{"$f":"C183-D183","v":0}]
["Kelso/Beaver","Port Westward II",44000,22030,21970]
["Kelso/Beaver","N. Mist Storage",61000,0,61000]
["Kelso/Beaver","Beaver Unit 8",7326,0,7326]
["Kelso/Beaver","Beaver 1 - 6",152400,20000,132400]
["Mist Port Westward","Port Westward",70000,0,70000]
["Mist Port Westward II","Port Westward II",70000,0,70000]
["Mist Beaver","Beaver",70000,0,{"$f":"C190-D190","v":70000}]
["Gas Day:  ",null,null,null,"2021-11-11"]
["Receipt Point","Delivery Point","Operating Capacity (DTHS)","Schedule Volume (DTHS)","Estimated Available Capacity"]
["Kelso/Beaver","Port Westward",64000,64000,{"$f":"C193-D193","v":0}]
["Kelso/Beaver","Port Westward II",44000,12327,31673]
["Kelso/Beaver","N. Mist Storage",61000,0,61000]
["Kelso/Beaver","Beaver Unit 8",7326,0,7326]
["Kelso/Beaver","Beaver 1 - 6",152400,30000,122400]
["Mist Port Westward","Port Westward",70000,0,70000]
["Mist Port Westward II","Port Westward II",70000,0,70000]
["Mist Beaver","Beaver",70000,0,{"$f":"C200-D200","v":70000}]
["Gas Day:  ",null,null,null,"2021-11-10"]
["Receipt Point","Delivery Point","Operating Capacity (DTHS)","Schedule Volume (DTHS)","Estimated Available Capacity"]
["Kelso/Beaver","Port Westward",64000,62500,{"$f":"C203-D203","v":1500}]
["Kelso/Beaver","Port Westward II",44000,17097,26903]
["Kelso/Beaver","N. Mist Storage",61000,0,61000]
["Kelso/Beaver","Beaver Unit 8",7326,0,7326]
["Kelso/Beaver","Beaver 1 - 6",152400,30000,122400]
["Mist Port Westward","Port Westward",70000,0,70000]
["Mist Port Westward II","Port Westward II",70000,0,70000]
["Mist Beaver","Beaver",70000,0,{"$f":"C210-D210","v":70000}]
["Gas Day:  ",null,null,null,"2021-11-09"]
["Receipt Point","Delivery Point","Operating Capacity (DTHS)","Schedule Volume (DTHS)","Estimated Available Capacity"]
["Kelso/Beaver","Port Westward",64000,62500,{"$f":"C213-D213","v":1500}]
["Kelso/Beaver","Port Westward II",44000,23769,20231]
["Kelso/Beaver","N. Mist Storage",61000,0,61000]
["Kelso/Beaver","Beaver Unit 8",7326,0,7326]
["Kelso/Beaver","Beaver 1 - 6",152400,0,152400]
["Mist Port Westward","Port Westward",70000,0,70000]
["Mist Port Westward II","Port Westward II",70000,0,70000]
["Mist Beaver","Beaver",70000,0,{"$f":"C220-D220","v":70000}]
["Gas Day:  ",null,null,null,"2021-11-08"]
["Receipt Point","Delivery Point","Operating Capacity (DTHS)","Schedule Volume (DTHS)","Estimated Available Capacity"]
["Kelso/Beaver","Port Westward",64000,64000,{"$f":"C223-D223","v":0}]
["Kelso/Beaver","Port Westward II",44000,20818,23182]
["Kelso/Beaver","N. Mist Storage",61000,0,61000]
["Kelso/Beaver","Beaver Unit 8",7326,0,7326]
["Kelso/Beaver","Beaver 1 - 6",152400,0,152400]
["Mist Port Westward","Port Westward",70000,0,70000]
["Mist Port Westward II","Port Westward II",70000,0,70000]
["Mist Beaver","Beaver",70000,0,{"$f":"C230-D230","v":70000}]
["Gas Day:  ",null,null,null,"2021-11-07"]
["Receipt Point","Delivery Point","Operating Capacity (DTHS)","Schedule Volume (DTHS)","Estimated Available Capacity"]
["Kelso/Beaver","Port Westward",64000,64000,{"$f":"C233-D233","v":0}]
["Kelso/Beaver","Port Westward II",44000,10818,33182]
["Kelso/Beaver","N. Mist Storage",61000,10000,51000]
["Kelso/Beaver","Beaver Unit 8",7326,0,7326]
["Kelso/Beaver","Beaver 1 - 6",152400,0,152400]
["Mist Port Westward","Port Westward",70000,0,70000]
["Mist Port Westward II","Port Westward II",70000,0,70000]
["Mist Beaver","Beaver",70000,0,{"$f":"C240-D240","v":70000}]
["Gas Day:  ",null,null,null,"2021-11-06"]
["Receipt Point","Delivery Point","Operating Capacity (DTHS)","Schedule Volume (DTHS)","Estimated Available Capacity"]
["Kelso/Beaver","Port Westward",64000,64000,{"$f":"C243-D243","v":0}]
["Kelso/Beaver","Port Westward II",44000,10818,33182]
["Kelso/Beaver","N. Mist Storage",61000,10000,51000]
["Kelso/Beaver","Beaver Unit 8",7326,0,7326]
["Kelso/Beaver","Beaver 1 - 6",152400,0,152400]
["Mist Port Westward","Port Westward",70000,0,70000]
["Mist Port Westward II","Port Westward II",70000,0,70000]
["Mist Beaver","Beaver",70000,0,{"$f":"C250-D250","v":70000}]
["Gas Day:  ",null,null,null,"2021-11-05"]
["Receipt Point","Delivery Point","Operating Capacity (DTHS)","Schedule Volume (DTHS)","Estimated Available Capacity"]
["Kelso/Beaver","Port Westward",64000,64000,{"$f":"C253-D253","v":0}]
["Kelso/Beaver","Port Westward II",44000,21548,22452]
["Kelso/Beaver","N. Mist Storage",61000,25000,36000]
["Kelso/Beaver","Beaver Unit 8",7326,0,7326]
["Kelso/Beaver","Beaver 1 - 6",152400,0,152400]
["Mist Port Westward","Port Westward",70000,0,70000]
["Mist Port Westward II","Port Westward II",70000,0,70000]
["Mist Beaver","Beaver",70000,0,{"$f":"C260-D260","v":70000}]
["Gas Day:  ",null,null,null,"2021-11-04"]
["Receipt Point","Delivery Point","Operating Capacity (DTHS)","Schedule Volume (DTHS)","Estimated Available Capacity"]
["Kelso/Beaver","Port Westward",64000,64000,{"$f":"C263-D263","v":0}]
["Kelso/Beaver","Port Westward II",44000,16548,27452]
["Kelso/Beaver","N. Mist Storage",61000,30000,31000]
["Kelso/Beaver","Beaver Unit 8",7326,0,7326]
["Kelso/Beaver","Beaver 1 - 6",152400,0,152400]
["Mist Port Westward","Port Westward",70000,0,70000]
["Mist Port Westward II","Port Westward II",70000,0,70000]
["Mist Beaver","Beaver",70000,0,{"$f":"C270-D270","v":70000}]
["Gas Day:  ",null,null,null,"2021-11-03"]
["Receipt Point","Delivery Point","Operating Capacity (DTHS)","Schedule Volume (DTHS)","Estimated Available Capacity"]
["Kelso/Beaver","Port Westward",64000,64000,{"$f":"C273-D273","v":0}]
["Kelso/Beaver","Port Westward II",44000,26548,17452]
["Kelso/Beaver","N. Mist Storage",61000,20000,41000]
["Kelso/Beaver","Beaver Unit 8",7326,0,7326]
["Kelso/Beaver","Beaver 1 - 6",152400,25000,127400]
["Mist Port Westward","Port Westward",70000,0,70000]
["Mist Port Westward II","Port Westward II",70000,0,70000]
["Mist Beaver","Beaver",70000,0,{"$f":"C280-D280","v":70000}]
["Gas Day:  ",null,null,null,"2021-11-02"]
["Receipt Point","Delivery Point","Operating Capacity (DTHS)","Schedule Volume (DTHS)","Estimated Available Capacity"]
["Kelso/Beaver","Port Westward",64000,64000,{"$f":"C283-D283","v":0}]
["Kelso/Beaver","Port Westward II",44000,28549,15451]
["Kelso/Beaver","N. Mist Storage",61000,0,61000]
["Kelso/Beaver","Beaver Unit 8",7326,0,7326]
["Kelso/Beaver","Beaver 1 - 6",152400,48000,104400]
["Mist Port Westward","Port Westward",70000,0,70000]
["Mist Port Westward II","Port Westward II",70000,0,70000]
["Mist Beaver","Beaver",70000,0,{"$f":"C290-D290","v":70000}]
["Gas Day:  ",null,null,null,"2021-11-01"]
["Receipt Point","Delivery Point","Operating Capacity (DTHS)","Schedule Volume (DTHS)","Estimated Available Capacity"]
["Kelso/Beaver","Port Westward",64000,64000,{"$f":"C293-D293","v":0}]
["Kelso/Beaver","Port Westward II",44000,28549,15451]
["Kelso/Beaver","N. Mist Storage",61000,0,61000]
["Kelso/Beaver","Beaver Unit 8",7326,0,7326]
["Kelso/Beaver","Beaver 1 - 6",152400,48000,104400]
["Mist Port Westward","Port Westward",70000,0,70000]
["Mist Port Westward II","Port Westward II",70000,0,70000]
["Mist Beaver","Beaver",70000,0,{"$f":"C300-D300","v":70000}]

{"sheet":"December","index":11,"n_rows":310,"n_cols":5,"rows_kept":310,"cut":false,"hidden":false,"merged":[]}
["Gas Day:  ",null,null,null,"2021-12-31"]
["Receipt Point","Delivery Point","Operating Capacity (DTHS)","Schedule Volume (DTHS)","Estimated Available Capacity"]
["Kelso/Beaver","Port Westward",64000,0,{"$f":"C3-D3","v":64000}]
["Kelso/Beaver","Port Westward II",44000,32557,11443]
["Kelso/Beaver","N. Mist Storage",61000,0,61000]
["Kelso/Beaver","Beaver Unit 8",7326,0,7326]
["Kelso/Beaver","Beaver 1 - 6",152400,20000,132400]
["Mist Port Westward","Port Westward",70000,0,70000]
["Mist Port Westward II","Port Westward II",70000,0,70000]
["Mist Beaver","Beaver",70000,0,{"$f":"C10-D10","v":70000}]
["Gas Day:  ",null,null,null,"2021-12-30"]
["Receipt Point","Delivery Point","Operating Capacity (DTHS)","Schedule Volume (DTHS)","Estimated Available Capacity"]
["Kelso/Beaver","Port Westward",64000,0,{"$f":"C13-D13","v":64000}]
["Kelso/Beaver","Port Westward II",44000,32557,11443]
["Kelso/Beaver","N. Mist Storage",61000,0,61000]
["Kelso/Beaver","Beaver Unit 8",7326,0,7326]
["Kelso/Beaver","Beaver 1 - 6",152400,20000,132400]
["Mist Port Westward","Port Westward",70000,0,70000]
["Mist Port Westward II","Port Westward II",70000,0,70000]
["Mist Beaver","Beaver",70000,0,{"$f":"C20-D20","v":70000}]
["Gas Day:  ",null,null,null,"2021-12-29"]
["Receipt Point","Delivery Point","Operating Capacity (DTHS)","Schedule Volume (DTHS)","Estimated Available Capacity"]
["Kelso/Beaver","Port Westward",64000,0,{"$f":"C23-D23","v":64000}]
["Kelso/Beaver","Port Westward II",44000,40000,4000]
["Kelso/Beaver","N. Mist Storage",61000,0,61000]
["Kelso/Beaver","Beaver Unit 8",7326,0,7326]
["Kelso/Beaver","Beaver 1 - 6",152400,10119,142281]
["Mist Port Westward","Port Westward",70000,0,70000]
["Mist Port Westward II","Port Westward II",70000,0,70000]
["Mist Beaver","Beaver",70000,0,{"$f":"C30-D30","v":70000}]
["Gas Day:  ",null,null,null,"2021-12-28"]
["Receipt Point","Delivery Point","Operating Capacity (DTHS)","Schedule Volume (DTHS)","Estimated Available Capacity"]
["Kelso/Beaver","Port Westward",64000,17056,{"$f":"C33-D33","v":46944}]
["Kelso/Beaver","Port Westward II",44000,40000,4000]
["Kelso/Beaver","N. Mist Storage",61000,0,61000]
["Kelso/Beaver","Beaver Unit 8",7326,0,7326]
["Kelso/Beaver","Beaver 1 - 6",152400,0,152400]
["Mist Port Westward","Port Westward",70000,0,70000]
["Mist Port Westward II","Port Westward II",70000,0,70000]
["Mist Beaver","Beaver",70000,0,{"$f":"C40-D40","v":70000}]
["Gas Day:  ",null,null,null,"2021-12-27"]
["Receipt Point","Delivery Point","Operating Capacity (DTHS)","Schedule Volume (DTHS)","Estimated Available Capacity"]
["Kelso/Beaver","Port Westward",64000,0,{"$f":"C43-D43","v":64000}]
["Kelso/Beaver","Port Westward II",44000,1033,42967]
["Kelso/Beaver","N. Mist Storage",61000,0,61000]
["Kelso/Beaver","Beaver Unit 8",7326,0,7326]
["Kelso/Beaver","Beaver 1 - 6",152400,70000,82400]
["Mist Port Westward","Port Westward",70000,0,70000]
["Mist Port Westward II","Port Westward II",70000,0,70000]
["Mist Beaver","Beaver",70000,0,{"$f":"C50-D50","v":70000}]
["Gas Day:  ",null,null,null,"2021-12-26"]
["Receipt Point","Delivery Point","Operating Capacity (DTHS)","Schedule Volume (DTHS)","Estimated Available Capacity"]
["Kelso/Beaver","Port Westward",64000,64000,{"$f":"C53-D53","v":0}]
["Kelso/Beaver","Port Westward II",44000,7033,36967]
["Kelso/Beaver","N. Mist Storage",61000,0,61000]
["Kelso/Beaver","Beaver Unit 8",7326,0,7326]
["Kelso/Beaver","Beaver 1 - 6",152400,0,152400]
["Mist Port Westward","Port Westward",70000,0,70000]
["Mist Port Westward II","Port Westward II",70000,0,70000]
["Mist Beaver","Beaver",70000,0,{"$f":"C60-D60","v":70000}]
["Gas Day:  ",null,null,null,"2021-12-25"]
["Receipt Point","Delivery Point","Operating Capacity (DTHS)","Schedule Volume (DTHS)","Estimated Available Capacity"]
["Kelso/Beaver","Port Westward",64000,64000,{"$f":"C63-D63","v":0}]
["Kelso/Beaver","Port Westward II",44000,7033,36967]
["Kelso/Beaver","N. Mist Storage",61000,0,61000]
["Kelso/Beaver","Beaver Unit 8",7326,0,7326]
["Kelso/Beaver","Beaver 1 - 6",152400,0,152400]
["Mist Port Westward","Port Westward",70000,0,70000]
["Mist Port Westward II","Port Westward II",70000,0,70000]
["Mist Beaver","Beaver",70000,0,{"$f":"C70-D70","v":70000}]
["Gas Day:  ",null,null,null,"2021-12-24"]
["Receipt Point","Delivery Point","Operating Capacity (DTHS)","Schedule Volume (DTHS)","Estimated Available Capacity"]
["Kelso/Beaver","Port Westward",64000,64000,{"$f":"C73-D73","v":0}]
["Kelso/Beaver","Port Westward II",44000,7033,36967]
["Kelso/Beaver","N. Mist Storage",61000,0,61000]
["Kelso/Beaver","Beaver Unit 8",7326,0,7326]
["Kelso/Beaver","Beaver 1 - 6",152400,0,152400]
["Mist Port Westward","Port Westward",70000,0,70000]
["Mist Port Westward II","Port Westward II",70000,0,70000]
["Mist Beaver","Beaver",70000,0,{"$f":"C80-D80","v":70000}]
["Gas Day:  ",null,null,null,"2021-12-23"]
["Receipt Point","Delivery Point","Operating Capacity (DTHS)","Schedule Volume (DTHS)","Estimated Available Capacity"]
["Kelso/Beaver","Port Westward",64000,62507,{"$f":"C83-D83","v":1493}]
["Kelso/Beaver","Port Westward II",44000,0,44000]
["Kelso/Beaver","N. Mist Storage",61000,0,61000]
["Kelso/Beaver","Beaver Unit 8",7326,0,7326]
["Kelso/Beaver","Beaver 1 - 6",152400,0,152400]
["Mist Port Westward","Port Westward",70000,0,70000]
["Mist Port Westward II","Port Westward II",70000,0,70000]
["Mist Beaver","Beaver",70000,0,{"$f":"C90-D90","v":70000}]
["Gas Day:  ",null,null,null,"2021-12-22"]
["Receipt Point","Delivery Point","Operating Capacity (DTHS)","Schedule Volume (DTHS)","Estimated Available Capacity"]
["Kelso/Beaver","Port Westward",64000,64000,{"$f":"C93-D93","v":0}]
["Kelso/Beaver","Port Westward II",44000,18334,25666]
["Kelso/Beaver","N. Mist Storage",61000,0,61000]
["Kelso/Beaver","Beaver Unit 8",7326,0,7326]
["Kelso/Beaver","Beaver 1 - 6",152400,0,152400]
["Mist Port Westward","Port Westward",70000,0,70000]
["Mist Port Westward II","Port Westward II",70000,0,70000]
["Mist Beaver","Beaver",70000,0,{"$f":"C100-D100","v":70000}]
["Gas Day:  ",null,null,null,"2021-12-21"]
["Receipt Point","Delivery Point","Operating Capacity (DTHS)","Schedule Volume (DTHS)","Estimated Available Capacity"]
["Kelso/Beaver","Port Westward",64000,62000,{"$f":"C103-D103","v":2000}]
["Kelso/Beaver","Port Westward II",44000,20374,23626]
["Kelso/Beaver","N. Mist Storage",61000,0,61000]
["Kelso/Beaver","Beaver Unit 8",7326,0,7326]
["Kelso/Beaver","Beaver 1 - 6",152400,0,152400]
["Mist Port Westward","Port Westward",70000,0,70000]
["Mist Port Westward II","Port Westward II",70000,0,70000]
["Mist Beaver","Beaver",70000,0,{"$f":"C110-D110","v":70000}]
["Gas Day:  ",null,null,null,"2021-12-20"]
["Receipt Point","Delivery Point","Operating Capacity (DTHS)","Schedule Volume (DTHS)","Estimated Available Capacity"]
["Kelso/Beaver","Port Westward",64000,60000,{"$f":"C113-D113","v":4000}]
["Kelso/Beaver","Port Westward II",44000,20391,23609]
["Kelso/Beaver","N. Mist Storage",61000,0,61000]
["Kelso/Beaver","Beaver Unit 8",7326,0,7326]
["Kelso/Beaver","Beaver 1 - 6",152400,0,152400]
["Mist Port Westward","Port Westward",70000,0,70000]
["Mist Port Westward II","Port Westward II",70000,0,70000]
["Mist Beaver","Beaver",70000,0,{"$f":"C120-D120","v":70000}]
["Gas Day:  ",null,null,null,"2021-12-19"]
["Receipt Point","Delivery Point","Operating Capacity (DTHS)","Schedule Volume (DTHS)","Estimated Available Capacity"]
["Kelso/Beaver","Port Westward",64000,60000,{"$f":"C123-D123","v":4000}]
["Kelso/Beaver","Port Westward II",44000,20391,23609]
["Kelso/Beaver","N. Mist Storage",61000,0,61000]
["Kelso/Beaver","Beaver Unit 8",7326,0,7326]
["Kelso/Beaver","Beaver 1 - 6",152400,0,152400]
["Mist Port Westward","Port Westward",70000,0,70000]
["Mist Port Westward II","Port Westward II",70000,0,70000]
["Mist Beaver","Beaver",70000,0,{"$f":"C130-D130","v":70000}]
["Gas Day:  ",null,null,null,"2021-12-18"]
["Receipt Point","Delivery Point","Operating Capacity (DTHS)","Schedule Volume (DTHS)","Estimated Available Capacity"]
["Kelso/Beaver","Port Westward",64000,60000,{"$f":"C133-D133","v":4000}]
["Kelso/Beaver","Port Westward II",44000,20391,23609]
["Kelso/Beaver","N. Mist Storage",61000,0,61000]
["Kelso/Beaver","Beaver Unit 8",7326,0,7326]
["Kelso/Beaver","Beaver 1 - 6",152400,0,152400]
["Mist Port Westward","Port Westward",70000,0,70000]
["Mist Port Westward II","Port Westward II",70000,0,70000]
["Mist Beaver","Beaver",70000,0,{"$f":"C140-D140","v":70000}]
["Gas Day:  ",null,null,null,"2021-12-17"]
["Receipt Point","Delivery Point","Operating Capacity (DTHS)","Schedule Volume (DTHS)","Estimated Available Capacity"]
["Kelso/Beaver","Port Westward",64000,62000,{"$f":"C143-D143","v":2000}]
["Kelso/Beaver","Port Westward II",44000,20374,23626]
["Kelso/Beaver","N. Mist Storage",61000,0,61000]
["Kelso/Beaver","Beaver Unit 8",7326,0,7326]
["Kelso/Beaver","Beaver 1 - 6",152400,0,152400]
["Mist Port Westward","Port Westward",70000,0,70000]
["Mist Port Westward II","Port Westward II",70000,0,70000]
["Mist Beaver","Beaver",70000,0,{"$f":"C150-D150","v":70000}]
["Gas Day:  ",null,null,null,"2021-12-16"]
["Receipt Point","Delivery Point","Operating Capacity (DTHS)","Schedule Volume (DTHS)","Estimated Available Capacity"]
["Kelso/Beaver","Port Westward",64000,0,{"$f":"C153-D153","v":64000}]
["Kelso/Beaver","Port Westward II",44000,16771,27229]
["Kelso/Beaver","N. Mist Storage",61000,0,61000]
["Kelso/Beaver","Beaver Unit 8",7326,0,7326]
["Kelso/Beaver","Beaver 1 - 6",152400,20000,132400]
["Mist Port Westward","Port Westward",70000,0,70000]
["Mist Port Westward II","Port Westward II",70000,0,70000]
["Mist Beaver","Beaver",70000,0,{"$f":"C160-D160","v":70000}]
["Gas Day:  ",null,null,null,"2021-12-15"]
["Receipt Point","Delivery Point","Operating Capacity (DTHS)","Schedule Volume (DTHS)","Estimated Available Capacity"]
["Kelso/Beaver","Port Westward",64000,0,{"$f":"C163-D163","v":64000}]
["Kelso/Beaver","Port Westward II",44000,21728,22272]
["Kelso/Beaver","N. Mist Storage",61000,0,61000]
["Kelso/Beaver","Beaver Unit 8",7326,0,7326]
["Kelso/Beaver","Beaver 1 - 6",152400,20000,132400]
["Mist Port Westward","Port Westward",70000,0,70000]
["Mist Port Westward II","Port Westward II",70000,0,70000]
["Mist Beaver","Beaver",70000,0,{"$f":"C170-D170","v":70000}]
["Gas Day:  ",null,null,null,"2021-12-14"]
["Receipt Point","Delivery Point","Operating Capacity (DTHS)","Schedule Volume (DTHS)","Estimated Available Capacity"]
["Kelso/Beaver","Port Westward",64000,0,{"$f":"C173-D173","v":64000}]
["Kelso/Beaver","Port Westward II",44000,21728,22272]
["Kelso/Beaver","N. Mist Storage",61000,0,61000]
["Kelso/Beaver","Beaver Unit 8",7326,0,7326]
["Kelso/Beaver","Beaver 1 - 6",152400,20000,132400]
["Mist Port Westward","Port Westward",70000,0,70000]
["Mist Port Westward II","Port Westward II",70000,0,70000]
["Mist Beaver","Beaver",70000,0,{"$f":"C180-D180","v":70000}]
["Gas Day:  ",null,null,null,"2021-12-13"]
["Receipt Point","Delivery Point","Operating Capacity (DTHS)","Schedule Volume (DTHS)","Estimated Available Capacity"]
["Kelso/Beaver","Port Westward",64000,0,{"$f":"C183-D183","v":64000}]
["Kelso/Beaver","Port Westward II",44000,16771,27229]
["Kelso/Beaver","N. Mist Storage",61000,0,61000]
["Kelso/Beaver","Beaver Unit 8",7326,0,7326]
["Kelso/Beaver","Beaver 1 - 6",152400,20000,132400]
["Mist Port Westward","Port Westward",70000,0,70000]
["Mist Port Westward II","Port Westward II",70000,0,70000]
["Mist Beaver","Beaver",70000,0,{"$f":"C190-D190","v":70000}]
["Gas Day:  ",null,null,null,"2021-12-12"]
["Receipt Point","Delivery Point","Operating Capacity (DTHS)","Schedule Volume (DTHS)","Estimated Available Capacity"]
["Kelso/Beaver","Port Westward",64000,0,{"$f":"C193-D193","v":64000}]
["Kelso/Beaver","Port Westward II",44000,16771,27229]
["Kelso/Beaver","N. Mist Storage",61000,0,61000]
["Kelso/Beaver","Beaver Unit 8",7326,0,7326]
["Kelso/Beaver","Beaver 1 - 6",152400,20000,132400]
["Mist Port Westward","Port Westward",70000,0,70000]
["Mist Port Westward II","Port Westward II",70000,0,70000]
["Mist Beaver","Beaver",70000,0,{"$f":"C200-D200","v":70000}]
["Gas Day:  ",null,null,null,"2021-12-11"]
["Receipt Point","Delivery Point","Operating Capacity (DTHS)","Schedule Volume (DTHS)","Estimated Available Capacity"]
["Kelso/Beaver","Port Westward",64000,0,{"$f":"C203-D203","v":64000}]
["Kelso/Beaver","Port Westward II",44000,16771,27229]
["Kelso/Beaver","N. Mist Storage",61000,0,61000]
["Kelso/Beaver","Beaver Unit 8",7326,0,7326]
["Kelso/Beaver","Beaver 1 - 6",152400,20000,132400]
["Mist Port Westward","Port Westward",70000,0,70000]
["Mist Port Westward II","Port Westward II",70000,0,70000]
["Mist Beaver","Beaver",70000,0,{"$f":"C210-D210","v":70000}]
["Gas Day:  ",null,null,null,"2021-12-10"]
["Receipt Point","Delivery Point","Operating Capacity (DTHS)","Schedule Volume (DTHS)","Estimated Available Capacity"]
["Kelso/Beaver","Port Westward",64000,0,{"$f":"C213-D213","v":64000}]
["Kelso/Beaver","Port Westward II",44000,31816,12184]
["Kelso/Beaver","N. Mist Storage",61000,0,61000]
["Kelso/Beaver","Beaver Unit 8",7326,0,7326]
["Kelso/Beaver","Beaver 1 - 6",152400,0,152400]
["Mist Port Westward","Port Westward",70000,0,70000]
["Mist Port Westward II","Port Westward II",70000,0,70000]
["Mist Beaver","Beaver",70000,0,{"$f":"C220-D220","v":70000}]
["Gas Day:  ",null,null,null,"2021-12-09"]
["Receipt Point","Delivery Point","Operating Capacity (DTHS)","Schedule Volume (DTHS)","Estimated Available Capacity"]
["Kelso/Beaver","Port Westward",64000,0,{"$f":"C223-D223","v":64000}]
["Kelso/Beaver","Port Westward II",44000,33005,10995]
["Kelso/Beaver","N. Mist Storage",61000,0,61000]
["Kelso/Beaver","Beaver Unit 8",7326,0,7326]
["Kelso/Beaver","Beaver 1 - 6",152400,0,152400]
["Mist Port Westward","Port Westward",70000,0,70000]
["Mist Port Westward II","Port Westward II",70000,0,70000]
["Mist Beaver","Beaver",70000,0,{"$f":"C230-D230","v":70000}]
["Gas Day:  ",null,null,null,"2021-12-08"]
["Receipt Point","Delivery Point","Operating Capacity (DTHS)","Schedule Volume (DTHS)","Estimated Available Capacity"]
["Kelso/Beaver","Port Westward",64000,0,{"$f":"C233-D233","v":64000}]
["Kelso/Beaver","Port Westward II",44000,20067,23933]
["Kelso/Beaver","N. Mist Storage",61000,0,61000]
["Kelso/Beaver","Beaver Unit 8",7326,0,7326]
["Kelso/Beaver","Beaver 1 - 6",152400,40000,112400]
["Mist Port Westward","Port Westward",70000,0,70000]
["Mist Port Westward II","Port Westward II",70000,0,70000]
["Mist Beaver","Beaver",70000,0,{"$f":"C240-D240","v":70000}]
["Gas Day:  ",null,null,null,"2021-12-07"]
["Receipt Point","Delivery Point","Operating Capacity (DTHS)","Schedule Volume (DTHS)","Estimated Available Capacity"]
["Kelso/Beaver","Port Westward",64000,64000,{"$f":"C243-D243","v":0}]
["Kelso/Beaver","Port Westward II",44000,20853,23147]
["Kelso/Beaver","N. Mist Storage",61000,0,61000]
["Kelso/Beaver","Beaver Unit 8",7326,0,7326]
["Kelso/Beaver","Beaver 1 - 6",152400,0,152400]
["Mist Port Westward","Port Westward",70000,0,70000]
["Mist Port Westward II","Port Westward II",70000,0,70000]
["Mist Beaver","Beaver",70000,0,{"$f":"C250-D250","v":70000}]
["Gas Day:  ",null,null,null,"2021-12-06"]
["Receipt Point","Delivery Point","Operating Capacity (DTHS)","Schedule Volume (DTHS)","Estimated Available Capacity"]
["Kelso/Beaver","Port Westward",64000,55609,{"$f":"C253-D253","v":8391}]
["Kelso/Beaver","Port Westward II",44000,0,44000]
["Kelso/Beaver","N. Mist Storage",61000,0,61000]
["Kelso/Beaver","Beaver Unit 8",7326,0,7326]
["Kelso/Beaver","Beaver 1 - 6",152400,0,152400]
["Mist Port Westward","Port Westward",70000,0,70000]
["Mist Port Westward II","Port Westward II",70000,0,70000]
["Mist Beaver","Beaver",70000,0,{"$f":"C260-D260","v":70000}]
["Gas Day:  ",null,null,null,"2021-12-05"]
["Receipt Point","Delivery Point","Operating Capacity (DTHS)","Schedule Volume (DTHS)","Estimated Available Capacity"]
["Kelso/Beaver","Port Westward",64000,55609,{"$f":"C263-D263","v":8391}]
["Kelso/Beaver","Port Westward II",44000,0,44000]
["Kelso/Beaver","N. Mist Storage",61000,0,61000]
["Kelso/Beaver","Beaver Unit 8",7326,0,7326]
["Kelso/Beaver","Beaver 1 - 6",152400,0,152400]
["Mist Port Westward","Port Westward",70000,0,70000]
["Mist Port Westward II","Port Westward II",70000,0,70000]
["Mist Beaver","Beaver",70000,0,{"$f":"C270-D270","v":70000}]
["Gas Day:  ",null,null,null,"2021-12-04"]
["Receipt Point","Delivery Point","Operating Capacity (DTHS)","Schedule Volume (DTHS)","Estimated Available Capacity"]
["Kelso/Beaver","Port Westward",64000,55523,{"$f":"C273-D273","v":8477}]
["Kelso/Beaver","Port Westward II",44000,0,44000]
["Kelso/Beaver","N. Mist Storage",61000,9914,51086]
["Kelso/Beaver","Beaver Unit 8",7326,0,7326]
["Kelso/Beaver","Beaver 1 - 6",152400,0,152400]
["Mist Port Westward","Port Westward",70000,0,70000]
["Mist Port Westward II","Port Westward II",70000,0,70000]
["Mist Beaver","Beaver",70000,0,{"$f":"C280-D280","v":70000}]
["Gas Day:  ",null,null,null,"2021-12-03"]
["Receipt Point","Delivery Point","Operating Capacity (DTHS)","Schedule Volume (DTHS)","Estimated Available Capacity"]
["Kelso/Beaver","Port Westward",64000,52435,{"$f":"C283-D283","v":11565}]
["Kelso/Beaver","Port Westward II",44000,0,44000]
["Kelso/Beaver","N. Mist Storage",61000,0,61000]
["Kelso/Beaver","Beaver Unit 8",7326,0,7326]
["Kelso/Beaver","Beaver 1 - 6",152400,0,152400]
["Mist Port Westward","Port Westward",70000,0,70000]
["Mist Port Westward II","Port Westward II",70000,0,70000]
["Mist Beaver","Beaver",70000,0,{"$f":"C290-D290","v":70000}]
["Gas Day:  ",null,null,null,"2021-12-02"]
["Receipt Point","Delivery Point","Operating Capacity (DTHS)","Schedule Volume (DTHS)","Estimated Available Capacity"]
["Kelso/Beaver","Port Westward",64000,42719,{"$f":"C293-D293","v":21281}]
["Kelso/Beaver","Port Westward II",44000,0,44000]
["Kelso/Beaver","N. Mist Storage",61000,0,61000]
["Kelso/Beaver","Beaver Unit 8",7326,0,7326]
["Kelso/Beaver","Beaver 1 - 6",152400,0,152400]
["Mist Port Westward","Port Westward",70000,0,70000]
["Mist Port Westward II","Port Westward II",70000,0,70000]
["Mist Beaver","Beaver",70000,0,{"$f":"C300-D300","v":70000}]
["Gas Day:  ",null,null,null,"2021-12-01"]
["Receipt Point","Delivery Point","Operating Capacity (DTHS)","Schedule Volume (DTHS)","Estimated Available Capacity"]
["Kelso/Beaver","Port Westward",64000,50154,{"$f":"C303-D303","v":13846}]
["Kelso/Beaver","Port Westward II",44000,0,44000]
["Kelso/Beaver","N. Mist Storage",61000,0,61000]
["Kelso/Beaver","Beaver Unit 8",7326,0,7326]
["Kelso/Beaver","Beaver 1 - 6",152400,0,152400]
["Mist Port Westward","Port Westward",70000,0,70000]
["Mist Port Westward II","Port Westward II",70000,0,70000]
["Mist Beaver","Beaver",70000,0,{"$f":"C310-D310","v":70000}]